{"text_format":"1","workbook":"xlsx","n_sheets":1,"sheets":["MEDICINE GENERIC LIST"],"not_rendered":{"charts":0,"images":0,"macros":0,"external_links":0,"defined_names":2,"comments":0,"pivot_tables":0},"unopened":[],"bounds":{"document_bytes":16777216,"sheet_cells":100000,"rows_first":2000,"rows_last":500,"rows_between":2000,"halvings":0,"cell_chars":16384,"cell_head_chars":4096},"cells_cut":0,"cells_raw":0,"read":"whole","date_system":"1900"}

{"sheet":"MEDICINE GENERIC LIST","index":0,"n_rows":972,"n_cols":473,"rows_kept":281,"cut":true,"hidden":false,"merged":[[0,0,0,3]],"bounds":{"rows_first":125,"rows_last":31,"rows_between":125,"halvings":4}}
["PSSHMC FORMULARY  MEDICINE LIST FOR TENDER 2018-19",null,null,null,"Ahmad bin Qasim(Searle)",null,null,null,null,null,null,"Ahmad bin Qasim(Saffron)",null,null,null,null,null,null,"Ahmad bin Qasim(Helix)",null,null,null,null,null,null,"Ahmad bin Qasim(Wood Wards)",null,null,null,null,null,null,"Ahmad bin Qasim(Chas a Mendoza)",null,null,null,null,null,null,"Rehman Trading Company (Macter)",null,null,null,null,null,null,"Rehman Trading Company (PharmEvo)",null,null,null,null,null,null,"Rehman Trading Company (Sami)",null,null,null,null,null,null,"Mullar &Phipps(AGP)",null,null,null,null,null,null,"Mullar &Phipps(Novo Nordisk)",null,null,null,null,null,null,"Mullar &Phipps(Ray Pharma)",null,null,null,null,null,null,"Mullar &Phipps(Pharmatec)",null,null,null,null,null,null,"Mullar &Phipps(Aspin Pharma)",null,null,null,null,null,null,"Mullar &Phipps(Gsk*Green Star)",null,null,null,null,null,null,"BMC(Bosch)",null,null,null,null,null,null,"BMC(Barrett Hodgsons &Gene-Tech)",null,null,null,null,null,null,"Medi Aim Pharma(HighNoon)",null,null,null,null,null,null,"Medi Aim Pharma(Next Pharma)",null,null,null,null,null,null,"Medi Aim Pharma(Wilson's)",null,null,null,null,null,null,"Medi Aim Pharma(Searle Company)",null,null,null,null,null,null,"Medi Aim Pharma(Indus Pharma)",null,null,null,null,null,null,"Medi Aim Pharma(Saydon Pharma)",null,null,null,null,null,null,"Kaizen Pharma",null,null,null,null,null,null,"Yasir Distribution Netwok(Chiesi)",null,null,null,null,null,null,"Yasir Distribution Netwok(hudson, OBS)",null,null,null,null,null,null,"SurgiVision(B.Braun)",null,null,null,null,null,null,"PDH",null,null,null,null,null,null,"Medics Corporation(Pharmedics)",null,null,null,null,null,null,"Hiranis Pharma",null,null,null,null,null,null,"ALLONS(Novartis)",null,null,null,null,null,null,"ALLONS(GSK OTC )",null,null,null,null,null,null,"ALLONS(Pfizer,Wyeth)",null,null,null,null,null,null,"Umair Enterprises(Shahzeb,Reko,,Elite,Bajwa,) ",null,null,null,null,null,null,"Bilal & Co ",null,null,null,null,null,null,"Tiltis Pharma",null,null,null,null,null,null,"3S Pharma",null,null,null,null,null,null,"Sanofi Aventis pak",null,null,null,null,null,null,"Delta Enterprises",null,null,null,null,null,null,"Martin Dow",null,null,null,null,null,null,"Al-Qamar (GT Pharma)",null,null,null,null,null,null,"Al-Qamar (Brooks Pharma)",null,null,null,null,null,null,"Al-Qamar (Genix Pharma)",null,null,null,null,null,null,"Vikor Enterprises(Ferozsons,Gsk,Dong-A )",null,null,null,null,null,null,"Farmacia (BF Bio",null,null,null,null,null,null,"Azan Enterprises",null,null,null,null,null,null,"Platinum Pharma",null,null,null,null,null,null,"Medicas(Cibex)",null,null,null,null,null,null,"Medicas (Danas Pharma)",null,null,null,null,null,null,"Medicas (Getz Pharma)",null,null,null,null,null,null,"Medicas (KCL Pharma)",null,null,null,null,null,null,"Medicas (Sante Pvt Ltd)",null,null,null,null,null,null,"Medicas (Scilife Pharma)",null,null,null,null,null,null,"Medicas (Shaigan Pharma)",null,null,null,null,null,null,"Pharmac ( Hoover,Citi,GMP)",null,null,null,null,null,null,"Pharmacons(Abbott )",null,null,null,null,null,null,"Pharmacons(Alza Pharma)",null,null,null,null,null,null,"Pharmacons(Amsin Vaccine & Pharma)",null,null,null,null,null,null,"Pharmacons(Asian Continental )",null,null,null,null,null,null,"Pharmacons(Cirin Pharma)",null,null,null,null,null,null,"Pharmacons(Ethical Lab)",null,null,null,null,null,null,"Pharmacons(Glitz Pharma)",null,null,null,null,null,null,"Pharmacons(NabiQasim Ind)",null,null,null,null,null,null,"Pharmacons(Surge Lab)",null,null,null,null,null,null,"Pharmacons(Valor Pharma)",null,null,null,null,null,null,"LHC(Convell)",null,null,null,null,null,null,"LHC(Care Pharma)",null,null,null,null,null,null,"Medi Rite (Derma-Techno)"]
["Sr.#","Dosage form.","Generic","Pack Size","Brand Name\nwith strenght","Dosage Form","Pack Size","MRP","Offered Price","%Age Discount","Manufacturer","Brand Name\nwith strenght","Dosage Form","Pack Size","MRP","Offered Price","%age Discount","Manufacturer","Brand Name\nwith strenght","Dosage Form","Pack Size","MRP","Offered Price","%age Discount","Manufacturer","Brand Name\nwith strenght","Dosage Form","Pack Size","MRP","Offered Price","%age Discount","Manufacturer","Brand Name\nwith strenght","Dosage Form","Pack Size","MRP","Offered Price","% age Discount","Manufacturer","Brand Name\nwith strenght","Dosage Form","Pack Size(No's)","MRP","Offered Price","% age Discount","Manufacturer","Brand Name\nwith strenght","Dosage Form","Pack Size(No's)","MRP","Offered Price","% age Discount","Manufacturer","Brand Name\nwith strenght","Dosage Form","Pack Size(No's)","MRP","Offered Price","% age Discount","Manufacturer","Brand Name\nwith strenght","Dosage Form","Pack Size(No's)","MRP","Offered Price","% age Discount","Manufacturer","Brand Name\nwith strenght","Dosage Form","Pack Size(No's)","MRP","Offered Price","% age Discount","Manufacturer","Brand Name\nwith strenght","Dosage Form","Pack Size(No's)","MRP","Offered Price","% age Discount","Manufacturer","Brand Name\nwith strenght","Dosage Form","Pack Size(No's)","MRP","Offered Price","% age Discount","Manufacturer","Brand Name\nwith strenght","Dosage Form","Pack Size(No's)","MRP","Offered Price","% age Discount","Manufacturer","Brand Name\nwith strenght","Dosage Form","Pack Size(No's)","MRP","Offered Price","% age Discount","Manufacturer","Brand Name\nwith strenght","Dosage Form","Pack Size(No's)","MRP","Offered Price","% age Discount","Manufacturer","Brand Name\nwith strenght","Dosage Form","Pack Size(No's)","MRP","Offered Price","% age Discount","Manufacturer","Brand Name\nwith strenght","Dosage Form","Pack Size(No's)","MRP","Offered Price","% age Discount","Manufacturer","Brand Name\nwith strenght","Dosage Form","Pack Size(No's)","MRP","Offered Price","% age Discount","Manufacturer","Brand Name\nwith strenght","Dosage Form","Pack Size(No's)","MRP","Offered Price","% age Discount","Manufacturer","Brand Name\nwith strenght","Dosage Form","Pack Size(No's)","MRP","Offered Price","% age Discount","Manufacturer","Brand Name\nwith strenght","Dosage Form","Pack Size(No's)","MRP","Offered Price","% age Discount","Manufacturer","Brand Name\nwith strenght","Dosage Form","Pack Size(No's)","MRP","Offered Price","% age Discount","Manufacturer","Brand Name\nwith strenght","Dosage Form","Pack Size(No's)","MRP","Offered Price","% age Discount","Manufacturer","Brand Name\nwith strenght","Dosage Form","Pack Size(No's)","MRP","Offered Price","% age Discount","Manufacturer","Brand Name\nwith strenght","Dosage Form","Pack Size(No's)","MRP","Offered Price","% age Discount","Manufacturer","Brand Name\nwith strenght","Dosage Form","Pack Size(No's)","MRP","Offered Price","% age Discount","Manufacturer","Brand Name\nwith strenght","Dosage Form","Pack Size(No's)","MRP","Offered Price","% age Discount","Manufacturer","Brand Name\nwith strenght","Dosage Form","Pack Size(No's)","MRP","Offered Price","% age Discount","Manufacturer","Brand Name\nwith strenght","Dosage Form","Pack Size(No's)","MRP","Offered Price","% age Discount","Manufacturer","Brand Name\nwith strenght","Dosage Form","Pack Size(No's)","MRP","Offered Price","% age Discount","Manufacturer","Brand Name\nwith strenght","Dosage Form","Pack Size(No's)","MRP","Offered Price","% age Discount","Manufacturer","Brand Name\nwith strenght","Dosage Form","Pack Size(No's)","MRP","Offered Price","% age Discount","Manufacturer","Brand Name\nwith strenght","Dosage Form","Pack Size(No's)","MRP","Offered Price","% age Discount","Manufacturer","Brand Name\nwith strenght","Dosage Form","Pack Size(No's)","MRP","Offered Price","% age Discount","Manufacturer","Brand Name\nwith strenght","Dosage Form","Pack Size(No's)","MRP","Offered Price","% age Discount","Manufacturer","Brand Name\nwith strenght","Dosage Form","Pack Size(No's)","MRP","Offered Price","% age Discount","Manufacturer","Brand Name\nwith strenght","Dosage Form","Pack Size(No's)","MRP","Offered Price","% age Discount","Manufacturer","Brand Name\nwith strenght","Dosage Form","Pack Size(No's)","MRP","Offered Price","% age Discount","Manufacturer","Brand Name\nwith strenght","Dosage Form","Pack Size(No's)","MRP","Offered Price","% age Discount","Manufacturer","Brand Name\nwith strenght","Dosage Form","Pack Size(No's)","MRP","Offered Price","% age Discount","Manufacturer","Brand Name\nwith strenght","Dosage Form","Pack Size(No's)","MRP","Offered Price","% age Discount","Manufacturer","Brand Name\nwith strenght","Dosage Form","Pack Size(No's)","MRP","Offered Price","% age Discount","Manufacturer","Brand Name\nwith strenght","Dosage Form","Pack Size(No's)","MRP","Offered Price","% age Discount","Manufacturer","Brand Name\nwith strenght","Dosage Form","Pack Size(No's)","MRP","Offered Price","% age Discount","Manufacturer","Brand Name\nwith strenght","Dosage Form","Pack Size(No's)","MRP","Offered Price","% age Discount","Manufacturer","Brand Name\nwith strenght","Dosage Form","Pack Size(No's)","MRP","Offered Price","% age Discount","Manufacturer","Brand Name\nwith strenght","Dosage Form","Pack Size(No's)","MRP","Offered Price","% age Discount","Manufacturer","Brand Name\nwith strenght","Dosage Form","Pack Size(No's)","MRP","Offered Price","% age Discount","Manufacturer","Brand Name\nwith strenght","Dosage Form","Pack Size(No's)","MRP","Offered Price","% age Discount","Manufacturer","Brand Name\nwith strenght","Dosage Form","Pack Size(No's)","MRP","Offered Price","% age Discount","Manufacturer","Brand Name\nwith strenght","Dosage Form","Pack Size(No's)","MRP","Offered Price","% age Discount","Manufacturer","Brand Name\nwith strenght","Dosage Form","Pack Size(No's)","MRP","Offered Price","% age Discount","Manufacturer","Brand Name\nwith strenght","Dosage Form","Pack Size(No's)","MRP","Offered Price","% age Discount","Manufacturer","Brand Name\nwith strenght","Dosage Form","Pack Size(No's)","MRP","Offered Price","% age Discount","Manufacturer","Brand Name\nwith strenght","Dosage Form","Pack Size(No's)","MRP","Offered Price","% age Discount","Manufacturer","Brand Name\nwith strenght","Dosage Form","Pack Size(No's)","MRP","Offered Price","% age Discount","Manufacturer","Brand Name\nwith strenght","Dosage Form","Pack Size(No's)","MRP","Offered Price","% age Discount","Manufacturer","Brand Name\nwith strenght","Dosage Form","Pack Size(No's)","MRP","Offered Price","% age Discount","Manufacturer","Brand Name\nwith strenght","Dosage Form","Pack Size(No's)","MRP","Offered Price","% age Discount","Manufacturer","Brand Name\nwith strenght","Dosage Form","Pack Size(No's)","MRP","Offered Price","% age Discount","Manufacturer","Brand Name\nwith strenght","Dosage Form","Pack Size(No's)","MRP","Offered Price","% age Discount","Manufacturer","Brand Name\nwith strenght","Dosage Form","Pack Size(No's)","MRP","Offered Price","% age Discount","Manufacturer","Brand Name\nwith strenght","Dosage Form","Pack Size(No's)","MRP","Offered Price","% age Discount","Manufacturer","Brand Name\nwith strenght","Dosage Form","Pack Size(No's)","MRP","Offered Price","% age Discount","Manufacturer","Brand Name\nwith strenght","Dosage Form","Pack Size(No's)","MRP","Offered Price","% age Discount","Manufacturer","Brand Name\nwith strenght","Dosage Form","Pack Size(No's)","MRP","Offered Price","% age Discount","Manufacturer","Brand Name\nwith strenght","Dosage Form","Pack Size(No's)","MRP","Offered Price","% age Discount","Manufacturer"]
[null,"D/F","(A)  Antacids/Antisecretry/Antiulcer",null,null,null,null,null,null,null,null,null,null,null,null,null,null,null,null,null,null,null,null,null,null,null,null,null,null,null,null,null,null,null,null,null,null,null,null,null,null,null,null,null,null,null,null,null,null,null,null,null,null,null,null,null,null,null,null,null,null,null,null,null,null,null,null,null,null,null,null,null,null,null,null,null,null,null,null,null,null,null,null,null,null,null,null,null,null,null,null,null,null,null,null,null,null,null,null,null,null,null,null,null,null,null,null,null,null,null,null,null,null,null,null,null,null,null,null,null,null,null,null,null,null,null,null,null,null,null,null,null,null,null,null,null,null,null,null,null,null,null,null,null,null,null,null,null,null,null,null,null,null,null,null,null,null,null,null,null,null,null,null,null,null,null,null,null,null,null,null," "]
["1'","Susp","Al Hydroxide 215mg,Mg Hydroxide 80mg, Simethicone 25mg/5ml ","120ml",null,null,null,null,null,null,null,null,null,null,null,null,null,null,null,null,null,null,null,null,null,null,null,null,null,null,null,null,null,null,null,null,null,null,null,null,null,null,null,null,null,null,null,null,null,null,null,null,null,null,null,null,null,null,null,null,null,null,null,null,null,null,null,null,null,null,null,null,null,null,null,null,null,null,null,null,null,null,null,null,null,null,null,null,null,null,null,null,null,null,null,null,null,null,null,null,null,null,null,null,null,null,null,null,null,null,null,null,null,null,null,null,null,null,null,null,null,null,null,null,null,null,null,null,null,null,"Magalcid","Susp","1's",44,26,{"$f":"100-EE4/ED4*100","v":40.909090909090907},"Wilson's",null,null,null,null,null,null,null,null,null,null,null,null,null,null,null,null,null,null,null,null,null,null,null,null,null,null,null,null,null,null,null,null,null,null,null,null,null,null,null,null,null,null,null,null,null,null,null,null,null,null,null,null,null,null,null,null,null,null,null,null,null,null,null,null,null,null,null,null,null,null,null,null,null,null,null,null,null,null,null,null,null,null,null,null,null,null,null,null,null,null,null,null,null,null,null,null,null,null,null,null,null,null,null,null,null,null,null,null,null,null,null,null,null,null,null,null,null,null,null,null,null,null,null,null,null,null,null,null,null,null,null,null,null,null,null,null,null,null,null,null,null,null,null,null,null,null,null,null,null,null,null,null,null,null,null,null,null,null,null,null,null,null,null,null,null,null,null,null,null,null,null,null,null,null,null,null,null,null,null,null,null,null,null,null,null,null,null,null,null,null,null,null,null,null,null,null,null,null,null,null,null,null,null,null,null,null,null,null,null,null,null,null,null,null,null,null,null,null,null,null,null,null,null,null,null,null,null,null,null,null,null,null,null,null,null,null,null,null,null,null,null,null,null,null,null,"Dijex MP","Susp","120ml",36.42,30.96,{"$f":"100-NW4/NV4*100","v":14.991762767710043},"Abbott LAB"]
[1,"Cap","Esomeprazol 20mg","14's",null,null,null,null,null,null,null,null,null,null,null,null,null,null,null,null,null,null,null,null,null,null,null,null,null,null,null,null,"Essocam 20mg","Cap","14's",119,89.01,{"$f":"100-AK5/AJ5*100","v":25.201680672268907},"Chas a Mendoza","Esnate","Cap","14's",123.31,62.66,{"$f":"100-AR5/AQ5*100","v":49.184980942340452},"Macter","Fasteso 20mg ","Cap","14's",176.02,43.68,{"$f":"100-AY5/AX5*100","v":75.184638109305766},"PharmEvo","NovoTeph 20mg","Cap","14's",123.21,43.96,{"$f":"100-BF5/BE5*100","v":64.321077834591335},"Sami",null,null,null,null,null,null,null,null,null,null,null,null,null,null,"Rayprazoie 20mg","Cap","14's",123.21,78.55,{"$f":"100-CA5/BZ5*100","v":36.247057868679491},"Ray Pharma",null,null,null,null,null,null,null,null,null,null,null,null,null,null,null,null,null,null,null,null,null,"Somezole 20mg ","Cap","14's",126,91.04,{"$f":"100-DC5/DB5*100","v":27.746031746031747},"Bosch","AciReg 20mg","Cap","14's",163.31,46,{"$f":"100-DJ5/DI5*100","v":71.832710795419757},"BH","Axesom 20mg ","Cap","14's",123.21,50,{"$f":"100-DQ5/DP5*100","v":59.418878337797253},"Highnoon","Esonext 20mg ","Cap","14's",119,36,{"$f":"100-DX5/DW5*100","v":69.747899159663859},"Next Pharma",null,null,null,null,null,null,null,null,null,null,null,null,null,null,null,null,null,null,null,null,null,"Ul-Some 20mg ","Cap","14's",170,41.86,{"$f":"100-EZ5/EY5*100","v":75.376470588235293},"Saydon Pharma",null,null,null,null,null,null,null,null,null,null,null,null,null,null,null,null,null,null,null,null,null,null,null,null,null,null,null,null,null,null,null,null,null,null,null,null,null,null,null,null,null,null,"Lomac 20mg","Cap","14's",123.21,53,{"$f":"100-GW5/GV5*100","v":56.984011038065091},"Hiranis Pharma",null,null,null,null,null,null,null,null,null,null,null,null,null,null,null,null,null,null,null,null,null,"Simeso 20mg","Cap","14's",119,60.2,{"$f":"100-HY5/HX5*100","v":49.411764705882355},"Sims Pharma","Essom 20mg ","Cap","14's",172,70,{"$f":"100-IF5/IE5*100","v":59.302325581395351},"Medizan Lab","Zolpip 20mg ","Cap","14's",123.21,42,{"$f":"100-IM5/IL5*100","v":65.911857803749697},"Tiltis Pharma","Eziprol 20mg","Cap","14's",119,20,{"$f":"100-IT5/IS5*100","v":83.193277310924373},"3S Pharma",null,null,null,null,null,null,null,"S-Zole 20mg","Cap","14's",170,50.4,{"$f":"100-JH5/JG5*100","v":70.352941176470594},"Novamed ",null,null,null,null,null,null,null,null,null,null,null,null,null,null,"E-Cap 20mg","Cap","14's",100,40,{"$f":"100-KC5/KB5*100","v":60},"Brooks","Zoleric 20mg","Cap","14's",168,49.8,{"$f":"100-KJ5/KI5*100","v":70.357142857142861},"Genix Pharma",null,null,null,null,null,null,null,null,null,null,null,null,null,null,"Esoson 20mg","Cap","14's",119,50,{"$f":"100-LE5/LD5*100","v":57.983193277310924},"Unisons Pharma",null,null,null,null,null,null,null,"Cimora 20mg","Cap","14's",144,52,{"$f":"100-LS5/LR5*100","v":63.888888888888893},"Cibex Pvt Ltd",null,null,null,null,null,null,null,"Nexum 20mg","Cap","14's",172,82.4,{"$f":"100-MG5/MF5*100","v":52.093023255813954},"Getz Pharma","Pep-eez 20mg","Cap","14's",145,49.45,{"$f":"100-MN5/MM5*100","v":65.896551724137936},"KCL Pharma",null,null,null,null,null,null,null,null,null,null,null,null,null,null,null,null,null,null,null,null,null,"Esowell 20mg","Cap","14's",122,75,{"$f":"100-NP5/NO5*100","v":38.524590163934427},"Hoover","Ezomol 20mg","Cap","14's",120.7,68.2,43.496271748135875,"Abbott LAB",null,null,null,null,null,null,null,null,null,null,null,null,null,null,null,null,null,null,null,null,null,"Esopase 20mg","Cap","14's",121.48,37.700000000000003,{"$f":"100-OY5/OX5*100","v":68.966084952255514},"Cirin Pharma",null,null,null,null,null,null,null,"Eger 20mg","Cap","14's",154,64.45,{"$f":"100-PM5/PL5*100","v":58.149350649350644},"Glitz Pharma","Es-Loprot 20mg","Cap","14's",126,53.75,{"$f":"100-PT5/PS5*100","v":57.341269841269842},"Nabiqasim",null,null,null,null,null,null,null,"Oxilant 20mg","Cap","14's",119,98.12,{"$f":"100-QH5/QG5*100","v":17.546218487394952},"Valor Pharma"]
[2,"Cap","Esomeprazol 40mg","14's",null,null,null,null,null,null,null,null,null,null,null,null,null,null,null,null,null,null,null,null,null,null,null,null,null,null,null,null,"Essocam 40mg","Cap","14's",198,148.1,25.202020202020208,"Chas a Mendoza","Esnate 40mg","Cap","14's",204.01,121.98,40.208813293466008,"Macter","Fasteso 40mg ","Cap","14's",252,61,75.793650793650798,"PharmEvo","NovoTeph 40mg","Cap","14's",250,67.900000000000006,72.84,"Sami",null,null,null,null,null,null,null,null,null,null,null,null,null,null,null,null,null,null,null,null,null,null,null,null,null,null,null,null,null,null,null,null,null,null,null,null,null,null,null,null,null,null,"Somezole 40mg ","Cap","14's",220,158.94999999999999,27.750000000000014,"Bosch","AciReg 40mg","Cap","14's",262.70999999999998,66,74.877241064291425,"BH","Axesom 40mg ","Cap","14's",205.01,60,70.733134969025897,"Highnoon","Esonext 40mg ","Cap","14's",198,55,72.222222222222229,"Next Pharma",null,null,null,null,null,null,null,null,null,null,null,null,null,null,null,null,null,null,null,null,null,"Ul-Some 40mg ","Cap","14's",230.6,55.86,75.776235906331308,"Saydon Pharma",null,null,null,null,null,null,null,null,null,null,null,null,null,null,null,null,null,null,null,null,null,null,null,null,null,null,null,null,null,null,null,null,null,null,null,null,null,null,null,null,null,null,"Lomac 40mg","Cap","14's",205.01,63.48,69.035656797229407,"Hiranis Pharma",null,null,null,null,null,null,null,null,null,null,null,null,null,null,null,null,null,null,null,null,null,"Simeso 40mg","Cap","14's",198,62.3,68.535353535353536,"Sims Pharma","Essom 40mg ","Cap","14's",370,70,{"$f":"100-IF6/IE6*100","v":81.081081081081081},"Medizan Lab","Zolpip 40mg ","Cap","14's",205.01,49,{"$f":"100-IM6/IL6*100","v":76.098726891371143},"Tiltis Pharma","Eziprol 40mg","Cap","14's",198,37.29,81.166666666666671,"3S Pharma",null,null,null,null,null,null,null,"S-Zole 40mg","Cap","14's",323,60.2,{"$f":"100-JH6/JG6*100","v":81.362229102167191},"Novamed ",null,null,null,null,null,null,null,null,null,null,null,null,null,null,"E-Cap 40mg","Cap","14's",150,45,70,"Brooks","Zoleric 40mg","Cap","14's",252,65,74.206349206349202,"Genix Pharma",null,null,null,null,null,null,null,null,null,null,null,null,null,null,"Esoson 40mg","Cap","14's",198,59,70.202020202020208,"Unisons Pharma",null,null,null,null,null,null,null,null,null,null,null,null,null,null,null,null,null,null,null,null,null,"Nexum 40mg","Cap","14's",334,63,81.137724550898213,"Getz Pharma",null,null,null,null,null,null,null,"Esocool 40mg","Cap","14's",200.83,75,{"$f":"100-MU6/MT6*100","v":62.654981825424485},"Sante Pvt Ltd",null,null,null,null,null,null,null,null,null,null,null,null,null,null,"Esowell 40mg","Cap","14's",204,90,55.882352941176471,"Hoover","Ezomol 40mg","Cap","14's",200.83,81,59.667380371458449,"Abbott LAB",null,null,null,null,null,null,null,null,null,null,null,null,null,null,null,null,null,null,null,null,null,"Esopase 20mg","Cap","14's",202.12,49.95,75.286958242628145,"Cirin Pharma",null,null,null,null,null,null,null,"Eger 40mg","Cap","14's",224,84.25,62.388392857142854,"Glitz Pharma","Es-Loprot 40mg","Cap","14's",196,79,59.693877551020407,"Nabiqasim",null,null,null,null,null,null,null,"Oxilant 40mg","Cap","14's",198,163.25,17.550505050505052,"Valor Pharma"]
[3,"Cap","Pantoprazole 40mg","14's",null,null,null,null,null,null,null,null,null,null,null,null,null,null,null,null,null,null,null,null,null,"  ",null,null,null,null,null,null,"  ",null,null,null,null,null,null,null,null,null,null,null,null,null,null,null,null,null,null,null,null,"Neege 40mg","Cap","14'S",220,85.4,61.18181818181818,"Sami",null,null,null,null,null,null,null,null,null,null,null,null,null,null,null,null,null,null,null,null,null,null,null,null,null,null,null,null,null,null,null,null,null,null,null,null,null,null,null,null,null,null,null,null,null,null,null,null,null,null,null,null,null,null,null,null,null,null,null,null,null,null,null,null,null,null,null,null,null,null,null,null,null,null,null,null,null,null,null,null,null,null,null,null,null,null,null,null,null,null,null,null,null,null,null,null,null,null,null,null,null,null,null,null,null,null,null,null,null,null,null,null,null,null,null,null,null,null,null,null,null,null,null,null,null,null,null,null,null,null,null,null,null,null,null,null,null,null,null,null,"Glover 40mg","Tab","14's",240,49.78,79.258333333333326,"Hiranis Pharma",null,null,null,null,null,null,null,null,null,null,null,null,null,null,null,null,null,null,null,null,null,null,null,null,null,null,null,null,"Pansi 40mg ","Tab","14's",240,204,15,"Siam Pharma",null,null,null,null,null,null,null,null,null,null,null,null,null,null,null,null,null,null,null,null,null,null,null,null,null,null,null,null,null,null,null,null,null,null,null,null,null,null,null,null,null,null,null,null,null,null,null,null,null,null,null,null,null,null,null,null,null,null,null,null,null,null,null,null,null,null,null,null,null,null,"Unipanto 40","Cap","14's",238,74,68.907563025210081,"Unisons Pharma",null,null,null,null,null,null,null,null,null,null,null,null,null,null,null,null,null,null,null,null,null,null,null,null,null,null,null,null,null,null,null,null,null,null,null,null,null,null,null,null,null,null,null,null,null,null,null,null,null,null,null,null,null,null,null,null,"Pantomax 40mg","Cap","14's",249,90,63.855421686746986,"Hoover",null,null,null,null,null,null,null,null,null,null,null,null,null,null,null,null,null,null,null,null,null,null,null,null,null,null,null,null,null,null,null,null,null,null,null,null,null,null,null,null,null,null,null,null,null,null,null,null,null,null,null,null,null,null,null,null,null,null,null,null,null,null,null,null,null,null,null,null,null,null,"Contazole 40mg","Tab","14's",308,80,{"$f":"100-QO7/QN7*100","v":74.025974025974023},"Convell"]
[4,"Inj.","Esomeprazol 40mg","vial",null,null,null,null,null,null,null,null,null,null,null,null,null,null,null,null,null,null,null,null,null,null,null,null,null,null,null,null,null,null,null,null,null,null,null,null,null,null,null,null,null,null,null,null,null,null,null,null,null,null,null,null,null,null,null,null,null,null,null,null,null,null,null,null,null,null,null,null,null,null,null,null,null,null,null,null,null,null,null,null,null,null,null,null,null,null,null,null,null,null,null,null,null,null,null,null,null,null,"Somezole 40mg ","Inj","1's",250,159.38,36.248000000000005,"Bosch",null,null,null,null,null,null,null,null,null,null,null,null,null,null,null,null,null,null,null,null,null,null,null,null,null,null,null,null,null,null,null,null,null,null,null,null,null,null,null,null,null,null,null,null,null,null,null,null,null,null,null,null,null,null,null,null,null,null,null,null,null,null,null,null,null,null,null,null,null,null,null,null,null,null,null,null,null,null,null,null,null,null,null,null,null,null,null,null,null,null,null,null,null,null,null,null,null,null,null,null,null,null,null,null,null,null,null,null,null,null,null,null,null,null,null,null,null,null,null,null,null,null,null,null,null,null,null,null,null,null,null,null,null,null,null,null,null,null,null,null,null,null,null,null,null,null,null,null,null,null,null,null,null,null,null,null,null,null,null,null,null,null,null,null,null,null,null,null,null,null,null,null,null,null,null,null,null,null,null,null,null,null,null,null,null,null,null,null,null,null,null,null,null,null,null,null,null,null,null,null,null,null,null,null,null,null,null,null,null,null,null,null,null,null,null,null,null,null,null,null,null,null,null,null,null,null,null,null,null,null,null,"Nexum 40mg","Inj","1's",310,85,72.58064516129032,"Getz Pharma"]
[5,"Tab","Mag. Trisilicate + Dried Alu Hydroxide","100's"]
[6,"Cap","Omeprazole 20mg","14's","Anzo 20mg","Cap","14's",149.19999999999999,73,{"$f":"100-I10/H10*100","v":51.07238605898123},"Searle Pharma","Noctis 20mg ","Cap","14's",149.1,66.34,{"$f":"100-P10/O10*100","v":55.506371562709589},"Saffron",null,null,null,null,null,null,null,null,null,null,null,null,null,null,null,null,null,null,null,null,null,null,null,null,null,null,null,null,"Zoltar 20mg","Cap","14's",173.94,59,66.080257560078195,"Pharmevo","Teph 20mg","Cap",14,180,45.5,74.722222222222229,"Sami",null,null,null,null,null,null,null,null,null,null,null,null,null,null,null,null,null,null,null,null,null,"Prazol 20mg ","Cap","14's",195,140.88999999999999,{"$f":"100-CH10/CG10*100","v":27.748717948717967},"Pharmatec",null,null,null,null,null,null,null,null,null,null,null,null,null,null,"Omezol 20mg ","Cap","14's",154,95.56,37.94805194805194,"Bosch",null,null,null,null,null,null,null,null,null,null,null,null,null,null,"Omecap 20mg","Cap","14's",144,24,{"$f":"100-DX10/DW10*100","v":83.333333333333343},"Next Pharma",null,null,null,null,null,null,null,null,null,null,null,null,null,null,"Cidpro 20mg","Cap","14's",149.1,82.38,{"$f":"100-ES10/ER10*100","v":44.74849094567405},"Indus Pharma","Osyd 20mg","Cap","14's",180,34.86,{"$f":"100-EZ10/EY10*100","v":80.633333333333326},"Saydon Pharma",null,null,null,null,null,null,null,null,null,null,null,null,null,null,null,null,null,null,null,null,null,null,null,null,null,null,null,null,null,null,null,null,null,null,null,"Nilcid 20mg","Cap","14's",127.5,39.9,{"$f":"100-GP10/GO10*100","v":68.705882352941174},"Pharmedic",null,null,null,null,null,null,null,null,null,null,null,null,null,null,null,null,null,null,null,null,null,null,null,null,null,null,null,null,null,null,null,null,null,null,null,"Gosoft 20mg","Cap","14's",144,50,{"$f":"100-IF10/IE10*100","v":65.277777777777771},"Bio-Mark Pharma","Titrazole  20mg ","Cap","14's",149.1,37,{"$f":"100-IM10/IL10*100","v":75.184439973172374},"Tiltis Pharma","Omjet 20mg","Cap","14's",144,29.38,{"$f":"100-IT10/IS10*100","v":79.597222222222229},"3S Pharma",null,null,null,null,null,null,null,"O-Zole 20mg","Cap","100'S",946,200,{"$f":"100-JH10/JG10*100","v":78.858350951374206},"Novamed ",null,null,null,null,null,null,null,null,null,null,null,null,null,null,"Omesec 20mg ","Cap","14's",130,38,{"$f":"100-KC10/KB10*100","v":70.769230769230774},"Brooks","Mep 20mg ","Cap","14's",149.11000000000001,49,{"$f":"100-KJ10/KI10*100","v":67.138354235128432},"Genix Pharma","Omega 20mg","Cap","14's",195,50,{"$f":"100-KQ10/KP10*100","v":74.358974358974365},"Ferozsons Labs",null,null,null,null,null,null,null,"Oray 20mg","Cap","14's",144,36,{"$f":"100-LE10/LD10*100","v":75},"Wimits Pharma",null,null,null,null,null,null,null,null,null,null,null,null,null,null,"Omenza 20mg","Cap","14's",144,21.25,{"$f":"100-LZ10/LY10*100","v":85.243055555555557},"Danas Pharma","Risek 20mg","Cap","14's",223.86,37.5,83.24845885821496,"Getz Pharma",null,null,null,null,null,null,null,null,null,null,null,null,null,null,null,null,null,null,null,null,null,null,null,null,null,null,null,null,null,null,null,null,null,null,null,null,null,null,null,null,null,null,null,null,null,null,null,null,null,"Omepral 20mg","Cap","14's",145,58.8,{"$f":"100-OK10/OJ10*100","v":59.448275862068968},"Amson Vaccines & Pharma","Zolbi 20mg","Cap","14's",144,91.8,{"$f":"100-OR10/OQ10*100","v":36.250000000000007},"Asian Contiental",null,null,null,null,null,null,null,null,null,null,null,null,null,null,"Zoglit 20mg","Cap","14's",144,35.700000000000003,{"$f":"100-PM10/PL10*100","v":75.208333333333329},"Glitz Pharma","Loprot 20mg","Cap","14's",126,56.25,{"$f":"100-PT10/PS10*100","v":55.357142857142854},"Nabiqasim",null,null,null,null,null,null,null,"Omepraval 20mg ","Cap","14's",144,118.73,{"$f":"100-QH10/QG10*100","v":17.548611111111114},"Valor Pharma",null,null,null,null,null,null,null,null,null,null,null,null,null,null,"Z-Pral 20mg","Cap","14's",122.4,97.92,{"$f":"100-RC10/RB10*100","v":20},"Derma Techno"]
[7,"Infusion","Omeprazole 40mg Infusion","5's",null,null,null,null,null,null,null,null,null,null,null,null,null,null,null,null,null,null,null,null,null,null,null,null,null,null,null,null,null,null,null,null,null,null,null,null,null,null,null,null,null,null,"Zoltar 40mg","Inf","1's",240,106,55.833333333333336,"Pharmevo",null,null,null,null,null,null,null,null,null,null,null,null,null,null,null,null,null,null,null,null,null,null,null,null,null,null,null,null,null,null,null,null,null,null,null,null,null,null,null,null,null,null,null,null,null,null,null,null,null,"Omezol 40mg ","Inj","1's",275,44.4,83.854545454545459,"Bosch",null,null,null,null,null,null,null,null,null,null,null,null,null,null,null,null,null,null,null,null,null,null,null,null,null,null,null,null,null,null,null,null,null,null,null,null,null,null,null,null,null,null,null,null,null,null,null,null,null,null,null,null,null,null,null,null,null,null,null,null,null,null,null,null,null,null,null,null,null,null,null,null,null,null,null,null,null,null,null,null,null,null,null,null,null,null,null,null,null,null,null,null,null,null,null,null,null,null,null,null,null,null,null,null,null,null,null,null,null,null,null,null,null,null,null,null,null,null,null,null,null,null,null,null,null,null,null,null,null,null,null,null,null,null,null,null,null,null,null,null,null,null,null,null,null,null,null,null,null,null,null,null,null,null,null,null,null,null,null,null,null,null,null,null,null,null,null,null,null,null,null,null,null,null,null,null,null,null,null,null,null,null,null,null,null,null,null,null,null,null,null,null,null,null,null,null,null,null,null,null,null,null,null,null,null,null,null,null,null,null,null,null,null,null,null,null,null,null,null,null,null,null,null,null,null,null,null,null,null,null,null,"Risek 40mg","Inj","1's",310,81.5,73.709677419354847,"Getz Pharma"]
[8,"Tab","Ranitidine 150mg","10's",null,null,null,null,null,null,null,null,null,null,null,null,null,null,null,null,null,null,null,null,null,null,null,null,null,null,null,null,null,null,null,null,null,null,null,null,null,null,null,null,null,null,null,null,null,null,null,null,null,null,null,null,null,null,null,null,null,null,null,null,null,null,null,null,null,null,null,null,null,null,null,null,null,null,null,null,null,null,null,null,null,null,null,null,null,null,null,null,null,null,null,null,null,null,null,null,null,null,"Nulcer 150mg ","Tab","10's",85,36.1,57.529411764705877,"Bosch",null,null,null,null,null,null,null,null,null,null,null,null,null,null,null,null,null,null,null,null,null,null,null,null,null,null,null,null,null,null,null,null,null,null,null,"Anzol 150mg ","Tab","10's",85,50.58,{"$f":"100-ES12/ER12*100","v":40.494117647058822},"Indus Pharma",null,null,null,null,null,null,null,null,null,null,null,null,null,null,null,null,null,null,null,null,null,null,null,null,null,null,null,null,null,null,null,null,null,null,null,null,null,null,null,null,null,null,null,null,null,null,null,null,null,null,null,null,null,null,null,null,null,null,null,null,null,null,null,null,null,null,null,null,null,null,null,null,null,null,null,null,null,null,null,null,null,null,null,null,null,null,null,null,null,null,null,null,null,null,null,null,null,null,"S-Cid 150mg","Tab","10's",56,20.5,{"$f":"100-IT12/IS12*100","v":63.392857142857146},"3S Pharma",null,null,null,null,null,null,null,null,null,null,null,null,null,null,"Ranulcid ","Tab","10's",68.400000000000006,53.42,{"$f":"100-JO12/JN12*100","v":21.900584795321649},"Martin Dow",null,null,null,null,null,null,null,null,null,null,null,null,null,null,null,null,null,null,null,null,null,null,null,null,null,null,null,null,null,null,null,null,null,null,null,null,null,null,null,null,null,null,null,null,null,null,null,null,null,null,null,null,null,null,null,null,"Nitid 150mg","Tab","10's",56,18.52,{"$f":"100-LZ12/LY12*100","v":66.928571428571431},"Danas Pharma",null,null,null,null,null,null,null,null,null,null,null,null,null,null,null,null,null,null,null,null,null,null,null,null,null,null,null,null,null,null,null,null,null,null,null,"Duotec 150mg","Tab","10's",70,26,{"$f":"100-NP12/NO12*100","v":62.857142857142854},"Citi Pharma",null,null,null,null,null,null,null,null,null,null,null,null,null,null,null,null,null,null,null,null,null,null,null,null,null,null,null,null,null,null,null,null,null,null,null,null,null,null,null,null,null,null,null,null,null,null,null,null,null,"Pepticure 150mg","Tab","28's",105.49,31.75,{"$f":"100-PT12/PS12*100","v":69.90236041330931},"Nabiqasim"]
[9,"Tab","Sodamint Tablet","1000's"]
[10,"Inj.","Ranitidine 50mg/2ml","5's",null,null,null,null,null,null,null,null,null,null,null,null,null,null,null,null,null,null,null,null,null,null,null,null,null,null,null,null,null,null,null,null,null,null,null,null,null,null,null,null,null,null,null,null,null,null,null,null,null,null,null,null,null,null,null,null,null,null,null,null,null,null,null,null,null,null,null,null,null,null,null,null,null,null,null,null,null,null,null,null,null,null,null,null,null,null,null,null,null,null,null,null,null,null,null,null,null,null,"Nulcer 50mg ","Inj","5's",110,43.1,60.818181818181813,"Bosch",null,null,null,null,null,null,null,null,null,null,null,null,null,null,null,null,null,null,null,null,null,null,null,null,null,null,null,null,null,null,null,null,null,null,null,"Anzol 50mg ","Inj","10's",154.28,85.24,{"$f":"100-ES14/ER14*100","v":44.749805548353649},"Indus Pharma",null,null,null,null,null,null,null,null,null,null,null,null,null,null,null,null,null,null,null,null,null,null,null,null,null,null,null,null,null,null,null,null,null,null,null,null,null,null,null,null,null,null,null,null,null,null,null,null,null,null,null,null,null,null,null,null,null,null,null,null,null,null,null,null,null,null,null,null,null,null,null,null,null,null,null,null,null,null,null,null,null,null,null,null,null,null,null,null,null,null,null,null,null,null,null,null,null,null,null,null,null,null,null,null,null,null,null,null,null,null,null,null,null,null,null,null,null,null,null,null,null,null,null,null,null,null,null,null,null,null,null,null,null,null,null,null,null,null,null,null,null,null,null,null,null,null,null,null,null,null,null,null,null,null,null,null,null,null,null,null,null,null,null,null,null,null,null,null,null,null,null,null,null,null,null,null,null,null,null,null,null,null,null,null,null,null,null,null,null,null,null,null,null,null,null,null,null,null,null,null,null,null,null,null,null,null,null,null,null,null,null,null,null,null,null,null,null,null,null,null,null,null,null,null,null,null,null,null,null,null,null,null,null,null,null,null,null,null,null,null,null,null,null,null,null,null,null,null,null,null,null,null,null,null,null,null,null,null,null,null,null,null,null,null,null,null,null,null,null,null,null,null,null,null,null,null,null,null,null,null,null,null,null,null,null,null,null,"Peptiject ","Inj","10's",121.72,85,{"$f":"100-QA14/PZ14*100","v":30.167597765363126},"Surge Lab"]
[11,"Tab","Serratiopeptidase 5mg","20's",null,null,null,null,null,null,null,null,null,null,null,null,null,null,"Danzen 5mg","Tab","20's",135,114.75,{"$f":"100-W15/V15*100","v":15},"Helix",null,null,null,null,null,null,null,null,null,null,null,null,null,null,null,null,null,null,null,null,null,null,null,null,null,null,null,null,null,null,null,null,null,null,null,null,null,null,null,null,null,null,null,null,null,null,null,null,null,null,null,null,null,null,null,null,null,null,null,null,null,null,null,null,null,null,null,null,null,null,null,null,null,null,null,null,null,null,null,null,null,null,null,null,null,null,null,null,null,null,null,null,null,null,null,null,null,null,null,null,null,null,null,null,null,null,null,null,null,null,null,null,null,null,null,null,null,null,null,null,null,null,null,null,null,null,null,null,null,null,null,null,null,null,null,null,null,null,null,null,null,null,null,null,null,null,null,null,null,null,null,null,null,null,null,null,null,null,null,null,null,null,null,null,null,null,null,null,null,null,null,null,null,null,null,"Mirazym 5mg","Tab","20's",135,39.78,{"$f":"100-GW15/GV15*100","v":70.533333333333331},"Hiranis Pharma"]
[12,"Tab","Serratiopeptidase 10mg","20's",null,null,null,null,null,null,null,null,null,null,null,null,null,null,"Danzen DS","Tab","20's",215,182.75,15,"Helix",null,null,null,null,null,null,null,null,null,null,null,null,null,null,null,null,null,null,null,null,null,null,null,null,null,null,null,null,null,null,null,null,null,null,null,null,null,null,null,null,null,null,null,null,null,null,null,null,null,null,null,null,null,null,null,null,null,null,null,null,null,null,null,null,null,null,null,null,null,null,null,null,null,null,null,null,null,null,null,null,null,null,null,null,null,null,null,null,null,null,null,null,null,null,null,null,null,null,null,null,null,null,null,null,null,null,null,null,null,null,null,null,null,null,null,null,null,null,null,null,null,null,null,null,null,null,null,null,null,null,null,null,null,null,null,null,null,null,null,null,null,null,null,null,null,null,null,null,null,null,null,null,null,null,null,null,null,null,null,null,null,null,null,null,null,null,null,null,null,null,null,null,null,null,null,"Mirazym DS 10mg","Tab","20's",210,48,77.142857142857139,"Hiranis Pharma",null,null,null,null,null,null,null,null,null,null,null,null,null,null,null,null,null,null,null,null,null,null,null,null,null,null,null,null,null,null,null,null,null,null,null,null,null,null,null,null,null,null,null,null,null,null,null,null,null,null,null,null,null,null,null,null,null,null,null,null,null,null,null,null,null,null,null,null,null,null,null,null,null,null,null,null,null,null,null,null,null,null,null,null,null,null,null,null,null,null,null,null,null,null,null,null,null,null,null,null,null,null,null,null,null,null,null,null,null,null,null,null,null,null,null,null,null,null,null,null,null,null,null,null,null,null,null,null,null,null,null,null,null,null,null,null,null,null,null,null,null,null,null,null,null,null,null,null,null,null,null,null,null,null,null,null,null,null,null,null,null,null,null,null,null,null,null,null,null,null,null,null,null,null,null,null,null,null,null,null,null,null,null,null,null,null,null,null,null,null,null,null,null,null,null,null,"Conzyme 10mg","Tab","20's",195,148,{"$f":"100-OR16/OQ16*100","v":24.102564102564102},"Asian Contiental"]
[13,"Susp","Sucralfate 1g/5ml Suspension","60ml",null,null,null,null,null,null,null,null,null,null,null,null,null,null,null,null,null,null,null,null,null,null,null,null,null,null,null,null,null,null,null,null,null,null,null,null,null,null,null,null,null,null,null,null,null,null,null,null,null,null,null,null,null,null,null,null,null,null,null,null,null,null,null,null,null,null,null,null,null,null,null,null,null,null,null,null,null,null,null,null,null,null,null,null,null,null,null,null,null,null,null,null,null,null,null,null,null,null,null,null,null,null,null,null,null,null,null,null,null,null,null,null,"Ulsanic ","Susp","1's",131.69999999999999,100,{"$f":"100-DQ17/DP17*100","v":24.069855732725884},"Highnoon"]
[14,null,"(B) Antispasmodic/Anticholinergic"]
[15,"Tab","Hyoscine-N-Butyl Bromide 10mg OR Hyoscine-N-Butyl Bromide 10mg","100's",null,null,null,null,null,null,null,null,null,null,null,null,null,null,null,null,null,null,null,null,null,null,null,null,null,null,null,null,null,null,null,null,null,null,null,null,null,null,null,null,null,null,null,null,null,null,null,null,null,null,null,null,null,null,null,null,null,null,null,null,null,null,null,null,null,null,null,null,null,null,null,null,null,null,null,null,null,null,null,null,null,null,null,null,null,null,null,null,null,null,null,null,null,null,null,null,null,null,null,null,null,null,null,null,null,null,null,null,null,null,null,null,null,null,null,null,null,null,null,null,null,null,null,null,null,null,null,null,null,null,null,null,null,null,null,null,null,null,null,null,null,null,null,null,null,null,null,null,null,null,null,null,null,null,null,null,null,null,null,null,null,null,null,null,null,null,null,null,null,null,null,null,null,null,null,null,null,null,null,null,null,null,null,null,null,null,null,null,null,null,null,null,null,null,null,null,null,null,null,null,null,null,null,null,null,null,null,null,null,null,null,null,null,null,null,null,null,null,null,null,null,null,null,null,null,null,null,null,null,null,null,null,null,null,null,null,null,null,null,null,null,null,null,null,null,null,null,null,null,null,null,null,null,null,null,null,null,null,null,null,null,null,null,null,null,null,"Buscopan Plus","Tab","100's",390,331.5,{"$f":"100-JO19/JN19*100","v":15},"Martin Dow"]
[16,"Syp","Hyoscine-N-Butyl Bromide 10mg OR Hyoscine-N-Butyl Bromide 10mg+Metamezole 50mg","60ml"]
[17,"Tab","Mebeverine 135mg","30's",null,null,null,null,null,null,null,null,null,null,null,null,null,null,null,null,null,null,null,null,null,null,null,null,null,null,null,null,null,null,null,null,null,null,null,null,null,null,null,null,null,null,null,null,null,null,null,null,null,null,null,null,null,null,null,null,"Spasler Neo","Tab","30's",183.69,140.52600000000001,{"$f":"100-BM21/BL21*100","v":23.498285154336102},"AGP",null,null,null,null,{"$f":"100-BS21/BR21*100","v":{"$error":"#DIV/0!"}},{"$error":"#DIV/0!"},null,null,null,null,null,null,null,null,null,null,null,null,null,null,null,null,null,null,null,null,null,null,null,null,null,null,null,null,null,null,null,null,null,null,null,null,null,null,null,null,null,null,null,null,null,null,null,null,null,null,null,null,null,null,null,null,null,null,null,null,null,null,null,null,null,null,null,null,null,null,null,null,null,null,null,null,null,null,null,null,null,null,null,null,null,null,null,null,null,null,null,null,null,null,null,null,null,null,null,null,null,null,null,null,null,null,null,null,null,null,null,null,null,null,null,null,null,null,null,null,null,null,null,null,null,null,null,null,null,null,null,null,null,null,null,null,null,null,null,null,null,null,null,null,null,null,null,null,null,null,null,null,null,null,null,null,null,null,null,null,null,null,null,null,null,null,null,null,null,null,null,null,null,null,null,null,null,null,null,null,null,null,null,null,null,null,null,null,null,null,null,null,null,null,null,null,null,null,null,null,null,null,null,null,null,null,null,null,null,null,null,null,null,null,null,null,null,null,null,null,null,null,null,null,null,null,null,null,null,null,null,null,null,null,null,null,null,null,null,null,null,null,null,null,null,null,null,null,null,null,null,null,null,null,null,null,null,null,null,null,null,null,null,null,null,null,null,null,null,null,null,null,null,null,null,null,null,null,null,null,null,null,null,null,null,null,null,null,null,null,null,null,null,null,null,"Zeespa 135mg","Tab","30's",126,82.75,{"$f":"100-NI21/NH21*100","v":34.325396825396822},"Shaigan Pharma",null,null,null,null,null,null,null,"Colofac 135mg ","Tab","30's",236.84,201.31,{"$f":"100-NW21/NV21*100","v":15.001688903901368},"Abbott LAB"]
[18,"Cap","Mebeverine 200mg SR","30's",null,null,null,null,null,null,null,null,null,null,null,null,null,null,null,null,null,null,null,null,null,null,null,null,null,null,null,null,null,null,null,null,null,null,null,null,null,null,null,null,null,null,null,null,null,null,null,null,null,null,null,null,null,null,null,null,null,null,null,null,null,null,null,null,null,null,null,null,null,null,null,null,null,null,null,null,null,null,null,null,null,null,null,null,null,null,null,null,null,null,null,null,null,null,null,null,null,null,null,null,null,null,null,null,null,null,null,null,null,null,null,null,null,null,null,null,null,null,null,null,null,null,null,null,null,null,null,null,null,null,null,null,null,null,null,null,null,null,null,null,null,null,null,null,null,null,null,null,null,null,null,null,null,null,null,null,null,null,null,null,null,null,null,null,null,null,null,null,null,null,null,null,null,null,null,null,null,null,null,null,null,null,null,null,null,null,null,null,null,null,null,null,null,null,null,null,null,null,null,null,null,null,null,null,null,null,null,null,null,null,null,null,null,null,null,null,null,null,null,null,null,null,null,null,null,null,null,null,null,null,null,null,null,null,null,null,null,null,null,null,null,null,null,null,null,null,null,null,null,null,null,null,null,null,null,null,null,null,null,null,null,null,null,null,null,null,null,null,null,null,null,null,null,null,null,null,null,null,null,null,null,null,null,null,null,null,null,null,null,null,null,null,null,null,null,null,null,null,null,null,null,null,null,null,null,null,null,null,null,null,null,null,null,null,null,null,null,null,null,null,null,null,null,null,null,null,null,null,null,null,null,null,null,null,null,null,"Mebever MR 200mg ","Cap","10's",140,85,39.285714285714292,"Getz Pharma"]
[19,"Inj.","Trimethylphloroglucinol+Phloroglucinol80mg","6's",null,null,null,null,null,null,null,null,null,null,null,null,null,null,null,null,null,null,null,null,null,null,null,null,null,null,null,null,null,null,null,null,null,null,null,null,null,null,null,null,null,null,null,null,null,null,null,null,null,null,null,null,null,null,null,null,"Anafortan Plus","Inj","6's",363.2,262.41000000000003,27.750550660792939,"AGP",null,null,null,null,null,{"$f":"100-BT23/BS23*100","v":{"$error":"#DIV/0!"}},null,null,null,null,null,null,null,null,null,null,null,null,null,null,null,null,null,null,null,null,null,null,null,null,null,null,null,null,null,null,null,null,null,null,null,null,"Spasrid","inj","6's",230,125,{"$f":"100-DJ23/DI23*100","v":45.652173913043484},"BH"]
[20,"Tab","Trimethylphloroglucinol+Phloroglucinol 40mg","30's",null,null,null,null,null,null,null,null,null,null,null,null,null,null,null,null,null,null,null,null,null,null,null,null,null,null,null,null,null,null,null,null,null,null,null,null,null,null,null,null,null,null,null,null,null,null,null,null,null,null,null,null,null,null,null,null,"Anafortan Plus","Tab","30's",367.4,281.06099999999998,23.5,"AGP",null,null,null,null,null,{"$error":"#DIV/0!"}]
[21,null,"(C) Anti-Diarrhoeals"]
[22,"Susp","Kaolin Pectin","90ml"]
[23,"Sachet","ORS contains: NaCl 3.5gm, Sod. Citrate 2.9gm, KCI. 1.5gm, Dextrose Anhydrous 20gm","40's","Peditral Sach","Sachet","1's",18,13,{"$f":"100-I27/H27*100","v":27.777777777777786},"Searle Pharma",null,null,null,null,null,null,null,null,null,null,null,null,null,null,null,null,null,null,null,null,null,null,null,null,null,null,null,null,null,null,null,null,null,null,null,null,null,null,null,null,null,null,null,null,null,null,null,null,null,null,null,null,null,null,null,null,null,null,null,null,null,null,null,null,null,null,null,null,null,null,null,null,null,null,null,null,null,null,null,null,null,null,null,null,null,null,null,null,null,null,null,null,null,null,null,null,null,null,null,null,null,null,null,null,null,null,null,null,null,null,null,null,null,null,null,null,null,null,null,"Orasal-F","Sachet","20's",200,110,{"$f":"100-EE27/ED27*100","v":44.999999999999993},"Wilson's",null,null,null,null,null,null,null,null,null,null,null,null,null,null,null,null,null,null,null,null,null,null,null,null,null,null,null,null,null,null,null,null,null,null,null,null,null,null,null,null,null,null,null,null,null,null,null,null,null,null,null,null,null,null,null,null,null,null,null,null,null,null,null,null,null,null,null,null,null,null,null,null,null,null,null,null,null,null,null,null,null,null,null,null,null,null,null,null,null,null,null,"ORSK","Sachet","20's",300,155,{"$f":"100-HY27/HX27*100","v":48.333333333333329},"Kohinoor Ind",null,null,null,null,null,null,null,null,null,null,null,null,null,null,null,null,null,null,null,null,null,null,null,null,null,null,null,null,null,null,null,null,null,null,null,null,null,null,null,null,null,null,null,null,null,null,null,null,null,null,null,null,null,null,null,null,null,null,null,null,null,null,null,null,null,null,null,null,null,null,null,null,null,null,null,null,null,null,null,null,null,null,null,null,null,null,null,null,null,null,null,null,null,null,null,null,null,null,null,null,null,null,null,null,null,null,null,null,null,null,null,null,null,null,null,null,null,null,null,null,null,null,null,null,null,null,null,null,null,null,null,null,null,null,null,null,null,null,null,null,null,null,null,null,null,null,null,null,null,null,null,null,null,null,null,null,null,null,null,null,null,null,null,null,null,null,null,null,null,null,null,null,null,null,null,null,null,null,null,null,null,null,null,null,null,null,null,null,null,"Oragil ","Sachet","20's",220,129,{"$f":"100-PM27/PL27*100","v":41.363636363636367},"Glitz Pharma",null,null,null,null,null,null,null,null,null,null,null,null,null,null,"Valosal ","Sachet","20's",200,164.9,{"$f":"100-QH27/QG27*100","v":17.549999999999997},"Valor Pharma"]
[24,"Powder","Dioctahedral Smectite 3 gm ","Sachet",null,null,null,null,null,null,null,null,null,null,null,null,null,null,null,null,null,null,null,null,null,"Diosecta 3gm","Sachet","30's",318,237.86,{"$f":"100-AD28/AC28*100","v":25.201257861635213},"W.Wards",null,null,null,null,null,null,null,null,null,null,null,null,null,null,null,null,null,null,null,null,null,"Doctile Sach","Sachet","30's",333.81,229.5,31.248314909679166,"Sami"]
[25,"Tab","Diphenoxylate HCL 2.5 mg+Atropine Sulphate 25 mcg","10's"]
[26,"Susp","Zinc Sulphate 20mg/5ml Suspension","60ml","Diazinc 20mg ","Syrup","60ml",62,35,43.548387096774185,"Searle Pharma",null,null,null,null,null,null,null,null,null,null,null,null,null,null,null,null,null,null,null,null,null,null,null,null,null,null,null,null,null,null,null,null,null,null,null,null,null,null,null,null,null,null,null,null,null,null,null,null,null,null,null,null,null,null,null,null,null,null,null,null,null,null,null,null,null,null,null,null,null,null,null,null,null,null,null,null,null,null,null,null,null,null,null,null,null,null,null,null,null,null,null,null,null,null,null,null,null,null,"ZincDay","Syp","60ml",60.86,35.700000000000003,{"$f":"100-DJ30/DI30*100","v":41.340782122905019},"BH",null,null,null,null,null,null,null,null,null,null,null,null,null,null,null,null,null,null,null,null,null,null,null,null,null,null,null,null,"Zink-UP OD","Susp","60ml",69,43.99,{"$f":"100-ES30/ER30*100","v":36.246376811594203},"Indus Pharma",null,null,null,null,null,null,null,null,null,null,null,null,null,null,null,null,null,null,null,null,null,null,null,null,null,null,null,null,null,null,null,null,null,null,null,null,null,null,null,null,null,null,null,null,null,null,null,null,null,null,null,null,null,null,null,null,null,null,null,null,null,null,null,null,null,null,null,null,null,null,null,null,null,null,null,null,null,"ZincFort ","Susp","60ml",60,28.75,{"$f":"100-HY30/HX30*100","v":52.083333333333329},"Sims Pharma",null,null,null,null,null,null,null,null,null,null,null,null,null,null,null,null,null,null,null,null,null,null,null,null,null,null,null,null,null,null,null,null,null,null,null,null,null,null,null,null,null,null,null,null,null,null,null,null,null,null,null,null,null,null,null,null,null,null,null,null,null,null,null,null,null,null,null,null,null,null,null,null,null,null,null,null,null,null,null,null,null,null,null,null,null,null,null,null,null,null,null,null,null,null,null,null,null,null,null,null,null,null,null,null,null,null,null,null,null,null,null,null,null,null,null,null,null,null,null,null,null,null,null,null,null,null,null,null,null,null,null,null,null,null,null,null,null,null,null,null,null,null,null,null,null,null,null,null,null,null,null,null,null,null,null,null,null,null,null,null,null,"Orazinc ","Syp","60ml",60,49,{"$f":"100-OK30/OJ30*100","v":18.333333333333329},"Amson Vaccines & Pharma",null,null,null,null,null,null,null,null,null,null,null,null,null,null,null,null,null,null,null,null,null,"Ziglit ","Susp","60ml",50,28.5,{"$f":"100-PM30/PL30*100","v":43.000000000000007},"Glitz Pharma"]
[27,null,"(D) Anti-Amoebics"]
["28'","Tab ","Diloxanide Fuorate 250mg + Metronidazole 200mg","15's"]
[28,"Tab ","Diloxanide Fuorate 500mg + Metronidazole 400mg","15's",null,null,null,null,null,null,null,null,null,null,null,null,null,null,null,null,null,null,null,null,null,null,null,null,null,null,null,null,null,null,null,null,null,null,null,null,null,null,null,null,null,null,null,null,null,null,null,null,null,null,null,null,null,null,null,null,null,null,null,null,null,null,null,null,null,null,null,null,null,null,null,null,null,null,null,null,null,null,null,null,null,null,null,null,null,null,null,null,null,null,null,null,null,null,null,null,null,null,null,null,null,null,null,null,null,null,null,null,null,null,null,null,null,null,null,null,null,null,null,null,null,null,null,null,null,null,null,null,null,null,null,null,null,null,null,null,null,null,null,null,null,null,null,null,null,null,null,null,null,null,null,null,null,null,null,null,null,null,null,null,null,null,null,null,null,null,null,null,null,null,null,null,null,null,null,null,null,null,null,null,null,null,null,null,null,null,null,null,null,null,null,null,null,null,null,null,null,null,null,null,null,null,null,null,null,null,null,null,null,null,null,null,null,null,null,null,null,null,null,null,null,null,null,null,null,null,null,null,null,null,null,null,null,null,null,null,null,null,null,null,null,null,null,null,null,null,null,null,null,null,null,null,null,null,null,null,null,null,null,null,null,null,null,null,null,null,null,null,null,null,null,null,null,null,null,null,null,null,null,null,null,null,null,null,null,null,null,null,null,null,null,null,null,null,null,null,null,null,null,null,null,null,null,null,null,null,null,null,null,null,null,null,null,null,null,null,null,null,null,null,null,null,null,null,null,null,null,null,null,null,null,null,null,null,null,null,null,null,null,null,null,null,null,null,null,null,null,null,null,null,null,null,null,null,null,null,null,null,null,null,null,null,null,null,null,null,null,null,null,null,null,null,null,null,null,null,null,null,"Entamizole DS","Tab","15's",76.62,65.13,{"$f":"100-NW33/NV33*100","v":14.996084573218496},"Abbott LAB"]
[29,"Susp","Diloxanidefuroate 250mg + Metronidazole 200mg/10ml","60ml",null,null,null,null,null,null,null,null,null,null,null,null,null,null,null,null,null,null,null,null,null,null,null,null,null,null,null,null,null,null,null,null,null,null,null,null,null,null,null,null,null,null,null,null,null,null,null,null,null,null,null,null,null,null,null,null,null,null,null,null,null,null,null,null,null,null,null,null,null,null,null,null,null,null,null,null,null,null,null,null,null,null,null,null,null,null,null,null,null,null,null,null,null,null,null,null,null,null,null,null,null,null,null,null,null,null,null,null,null,null,null,null,null,null,null,null,null,null,null,null,null,null,null,null,null,null,null,null,null,null,null,null,null,null,null,null,null,null,null,null,null,null,null,null,null,null,null,null,null,null,null,null,null,null,null,null,null,null,null,null,null,null,null,null,null,null,null,null,null,null,null,null,null,null,null,null,null,null,null,null,null,null,null,null,null,null,null,null,null,null,null,null,null,null,null,null,null,null,null,null,null,null,null,null,null,null,null,null,null,null,null,null,null,null,null,null,null,null,null,null,null,null,null,null,null,null,null,null,null,null,null,null,null,null,null,null,null,null,null,null,null,null,null,null,null,null,null,null,null,null,null,null,null,null,null,null,null,null,null,null,null,null,null,null,null,null,null,null,null,null,null,null,null,null,null,null,null,null,null,null,null,null,null,null,null,null,null,null,null,null,null,null,null,null,null,null,null,null,null,null,null,null,null,null,null,null,null,null,null,null,null,null,null,null,null,null,null,null,null,null,null,null,null,null,null,null,null,null,null,null,null,null,null,null,null,null,null,null,null,null,null,null,null,null,null,null,null,null,null,null,null,null,null,null,null,null,null,null,null,null,null,null,null,null,null,null,null,null,null,null,null,null,null,null,null,null,null,null,"Entamizole ","Susp","90ml",55.72,47.36,15.003589375448669,"Abbott LAB"]
[30,"Tab ","Metronidazole 200mg ","200's","Metrozine 200mg","Tab","100's",113,96.05,15,"Searle Pharma"]
[31,"Tab ","Metronidazole 400mg","200's","Metrozine 400mg","Tab","100's",169,125,26.035502958579883,"Searle Pharma",null,null,null,null,null,null,null,null,null,null,null,null,null,null,null,null,null,null,null,null,null,null,null,null,null,null,null,null,null,null,null,null,null,null,null,null,null,null,null,null,null,null,null,null,null,null,null,null,null,null,null,null,null,null,null,null,null,null,null,null,null,null,null,null,null,null,null,null,null,null,null,null,null,null,null,null,null,null,null,null,null,null,null,null,null,null,null,null,null,null,null,null,null,null,null,null,null,null,null,null,null,null,null,null,null,null,null,null,null,null,null,null,null,null,null,null,null,null,null,null,null,null,null,null,null,null,null,null,null,null,null,null,null,null,null,null,null,null,null,null,null,null,null,null,null,null,null,null,null,null,null,null,null,null,null,null,null,null,null,null,null,null,null,null,null,null,null,null,null,null,null,null,null,null,null,null,null,null,null,null,null,null,null,null,null,null,null,null,null,null,null,null,null,null,null,null,null,null,null,null,null,null,null,null,null,null,null,null,null,null,null,null,null,null,null,null,null,null,null,null,null,null,null,null,null,null,null,null,null,null,null,null,null,null,null,null,null,null,null,null,null,null,null,null,null,"Flagyl 400mg ","Tab","200's",315.10000000000002,267.83,{"$f":"100-JA36/IZ36*100","v":15.001586797841966},"Sanofi Aventis",null,null,null,null,null,null,null,null,null,null,null,null,null,null,null,null,null,null,null,null,null,null,null,null,null,null,null,null,null,null,null,null,null,null,null,null,null,null,null,null,null,null,null,null,null,null,null,null,null,null,null,null,null,null,null,null,"Gramex 400mg ","Tab","100's",162.85,124.58,{"$f":"100-LL36/LK36*100","v":23.500153515505062},"Platinum Pharma",null,null,null,null,null,null,null,null,null,null,null,null,null,null,null,null,null,null,null,null,null,null,null,null,null,null,null,null,null,null,null,null,null,null,null,null,null,null,null,null,null,null,null,null,null,null,null,null,null,null,null,null,null,null,null,null,null,null,null,null,null,null,null,null,null,null,null,null,null,null,null,null,null,null,null,null,null,null,null,null,null,null,null,null,null,null,null,null,null,null,null,null,null,null,null,null,null,null,"Granid ","Tab","100's",150,127.5,{"$f":"100-PM36/PL36*100","v":15},"Glitz Pharma"]
[32,"Susp","Metronidazole 200mg/5ml","60ml","Metrozine Sus","Susp","90ml",51,38.15,25.196078431372541,"Searle Pharma",null,null,null,null,null,null,null,null,null,null,null,null,null,null,null,null,null,null,null,null,null,null,null,null,null,null,null,null,null,null,null,null,null,null,null,null,null,null,null,null,null,null,null,null,null,null,null,null,null,null,null,null,null,null,null,null,null,null,null,null,null,null,null,null,null,null,null,null,null,null,null,null,null,null,null,null,null,null,null,null,null,null,null,null,null,null,null,null,null,null,null,null,null,null,null,null,null,null,null,null,null,null,null,null,null,null,null,null,null,null,null,null,null,null,null,null,null,null,null,null,null,null,null,null,null,null,null,null,null,null,null,null,null,null,null,null,null,null,null,null,null,null,null,null,null,null,null,null,null,null,null,null,null,null,null,null,null,null,null,null,null,null,null,null,null,null,null,null,null,null,null,null,null,null,null,null,null,null,null,null,null,null,null,null,null,null,null,null,null,null,null,null,null,null,null,null,null,null,null,null,null,null,null,null,null,null,null,null,null,null,null,null,null,null,null,null,null,null,null,null,null,null,null,null,null,null,null,null,null,null,null,"Metrolis 200mg/5ml","Susp","60ml",34.29,29.15,{"$f":"100-IM37/IL37*100","v":14.989792942548846},"Tiltis Pharma",null,null,null,null,null,null,null,null,null,null,null,null,null,null,null,null,null,null,null,null,null,null,null,null,null,null,null,null,null,null,null,null,null,null,null,null,null,null,null,null,null,null,null,null,null,null,null,null,null,null,null,null,null,null,null,null,null,null,null,null,null,null,null,null,null,null,null,null,null,null,null,null,null,null,null,null,null,null,null,null,null,null,null,null,null,null,null,null,null,null,null,null,null,null,null,null,null,null,null,null,null,null,null,null,null,null,null,null,null,null,null,null,null,null,null,null,null,null,null,null,null,null,null,null,null,null,null,null,null,null,null,null,null,null,null,null,null,null,null,null,null,null,null,null,null,null,null,null,null,null,null,null,null,null,null,null,null,null,null,null,null,null,null,null,null,null,null,null,null,null,null,null,null,null,null,null,null,null,null,null,null,null,null,null,null,null,null,null,null,null,null,null,null,null,null,null,null,null,null,null,null,null,null,null,null,null,null,null,null,null,"Insta Care ","Susp","60ml",32,24.64,{"$f":"100-QV37/QU37*100","v":23},"Care Pharma"]
[33,"Infusion","Metronidazole 500mg/100ml","100ml","Metrozine IV RFU","INF","100ml",79,63.79,19.25316455696202,"Searle Pharma",null,null,null,null,null,null,null,null,null,null,null,null,null,null,null,null,null,null,null,null,null,null,null,null,null,null,null,null,null,null,null,null,null,null,null,null,null,null,null,null,null,null,null,null,null,null,null,null,null,null,null,null,null,null,null,null,null,null,null,null,null,null,null,null,null,null,null,null,null,null,null,null,null,null,null,null,null,null,null,null,null,null,null,null,null,null,null,null,null,null,null,"Flazol 500mg/100ml","Inj","1's",79.12,49.9,{"$f":"100-DC38/DB38*100","v":36.931243680485352},"Bosch",null,null,null,null,null,null,null,null,null,null,null,null,null,null,null,null,null,null,null,null,null,null,null,null,null,null,null,null,null,null,null,null,null,null,null,null,null,null,null,null,null,null,null,null,null,null,null,null,null,null,null,null,null,null,null,null,null,null,null,null,null,null,null,null,null,null,null,null,null,null,null,null,null,null,null,null,null,null,null,null,null,null,null,null,null,null,null,null,null,null,null,null,null,null,null,null,null,null,null,null,null,null,null,null,null,null,null,null,null,null,null,null,null,null,null,null,null,null,null,"Zee Met","Inf","100ml",67,28.25,{"$f":"100-HY38/HX38*100","v":57.835820895522389},"Shahzeb Pharma",null,null,null,null,null,null,null,null,null,null,null,null,null,null,null,null,null,null,null,null,null,"Flagyl 500mg","Inj","100ml",93.94,79.84,{"$f":"100-JA38/IZ38*100","v":15.009580583351067},"Sanofi Aventis",null,null,null,null,null,null,null,null,null,null,null,null,null,null,null,null,null,null,null,null,null,null,null,null,null,null,null,null,null,null,null,null,null,null,null,null,null,null,null,null,null,null,null,null,null,null,null,null,null,null,null,null,null,null,null,null,null,null,null,null,null,null,null,null,null,null,null,null,null,null,null,null,null,null,null,null,null,null,null,null,null,null,null,null,null,null,null,null,null,null,null,null,null,null,null,null,null,null,null,null,null,null,null,null,null,null,null,null,null,null,null,null,"Nida 500mg","Inj","1's",78,47,{"$f":"100-NP38/NO38*100","v":39.743589743589745},"GMP Pharma"]
[34,null,"(E) Anthelmentics"]
[35,"Susp","Albendazole 100mg/5ml","10ml",null,null,null,null,null,null,null,null,null,null,null,null,null,null,null,null,null,null,null,null,null,null,null,null,null,null,null,null,null,null,null,null,null,null,null,null,null,null,null,null,null,null,null,null,null,null,null,null,null,null,null,null,null,null,null,null,null,null,null,null,null,null,null,null,null,null,null,null,null,null,null,null,null,null,null,null,null,null,null,null,null,null,null,null,null,null,null,null,null,null,null,null,null,null,null,null,null,null,null,null,null,null,null,null,null,null,null,null,null,null,null,null,null,null,null,null,null,null,null,null,null,null,null,null,null,null,null,null,null,null,null,null,null,null,null,null,null,null,null,null,null,null,null,null,null,null,null,null,null,null,null,null,null,null,null,null,null,null,null,null,null,null,null,null,null,null,null,null,null,null,null,null,null,null,null,null,null,null,null,null,null,null,null,null,null,null,null,null,null,null,null,null,null,null,null,null,null,null,null,null,null,null,null,null,null,null,null,null,null,null,null,null,null,null,null,null,null,null,null,null,null,null,null,null,null,null,null,null,null,null,null,null,null,null,null,null,null,null,null,null,null,null,null,null,null,null,null,null,null,null,null,null,null,null,null,null,null,null,null,null,null,null,null,null,null,null,null,null,null,null,null,null,null,null,null,null,null,null,null,null,null,null,null,null,null,null,null,null,null,null,null,null,null,null,"Zentel ","Susp","1's",22.75,18.760000000000002,{"$f":"100-KQ40/KP40*100","v":17.538461538461533},"Gsk"]
[36,"Tab","Albendazole 200mg","2's",null,null,null,null,null,null,null,null,null,null,null,null,null,null,null,null,null,null,null,null,null,null,null,null,null,null,null,null,null,null,null,null,null,null,null,null,null,null,null,null,null,null,null,null,null,null,null,null,null,null,null,null,null,null,null,null,null,null,null,null,null,null,null,null,null,null,null,null,null,null,null,null,null,null,null,null,null,null,null,null,null,null,null,null,null,null,null,null,null,null,null,null,null,null,null,null,null,null,null,null,null,null,null,null,null,null,null,null,null,null,null,null,null,null,null,null,null,null,null,null,null,null,null,null,null,null,null,null,null,null,null,null,null,null,null,null,null,null,null,null,null,null,null,null,null,null,null,null,null,null,null,null,null,null,null,null,null,null,null,null,null,null,null,null,null,null,null,null,null,null,null,null,null,null,null,null,null,null,null,null,null,null,null,null,null,null,null,null,null,"Benda 200mg","Tab","2's",14.45,14,{"$f":"100-GP41/GO41*100","v":3.1141868512110591},"Pharmedic",null,null,null,null,null,null,null,null,null,null,null,null,null,null,null,null,null,null,null,null,null,null,null,null,null,null,null,null,null,null,null,null,null,null,null,null,null,null,null,null,null,null,null,null,null,null,null,null,null,null,null,null,null,null,null,null,null,null,null,null,null,null,null,null,null,null,null,null,null,null,null,null,null,null,null,null,null,null,null,null,null,null,null,null,null,null,null,null,null,null,null,null,null,null,null,null,null,null,"Zentel ","Tab","2's",20.94,17.260000000000002,17.574021012416424,"Gsk",null,null,null,null,null,null,null,null,null,null,null,null,null,null,null,null,null,null,null,null,null,null,null,null,null,null,null,null,null,null,null,null,null,null,null,null,null,null,null,null,null,null,null,null,null,null,null,null,null,null,null,null,null,null,null,null,null,null,null,null,null,null,null,null,null,null,null,null,null,null,null,null,null,null,null,null,null,null,null,null,null,null,null,null,null,null,null,null,null,null,null,null,null,null,null,null,null,null,null,null,null,null,null,null,null,null,null,null,null,null,null,null,null,null,null,null,null,null,null,"Aliz ","Tab","2's",17,13.95,{"$f":"100-PM41/PL41*100","v":17.941176470588232},"Glitz Pharma",null,null,null,null,null,null,null,null,null,null,null,null,null,null,"Vapalac ","Tab","2's",10,8.25,{"$f":"100-QH41/QG41*100","v":17.5},"Valor Pharma"]
[37,"Tab ","Mebendazole 100mg","30's",null,null,null,null,null,null,null,null,null,null,null,null,null,null,null,null,null,null,null,null,null,null,null,null,null,null,null,null,null,null,null,null,null,null,null,null,null,null,null,null,null,null,null,null,null,null,null,null,null,null,null,null,null,null,null,null,null,null,null,null,null,null,null,null,null,null,null,null,null,null,null,null,null,null,null,null,null,null,null,null,null,null,null,null,"Vermox 100mg ","Tab","30's",269.20999999999998,205.95,{"$f":"100-CO42/CN42*100","v":23.498384161063854},"Aspin Pharma",null,null,null,null,null,null,null,null,null,null,null,null,null,null,null,null,null,null,null,null,null,null,null,null,null,null,null,null,null,null,null,null,null,null,null,null,null,null,null,null,null,null,null,null,null,null,null,null,null,null,null,null,null,null,null,null,null,null,null,null,null,null,null,null,null,null,null,null,null,null,null,null,null,null,null,null,null,null,null,null,null,null,null,null,null,null,null,null,null,null,null,null,null,null,null,null,null,null,null,null,null,null,null,null,null,null,null,null,null,null,null,null,null,null,null,null,null,null,null,null,null,null,null,null,null,null,null,null,null,null,null,null,null,null,null,null,null,null,null,null,null,null,null,null,null,null,null,null,null,null,null,null,null,null,null,null,null,null,null,null,null,null,null,null,null,null,null,null,null,null,null,null,null,null,null,null,null,null,null,null,null,null,null,null,null,null,null,null,null,null,null,null,null,null,null,null,null,null,null,null,null,null,null,null,null,null,null,null,null,null,null,null,null,null,null,null,null,null,null,null,null,null,null,null,null,null,null,null,null,null,null,null,null,null,null,null,null,null,null,null,null,null,null,null,null,null,null,null,null,null,null,null,null,null,null,null,null,null,null,null,null,null,null,null,null,null,null,null,null,null,null,null,null,null,null,null,null,null,null,null,null,null,null,null,null,null,null,null,null,null,null,null,null,null,null,null,null,null,null,null,null,null,null,null,null,null,null,null,null,null,null,null,null,null,null,null,null,null,null,null,null,null,null,null,null,null,null,null,null,null,null,null,null,null,null,null,null,null,null,null,null,null,null,null,null,null,null,null,null,null,"Mendazole 100mg","Tab","60's",175,144.29,17.548571428571435,"Valor Pharma"]
[38,"Susp","Mebendazole 100mg/5ml","30ml",null,null,null,null,null,null,null,null,null,null,null,null,null,null,null,null,null,null,null,null,null,"Vermol Susp","Susp","30ml",40,29.92,{"$f":"100-AD43/AC43*100","v":25.200000000000003},"W.Wards",null,null,null,null,null,null,null,null,null,null,null,null,null,null,null,null,null,null,null,null,null,null,null,null,null,null,null,null,null,null,null,null,null,null,null,null,null,null,null,null,null,null,null,null,null,null,null,null,null,null,null,null,null,null,null,null,"Vermox ","Syp","30ml",41.41,35.200000000000003,14.996377686549138,"Aspin Pharma"]
[39,"Tab ","Mebendazole 500 mg","12's",null,null,null,null,null,null,null,null,null,null,null,null,null,null,null,null,null,null,null,null,null,"Vermol SD","Tab","1's",21.5,16.09,25.162790697674424,"W.Wards",null,null,null,null,null,null,null,null,null,null,null,null,null,null,null,null,null,null,null,null,null,null,null,null,null,null,null,null,null,null,null,null,null,null,null,null,null,null,null,null,null,null,null,null,null,null,null,null,null,null,null,null,null,null,null,null,"Vermox 500mg ","Tab","12's",269.20999999999998,212.81,20.950187585899471,"Aspin Pharma",null,null,null,null,null,null,null,null,null,null,null,null,null,null,null,null,null,null,null,null,null,null,null,null,null,null,null,null,null,null,null,null,null,null,null,null,null,null,null,null,null,null,null,null,null,null,null,null,null,null,null,null,null,null,null,null,null,null,null,null,null,null,null,null,null,null,null,null,null,null,null,null,null,null,null,null,null,null,null,null,null,null,null,null,null,null,null,null,null,null,null,null,null,null,null,null,null,null,null,null,null,null,null,null,null,null,null,null,null,null,null,null,null,null,null,null,null,null,null,null,null,null,null,null,null,null,null,null,null,null,null,null,null,null,null,null,null,null,null,null,null,null,null,null,null,null,null,null,null,null,null,null,null,null,null,null,null,null,null,null,null,null,null,null,null,null,null,null,null,null,null,null,null,null,null,null,null,null,null,null,null,null,null,null,null,null,null,null,null,null,null,null,null,null,null,null,null,null,null,null,null,null,null,null,null,null,null,null,null,null,null,null,null,null,null,null,null,null,null,null,null,null,null,null,null,null,null,null,null,null,null,null,null,null,null,null,null,null,null,null,null,null,null,null,null,null,null,null,null,null,null,null,null,null,null,null,null,null,null,null,null,null,null,null,null,null,null,null,null,null,null,null,null,null,null,null,null,null,null,null,null,null,null,null,null,null,null,null,null,null,null,null,null,null,null,null,null,null,null,null,null,null,null,null,null,null,null,null,null,null,null,null,null,null,null,null,null,null,null,null,null,null,null,null,null,null,null,null,null,null,null,null,null,null,null,null,null,null,null,null,null,null,null,null,null,null,null,null,null,null,"Mendazole 500mg","Tab","1's",15,12.37,{"$f":"100-QH44/QG44*100","v":17.533333333333331},"Valor Pharma"]
[40,null,"(F) Laxatives/Purgatives/Lubricants/"]
[41,"Tab","Bisacodyl 5mg","100's"]
[42,"Cap","Calcium Dobesilate 500mg","30's"]
[43,"Liq","Kleen Enema/Instant/Enema Ready Liq. Sod. Bisulphate 19.2mg. Sod. Phosphate 7.2mg/120ml","120ml"]
[44,"Susp","Lactulose 3.35mg/5ml ","120ml",null,null,null,null,null,null,null,null,null,null,null,null,null,null,null,null,null,null,null,null,null,null,null,null,null,null,null,null,null,null,null,null,null,null,null,null,null,null,null,null,null,null,null,null,null,null,null,null,null,null,null,null,null,null,null,null,null,null,null,null,null,null,null,null,null,null,null,null,null,null,null,null,null,null,null,null,null,null,null,null,null,null,null,null,null,null,null,null,null,null,null,null,null,null,null,null,null,null,null,null,null,null,null,null,null,null,null,null,null,null,null,null,null,null,null,null,null,null,null,null,null,null,null,null,null,null,null,null,null,null,null,null,null,null,null,null,null,null,null,null,null,null,null,null,null,null,null,null,null,null,null,null,null,null,null,null,null,null,null,null,null,null,null,null,null,null,null,null,null,null,null,null,null,null,null,null,null,null,null,null,null,null,null,null,null,null,null,null,null,null,null,null,null,null,null,null,null,null,null,null,null,null,null,null,null,null,null,null,null,null,null,null,null,null,null,null,null,null,null,null,null,null,null,null,null,null,null,null,null,null,null,null,null,null,null,null,null,null,null,null,null,null,null,null,null,null,null,null,null,null,null,null,null,null,null,null,null,null,null,null,null,null,null,null,null,null,null,null,null,null,null,null,null,null,null,null,null,null,null,null,"B-lact ","Syp","120ml",154.63999999999999,89,{"$f":"100-KC49/KB49*100","v":42.446973616140703},"Brooks",null,null,null,null,null,null,null,null,null,null,null,null,null,null,null,null,null,null,null,null,null,null,null,null,null,null,null,null,null,null,null,null,null,null,null,null,null,null,null,null,null,null,null,null,null,null,null,null,null,"Lilac ","Syp","120ml",150,88.99,40.673333333333339,"Getz Pharma",null,null,null,null,null,null,null,null,null,null,null,null,null,null,null,null,null,null,null,null,null,null,null,null,null,null,null,null,null,null,null,null,null,null,null,"Duphalac","Syp","120ml",170.92,138,{"$f":"100-NW49/NV49*100","v":19.260472735782812},"Abbott LAB",null,null,null,null,null,null,null,null,null,null,null,null,null,null,"Kolac","Syp","120ml",148,99.38,{"$f":"100-OR49/OQ49*100","v":32.851351351351354},"Asian Contiental",null,null,null,null,null,null,null,null,null,null,null,null,null,null,null,null,null,null,null,null,null,null,null,null,null,null,null,null,null,null,null,null,null,null,null,null,null,null,null,null,null,null,null,null,null,null,null,null,null,"Lactocare","Susp","120ml",170,98,{"$f":"100-QV49/QU49*100","v":42.352941176470594},"Care Pharma"]
[45,"Liq","Magnesium Hydroxide 75% V/V + Liq Paraffin 25 % V/ V","120ml",null,null,null,null,null,null,null,null,null,null,null,null,null,null,null,null,null,null,null,null,null,null,null,null,null,null,null,null,null,null,null,null,null,null,null,null,null,null,null,null,null,null,null,null,null,null,null,null,null,null,null,null,null,null,null,null,null,null,null,null,null,null,null,null,null,null,null,null,null,null,null,null,null,null,null,null,null,null,null,null,null,null,null,null,null,null,null,null,null,null,null,null,null,null,null,null,null,null,null,null,null,null,null,null,null,null,null,null,null,null,null,null,null,null,null,null,null,null,null,null,null,null,null,null,null,null,null,null,null,null,null,null,null,null,null,null,null,null,null,null,null,null,null,null,null,null,null,null,null,null,null,null,null,null,null,null,null,null,null,null,null,null,null,null,null,null,null,null,null,null,null,null,null,null,null,null,null,null,null,null,null,null,null,null,null,null,null,null,null,null,null,null,null,null,null,null,null,null,null,null,null,null,null,null,null,null,null,null,null,null,null,null,null,null,null,null,null,null,null,null,null,null,null,null,null,null,null,null,null,null,null,null,null,null,null,null,null,null,null,null,null,null,null,null,null,null,null,null,null,null,null,null,null,null,null,null,null,null,null,null,null,null,null,null,null,null,null,null,null,null,null,null,null,null,null,null,null,null,null,null,null,null,null,null,null,null,null,null,null,null,null,null,null,null,null,null,null,null,null,null,null,null,null,null,null,null,null,null,null,null,null,null,null,null,null,null,null,null,null,null,null,null,null,null,null,null,null,null,null,null,null,null,null,null,null,null,null,null,null,null,null,null,null,null,null,null,null,null,null,null,null,null,null,null,null,null,null,null,null,null,null,null,null,null,null,null,null,null,null,null,null,null,null,null,null,null,null,null,"Cremafin ","Susp","120ml",36.42,30.96,14.991762767710043,"Abbott LAB"]
[46,"Drops","Sod. Picosuphate 7.5mg","15ml",null,null,null,null,null,null,null,null,null,null,null,null,null,null,null,null,null,null,null,null,null,null,null,null,null,null,null,null,null,null,null,null,null,null,null,null,null,null,null,null,null,null,null,null,null,null,null,null,null,null,null,null,null,null,null,null,null,null,null,null,null,null,null,null,null,null,null,null,null,null,null,null,null,null,null,null,null,null,null,null,null,null,null,null,null,null,null,null,null,null,null,null,null,null,null,null,null,null,null,null,null,null,null,null,null,null,null,null,null,null,null,null,"Skilax ","Drop","1'S",36,29,{"$f":"100-DQ51/DP51*100","v":19.444444444444443},"Highnoon"]
[47,"Supos","Glycerine Suppository(Adult& Child)","12's"]
[48,null,"(G) Drugs Acting on Liver:"]
[49,"Infusion","Betaine Glucourinate, Diethanolamine Gluconate & Nicotinamide","10ml"]
[50,"Syp","Betaine Glucourinate, Diethanolamine Gluconate & Nicotinamide","60ml"]
[51,"Infusion","Ornithine Aspartate 500mg/5ml.","5ml/Amp"]
[52,"Syp","Ornithine Aspartate 60mg, Nicotinamide 4.8mg, Riboflavin-5 Phosphate Sod. 0.153mg/ml","120ml",null,null,null,null,null,null,null,null,null,null,null,null,null,null,null,null,null,null,null,null,null,null,null,null,null,null,null,null,null,null,null,null,null,null,null,null,null,null,null,null,null,null,null,null,null,null,null,null,null,null,null,null,null,null,null,null,null,null,null,null,null,null,null,null,null,null,null,null,null,null,null,null,null,null,null,null,null,null,null,null,null,null,null,null,null,null,null,null,null,null,null,null,null,null,null,null,null,null,null,null,null,null,null,null,null,null,null,null,null,null,null,null,null,null,null,null,null,null,null,null,null,null,null,null,null,null,null,null,null,null,null,null,null,null,null,null,null,null,null,null,null,null,null,null,null,null,null,null,null,null,null,null,null,null,null,null,null,null,null,null,null,null,null,null,null,null,null,null,null,null,null,null,null,null,null,null,null,null,null,null,null,null,null,null,null,null,null,null,null,null,null,null,null,null,null,null,null,null,null,null,null,null,null,null,null,null,null,null,null,null,null,null,null,null,null,null,null,null,null,null,null,null,null,null,null,null,null,null,null,null,null,null,null,null,null,null,null,null,null,null,null,null,null,null,null,null,null,null,null,null,null,null,null,null,null,null,null,null,null,null,null,null,null,null,null,null,null,null,null,null,null,null,null,null,null,null,null,null,null,null,"Hepa--Merz ","Syp","120ml",150.94999999999999,112,{"$f":"100-KC57/KB57*100","v":25.803246107982773},"Brooks"]
[53,"Tab","Pancreatin 210 P.U. + Bromelain 35,000 PU, Dimethylopysiloxane 50mg+Sodium Dehydrocholate 20mg + Metoclopramide 6mg","30's"]
[54,"Syp","Silymarine ","60ml",null,null,null,null,null,null,null,null,null,null,null,null,null,null,null,null,null,null,null,null,null,null,null,null,null,null,null,null,null,null,null,null,null,null,null,null,null,null,null,null,null,null,null,null,null,null,null,null,null,null,null,null,null,null,null,null,null,null,null,null,null,null,null,null,null,null,null,null,null,null,null,null,null,null,null,null,null,null,null,null,null,null,null,null,null,null,null,null,null,null,null,null,null,null,null,null,null,null,null,null,null,null,null,null,null,null,null,null,null,null,null,null,null,null,null,null,null,null,null,null,null,null,null,null,null,null,null,null,null,null,null,null,null,null,null,null,null,null,null,null,null,null,null,null,null,null,null,null,null,null,null,null,null,null,null,null,null,null,null,null,null,null,null,null,null,null,null,null,null,null,null,null,null,null,null,null,null,null,null,null,null,null,null,null,null,null,null,null,null,null,null,null,null,null,null,null,null,null,null,null,null,null,null,null,null,null,null,null,null,null,null,null,null,null,null,null,null,null,null,null,null,null,null,null,null,null,null,null,null,null,null,null,null,null,null,null,null,null,null,null,null,null,null,null,null,null,null,null,null,null,null,null,null,null,null,null,null,null,null,null,null,null,null,null,null,null,null,null,null,null,null,null,null,null,null,null,null,null,null,null,null,null,null,null,null,null,null,null,null,null,null,null,null,null,null,null,null,null,null,null,null,null,null,null,null,null,null,null,null,null,null,null,null,null,null,null,null,null,null,null,null,null,null,null,null,null,null,null,null,null,null,null,null,null,null,null,null,null,null,null,null,null,null,null,null,null,null,null,null,null,null,null,null,null,null,null,null,null,null,null,null,null,null,null,null,null,null,null,null,null,null,null,null,null,null,null,null,null,"Silliver ","Susp","60ml",77.52,65.89,{"$f":"100-NW59/NV59*100","v":15.002579979360164},"Abbott LAB",null,null,null,null,null,null,null,"Silimarin","Syp","60ml",62.3,52.96,{"$f":"100-OK59/OJ59*100","v":14.991974317817011},"Amson Vaccines & Pharma"]
[55,"Tab","Silymarine  200 mg ","30's",null,null,null,null,null,null,null,null,null,null,null,null,null,null,null,null,null,null,null,null,null,null,null,null,null,null,null,null,null,null,null,null,null,null,null,null,null,null,null,null,null,null,null,null,null,null,null,null,null,null,null,null,null,null,null,null,null,null,null,null,null,null,null,null,null,null,null,null,null,null,null,null,null,null,null,null,null,null,null,null,null,null,null,null,null,null,null,null,null,null,null,null,null,null,null,null,null,null,null,null,null,null,null,null,null,null,null,null,null,null,null,null,null,null,null,null,null,null,null,null,null,null,null,null,null,null,null,null,null,null,null,null,null,null,null,null,null,null,null,null,null,null,null,null,null,null,null,null,null,null,null,null,null,null,null,null,null,null,null,null,null,null,null,null,null,null,null,null,null,null,null,null,null,null,null,null,null,null,null,null,null,null,null,null,null,null,null,null,null,null,null,null,null,null,null,null,null,null,null,null,null,null,null,null,null,null,null,null,null,null,null,null,null,null,null,null,null,null,null,null,null,null,null,null,null,null,null,null,null,null,null,null,null,null,null,null,null,null,null,null,null,null,null,null,null,null,null,null,null,null,null,null,null,null,null,null,null,null,null,null,null,null,null,null,null,null,null,null,null,null,null,null,null,null,null,null,null,null,null,null,null,null,null,null,null,null,null,null,null,null,null,null,null,null,null,null,null,null,null,null,null,null,null,null,null,null,null,null,null,null,null,null,null,null,null,null,null,null,null,null,null,null,null,null,null,null,null,null,null,null,null,null,null,null,null,null,null,null,null,null,null,null,null,null,null,null,null,null,null,null,null,null,null,null,null,null,null,null,null,null,null,null,null,null,null,null,null,null,null,null,null,null,null,null,null,null,null,null,"Silliver ","Tab","30's",206.91,175.87,15.001691556715485,"Abbott LAB",null,null,null,null,null,null,null,"Silimarin","Tab","20's",245,115,53.061224489795919,"Amson Vaccines & Pharma"]
[56,"Syp ","Silymarine 105 mg +Vitamine B-1 8mg +B-12 25mcg +Calcium Pentothenate 16 mg, B-2 8mg ,B-6 8mg,nicotinamide24mg/ 5ml","90ml",null,null,null,null,null,null,null,null,null,null,null,null,null,null,null,null,null,null,null,null,null,null,null,null,null,null,null,null,"Heptocam ","Syp","60ml/120ml","71.50/126.5","53.49/94.63",25.2,"Chas a Mendoza"]
[57,null,"(H) Anti-Emetic/Anti-Nauseants:"]
[58,"Inj.","Chlorpromazine HCL 25mg/ml (2ml Amp)","Amp"]
[59,"Syp","Dimenhydrinate 12.5mg/4ml","60ml","Gravinate Syp","Syp","60ml",40,32.299999999999997,19.250000000000014,"Searle Pharma"]
[60,"Inj.","Dimenhydrinate 50mg","Inj","Gravinate 50mg Inj","Inj","25's",253,215.05,14.999999999999986,"Searle Pharma",null,null,null,null,null,null,null,null,null,null,null,null,null,null,null,null,null,null,null,null,null,null,null,null,null,null,null,null,null,null,null,null,null,null,null,null,null,null,null,null,null,null,null,null,null,null,null,null,null,null,null,null,null,null,null,null,null,null,null,null,null,null,null,null,null,null,null,null,null,null,null,null,null,null,null,null,null,null,null,null,null,null,null,null,null,null,null,null,null,null,null,null,null,null,null,null,null,null,null,null,null,null,null,null,null,null,null,null,null,null,null,null,null,null,null,null,null,null,null,null,null,null,null,null,null,null,null,null,null,null,null,null,null,null,null,null,null,null,null,null,null,null,null,null,null,null,null,null,null,null,null,null,null,null,null,null,null,null,null,null,null,null,null,null,null,null,null,null,null,null,null,null,null,null,null,null,null,null,null,null,null,null,null,null,null,null,null,null,null,null,null,null,null,null,null,null,null,null,null,null,null,null,null,null,null,null,null,null,null,null,null,null,null,null,null,null,null,null,null,null,null,null,null,null,null,null,null,null,null,null,null,null,null,null,null,null,null,null,null,null,null,null,null,null,null,null,null,null,null,null,null,null,null,null,null,null,null,null,null,null,null,null,null,null,null,null,null,null,null,null,null,null,null,null,null,null,null,null,null,null,null,null,null,null,null,null,null,null,null,null,null,null,null,null,null,null,null,null,null,null,null,null,null,null,null,null,null,null,null,null,null,null,null,null,null,null,null,null,null,null,null,null,null,null,null,null,null,null,null,null,null,null,null,null,null,null,null,null,null,null,null,null,null,null,null,null,null,null,null,null,null,null,null,null,null,null,null,null,null,null,null,null,null,null,"Dirinate ","Inj","25's",150,127.5,{"$f":"100-NP65/NO65*100","v":15},"Elite Pharma"]
[61,"Tab","Dimenhydrinate 50mg","100's","Gravinate 50mg ","Tab","100's",110,87,20.909090909090907,"Searle Pharma"]
[62,"Tab","Domparidon 10mg","30's",null,null,null,null,null,null,null,null,null,null,null,null,null,null,null,null,null,null,null,null,null,null,null,null,null,null,null,null,"Nomit 10mg","Tab","50's",215,160.82,{"$f":"100-AK67/AJ67*100","v":25.200000000000003},"Chas a Mendoza",null,null,null,null,null,null,null,null,null,null,null,null,null,null,null,null,null,null,null,null,null,null,null,null,null,null,null,null,null,null,null,null,null,null,null,null,null,null,null,null,null,null,null,null,null,null,null,null,null,"Motilium 10mg","Tab","50's",222.61,166.51,{"$f":"100-CO67/CN67*100","v":25.201024212748763},"Aspin Pharma",null,null,null,null,null,null,null,null,null,null,null,null,null,null,"Domel ","Tab","50's",215,49.2,{"$f":"100-DJ67/DI67*100","v":77.116279069767444},"BH",null,null,null,null,null,null,null,"Domflash ORO ","Tab","50's",180,70,{"$f":"100-DX67/DW67*100","v":61.111111111111107},"Next Pharma",null,null,null,null,null,null,null,null,null,null,null,null,null,null,null,null,null,null,null,null,null,"Nv-Nil","Tab","50's",215,49.5,{"$f":"100-EZ67/EY67*100","v":76.976744186046517},"Saydon Pharma",null,null,null,null,null,null,null,null,null,null,null,null,null,null,null,null,null,null,null,null,null,null,null,null,null,null,null,null,null,null,null,null,null,null,null,null,null,null,null,null,null,null,null,null,null,null,null,null,null,null,null,null,null,null,null,null,null,null,null,null,null,null,null,null,null,null,null,null,null,null,null,null,null,null,null,null,null,null,null,null,null,null,null,null,null,null,null,null,null,null,null,null,null,null,null,null,null,null,null,null,null,null,null,null,null,"Dovomit ","Tab","50's",210,99,{"$f":"100-JH67/JG67*100","v":52.857142857142861},"Novamed ",null,null,null,null,null,null,null,null,null,null,null,null,null,null,null,null,null,null,null,null,null,null,null,null,null,null,null,null,null,null,null,null,null,null,null,null,null,null,null,null,null,null,"Dompro ","Tab","50's ",215,60,{"$f":"100-LE67/LD67*100","v":72.093023255813961},"Unisons Pharma",null,null,null,null,null,null,null,null,null,null,null,null,null,null,null,null,null,null,null,null,null,null,null,null,null,null,null,null,"Typerdon 10mg","Tab","30's",129,29.9,{"$f":"100-MN67/MM67*100","v":76.821705426356587},"KCL Pharma",null,null,null,null,null,{"$f":"100-MU67/MT67*100","v":{"$error":"#DIV/0!"}}]
[63,"Tab","Domparidon 10mg &Cinrizine 1mg","20's"]
[64,"Susp","Domparidon 5mg/5ml","120ml",null,null,null,null,null,null,null,null,null,null,null,null,null,null,null,null,null,null,null,null,null,null,null,null,null,null,null,null,"Nomit Orl","Susp","60ml",42,31.42,{"$f":"100-AK69/AJ69*100","v":25.19047619047619},"Chas a Mendoza",null,null,null,null,null,null,null,null,null,null,null,null,null,null,null,null,null,null,null,null,null,null,null,null,null,null,null,null,null,null,null,null,null,null,null,null,null,null,null,null,null,null,null,null,null,null,null,null,null,"Motilium 10mg","Syp","120ml",86.97,68.75,{"$f":"100-CO69/CN69*100","v":20.949752788317809},"Aspin Pharma",null,null,null,null,null,null,null,null,null,null,null,null,null,null,"Domel ","Susp","60ml",42,25,{"$f":"100-DJ69/DI69*100","v":40.476190476190474},"BH",null,null,null,null,null,null,null,null,null,null,null,null,null,null,null,null,null,null,null,null,null,null,null,null,null,null,null,null,null,null,null,null,null,null,null,null,null,null,null,null,null,null,null,null,null,null,null,null,null,null,null,null,null,null,null,null,null,null,null,null,null,null,null,null,null,null,null,null,null,null,null,null,null,null,null,null,null,null,null,null,null,null,null,null,null,null,null,null,null,null,null,null,null,null,null,null,null,null,null,null,null,null,null,null,null,null,null,null,null,null,null,null,null,null,null,null,null,null,null,null,null,null,null,null,null,null,null,null,null,null,null,null,null,null,null,null,null,null,null,null,null,null,null,null,null,null,null,null,null,null,null,null,null,null,null,null,null,null,null,null,null,null,null,null,null,null,null,null,null,null,null,null,null,null,null,null,null,null,null,null,null,null,null,null,null,null,null,null,null,null,null,null,null,null,null,null,"Dontis ","Susp","120ml",84,42,{"$f":"100-LE69/LD69*100","v":50},"Wimits Pharma",null,null,null,null,null,null,null,null,null,null,null,null,null,null,null,null,null,null,null,null,null,null,null,null,null,null,null,null,null,null,null,null,null,null,null,null,null,null,null,null,null,null,null,null,null,null,null,null,null,null,null,null,null,null,null,null,null,null,null,null,null,null,null,null,null,null,null,null,null,null,null,null,null,null,null,null,null,null,null,null,null,null,null,null,null,null,null,null,null,null,null,null,null,null,null,null,null,null,null,null,null,null,null,null,null,null,null,null,null,null,null,null,null,null,null,null,null,null,null,null,null,null,null,null,null,null,null,null,null,null,null,null,null,null,null,null,null,null,null,null,"Domycare ","Susp","120ml",84,48,{"$f":"100-QV69/QU69*100","v":42.857142857142861},"Care Pharma"]
[65,"Tab","Itopride 50mg","10's",null,null,null,null,null,null,null,null,null,null,null,null,null,null,"Nogerd 50mg","Tab","10's",160,100,{"$f":"100-W70/V70*100","v":37.5},"Helix",null,null,null,null,null,null,null,null,null,null,null,null,null,null,null,null,null,null,null,null,null,null,null,null,null,null,null,null,"ITP 50mg","Tab","10's",160,99,{"$f":"100-BF70/BE70*100","v":38.125},"Sami",null,null,null,null,null,null,null,null,null,null,null,null,null,null,null,null,null,null,null,null,null,"Itollium 50mg ","Tab","10's",165,119.21,{"$f":"100-CH70/CG70*100","v":27.751515151515164},"Pharmatec",null,null,null,null,null,null,null,null,null,null,null,null,null,null,null,null,null,null,null,null,null,null,null,null,null,null,null,null,null,null,null,null,null,null,null,null,null,null,null,null,null,null,null,null,null,null,null,null,null,null,null,null,null,null,null,null,null,null,null,null,null,null,null,null,null,null,null,null,null,null,null,null,null,null,null,null,null,null,null,null,null,null,null,null,null,null,null,null,null,null,null,null,null,null,null,null,null,null,null,null,null,null,null,null,null,null,null,null,null,null,null,null,"Itotab 50mg","Tab","10's",150,23.78,{"$f":"100-GW70/GV70*100","v":84.146666666666661},"Hiranis Pharma",null,null,null,null,null,null,null,null,null,null,null,null,null,null,null,null,null,null,null,null,null,null,null,null,null,null,null,null,"Itcan 50mg","Tab","10's",180,70,{"$f":"100-IF70/IE70*100","v":61.111111111111107},"Fynk Pharma",null,null,null,null,null,null,null,null,null,null,null,null,null,null,null,null,null,null,null,null,null,null,null,null,null,null,null,null,null,null,null,null,null,null,null,null,null,null,null,null,null,null,null,null,null,null,null,null,null,null,null,null,null,null,null,null,"Dynetic 50mg","Tab","10's",120,32,{"$f":"100-KQ70/KP70*100","v":73.333333333333329},"Ferozsons Labs",null,null,null,null,null,null,null,null,null,null,null,null,null,null,null,null,null,null,null,null,null,null,null,null,null,null,null,null,null,null,null,null,null,null,null,"Regasta 50mg","Tab","10's",188,34.5,{"$f":"100-MG70/MF70*100","v":81.648936170212764},"Getz Pharma",null,null,null,null,null,null,null,null,null,null,null,null,null,null,null,null,null,null,null,null,null,null,null,null,null,null,null,null,null,null,null,null,null,null,null,"Ganaton 50mg","Tab","30's",658.17,559.44000000000005,{"$f":"100-NW70/NV70*100","v":15.000683713934066},"Abbott LAB"]
[66,"Tab","Meclazine 2 HCL 25mg + Vit B6 50mg","10's"]
["67'","Tab","Metoclopramide 10mg","100's"]
[67,"Inj","Metoclopramide 10mg","10'S",null,null,null,null,null,null,null,null,null,null,null,null,null,null,null,null,null,null,null,null,null,null,null,null,null,null,null,null,null,null,null,null,null,null,null,null,null,null,null,null,null,null,null,null,null,null,null,null,null,null,null,null,null,null,null,null,null,null,null,null,null,null,null,null,null,null,null,null,null,null,null,null,null,null,null,null,null,null,null,null,null,null,null,null,null,null,null,null,null,null,null,null,null,null,null,null,null,null,null,null,null,null,null,null,null,null,null,null,null,null,null,null,null,null,null,null,null,null,null,null,null,null,null,null,null,null,null,null,null,null,null,null,null,null,null,null,null,null,null,null,"Metoclon ","Inj","20's",410,272,{"$f":"100-ES73/ER73*100","v":33.658536585365852},"Indus Pharma",null,null,null,null,null,null,null,null,null,null,null,null,null,null,null,null,null,null,null,null,null,null,null,null,null,null,null,null,null,null,null,null,null,null,null,null,null,null,null,null,null,null,null,null,null,null,null,null,null,null,null,null,null,null,null,null,null,null,null,null,null,null,null,null,null,null,null,null,null,null,null,null,null,null,null,null,null,null,null,null,null,null,null,null,null,null,null,null,null,null,null,null,null,null,null,null,null,null,null,null,null,null,null,null,null,null,null,null,null,null,null,null,null,null,null,null,null,null,null,null,null,null,null,null,null,null,null,null,null,null,null,null,null,null,null,null,null,null,null,null,null,null,null,null,null,null,null,null,null,null,null,null,null,null,null,null,null,null,null,null,null,null,null,null,null,null,null,null,null,null,null,null,null,null,null,null,null,null,null,null,null,null,null,null,null,null,null,null,null,null,null,null,null,null,null,null,null,null,null,null,null,null,null,null,null,null,null,null,null,null,null,null,null,null,null,null,null,null,null,null,null,null,null,null,"Alpomide ","Inj","100's",670.9,450,{"$f":"100-NP73/NO73*100","v":32.925920405425543},"Elite Pharma"]
[68,"Inj","Ondenstron 8mg injection","amp",null,null,null,null,null,null,null,null,null,null,null,null,null,null,null,null,null,null,null,null,null,null,null,null,null,null,null,null,null,null,null,null,null,null,null,null,null,null,null,null,null,null,null,null,null,null,null,null,null,null,null,null,null,null,null,null,null,null,null,null,null,null,null,null,null,null,null,null,null,null,null,null,null,null,null,null,null,null,null,null,null,null,null,null,null,null,null,null,null,null,null,null,null,null,null,null,null,null,null,null,null,null,null,null,null,null,null,null,null,null,null,null,null,null,null,null,null,null,null,null,null,null,null,null,null,null,null,null,null,null,null,null,null,"Adosetron 8MG","Inj","5's",2585,300,{"$f":"100-EL74/EK74*100","v":88.394584139264992},"Searle",null,null,null,null,null,null,null,null,null,null,null,null,null,null,null,null,null,null,null,null,null,null,null,null,null,null,null,null,null,null,null,null,null,null,null,null,null,null,null,null,null,null,null,null,null,null,null,null,null,"Onset 8mg ","Inj","1's",92.65,44.35,{"$f":"100-GP74/GO74*100","v":52.131678359417158},"Pharmedic"]
[69,"inj","Prochlorperazine 12.5mg/ml","10's"]
[70,"Tab","Prochlorperazine 5mg","500's"]
[71,"Cap","Tropisetron 5mg Caps","5's",null,null,null,null,null,null,null,null,null,null,null,null,null,null,null,null,null,null,null,null,null,null,null,null,null,null,null,null,null,null,null,null,null,null,null,null,null,null,null,null,null,null,null,null,null,null,null,null,null,null,null,null,null,null,null,null,null,null,null,null,null,null,null,null,null,null,null,null,null,null,null,null,null,null,null,null,null,null,null,null,null,null,null,null,null,null,null,null,null,null,null,null,null,null,null,null,null,null,null,null,null,null,null,null,null,null,null,null,null,null,null,null,null,null,null,null,null,null,null,null,null,null,null,null,null,null,null,null,null,null,null,null,null,null,null,null,null,null,null,null,null,null,null,null,null,null,null,null,null,null,null,null,null,null,null,null,null,null,null,null,null,null,null,null,null,null,null,null,null,null,null,null,null,null,null,null,null,null,null,null,null,null,null,null,null,null,null,null,null,null,null,null,null,null,null,null,null,null,null,null,null,null,null,null,null,null,null,null,null,null,null,null,null,null,null,null,null,null,null,null,null,null,null,null,null,null,null,null,null,null,null,"Antem 5mg","Cap","5's",4100,3485,{"$f":"100-IF77/IE77*100","v":15},"Neutro Pharma"]
[72,"Inj","Tropisetron 5mg/5ml","1's",null,null,null,null,null,null,null,null,null,null,null,null,null,null,null,null,null,null,null,null,null,null,null,null,null,null,null,null,null,null,null,null,null,null,null,null,null,null,null,null,null,null,null,null,null,null,null,null,null,null,null,null,null,null,null,null,null,null,null,null,null,null,null,null,null,null,null,null,null,null,null,null,null,null,null,null,null,null,null,null,null,null,null,null,null,null,null,null,null,null,null,null,null,null,null,null,null,null,null,null,null,null,null,null,null,null,null,null,null,null,null,null,null,null,null,null,null,null,null,null,null,null,null,null,null,null,null,null,null,null,null,null,null,null,null,null,null,null,null,null,null,null,null,null,null,null,null,null,null,null,null,null,null,null,null,null,null,null,null,null,null,null,null,null,null,null,null,null,null,null,null,null,null,null,null,null,null,null,null,null,null,null,null,null,null,null,null,null,null,null,null,null,null,null,null,null,null,null,null,null,null,null,null,null,null,null,null,null,null,null,null,null,null,null,null,null,null,null,null,null,null,null,null,null,null,null,null,null,null,null,null,"Antem 5mg","Inj","1's",1130,960.5,15,"Neutro Pharma"]
[73,null,"(I) Drugs Acting on Cardiovascular System:"]
[74,"Tab","Aliskirin 300mg","10's"]
[75,"inj","Amiderone HCL 150mg/3ml","Amp"]
[76,"Inj.","Adrenaline Injection 1:1000","Amp"]
[77,"Tab","Amiderone HCL 200mg","30's",null,null,null,null,null,null,null,null,null,null,null,null,null,null,null,null,null,null,null,null,null,null,null,null,null,null,null,null,null,null,null,null,null,null," ",null,null,null,null,null,null,null,null,null,null,null,null,null,null,null,null,null,null,null,null,null,null,null,null,null,null,null,null,null,null,null,null,null,null,null,null,null,null,null,null,null,null,null,null,null,null,null,null,null,null,null,null,null,null,null,null,null,null,null,null,null,null,null,null,null,null,null,null,null,null,null,null,null,null,null,null,null,null,null,null,null,null,null,null,null,null,null,null,null,null,null,null,null,null,null,null,null,null,null,null,null,null,null,null,null,null,null,null,null,null,null,null,null,null,null,null,null,null,null,null,null,null,null,null,null,null,null,null,null,null,null,null,null,null,null,null,null,null,null,null,null,null,null,null,null,null,null,null,null,null,null,null,null,null,null,null,null,null,null,null,null,null,null,null,null,null,null,null,null,null,null,null,null,null,null,null,null,null,null,null,null,null,null,null,null,null,null,null,null,null,null,null,null,null,null,null,null,null,null,null,null,null,null,null,null,null,null,null,null,null,null,null,null,null,null,null,null,"Cordarone ","Tab","30's",533.76,453.7,14.99925059952038,"Sanofi Aventis"]
[78,"Tab","Amlodipine Besylate 5mg","20's",null,null,null,null,null,null,null,"Hypotin 5mg","Tab","20's",108.72,39.619999999999997,{"$f":"100-P84/O84*100","v":63.557763061074326},"Saffron",null,null,null,null,null,null,null,null,null,null,null,null,null,null,null,null,null,null,null,null,null,null,null,null,null,null,null,null,null,null,null,null,null,null,null,null,null,null,null,null,null,null,null,null,null,null,null,null,null,null,null,null,null,null,null,null,null,null,null,null,null,null,null,"Amlocard 5mg ","Tab","10's",160,108.8,{"$f":"100-CH84/CG84*100","v":32},"Pharmatec",null,null,null,null,null,null,null,null,null,null,null,null,null,null,"Caloc 5mg ","Tab","20's",80,54.4,{"$f":"100-DC84/DB84*100","v":32},"Bosch","Ampress 5mg","Tab","20's",140,34,{"$f":"100-DJ84/DI84*100","v":75.714285714285722},"BH",null,null,null,null,null,null,null,null,null,null,null,null,null,null,null,null,null,null,null,null,null,null,null,null,null,null,null,null,null,null,null,null,null,null,null,"Ca-B 5mg","Tab","20's",123.42,24.8,{"$f":"100-EZ84/EY84*100","v":79.906011991573493},"Saydon Pharma",null,null,null,null,null,null,null,null,null,null,null,null,null,null,null,null,null,null,null,null,null,null,null,null,null,null,null,null,null,null,null,null,null,null,null,"Vasodil 5mg","Tab","20's",127.5,31,{"$f":"100-GP84/GO84*100","v":75.686274509803923},"Pharmedic",null,null,null,null,null,null,null,null,null,null,null,null,null,null,null,null,null,null,null,null,null,"Norvasic 5mg","Tab","30's",358,255.68,{"$f":"100-HR84/HQ84*100","v":28.581005586592184},"Pfizer Pakistan",null,null,null,null,null,null,null,"Norsap 5mg","Tab","20's",330,280.5,{"$f":"100-IF84/IE84*100","v":15},"Sapient Pharma",null,null,null,null,null,null,null,null,null,null,null,null,null,null,null,null,null,null,null,null,null,"Amilip 5mg","Tab","20's",105,35.6,{"$f":"100-JH84/JG84*100","v":66.095238095238102},"Novaned","Lodopin 5mg ","Tab","20's",93.48,68.94,{"$f":"100-JO84/JN84*100","v":26.251604621309383},"Martin Dow",null,null,null,null,null,null,null,"Coram 5mg ","Tab","20's",75,35,{"$f":"100-KC84/KB84*100","v":53.333333333333336},"Brooks",null,null,null,null,null,null,null,null,null,null,null,null,null,null,null,null,null,null,null,null,null,null,null,null,null,null,null,null,null,null,null,null,null,null,null,null,null,null,null,null,null,null,null,null,null,null,null,null,null,null,null,null,null,null,null,null,null,null,null,null,null,null,null,null,null,null,null,null,null,null,null,null,null,null,null,null,null,null,null,null,null,null,null,null,null,null,null,null,null,null,null,null,null,null,null,null,null,null,null,null,null,null,null,null,null,"Vespin 5mg","Tab","20's",99,63.75,{"$f":"100-OK84/OJ84*100","v":35.606060606060609},"Amson Vaccines & Pharma",null,null,null,null,null,null,null,null,null,null,null,null,null,null,null,null,null,null,null,null,null,null,null,null,null,null,null,null,"Amdipine 5mg","Tab","30's",126.78,49.45,{"$f":"100-PT84/PS84*100","v":60.99542514592207},"Nabiqasim"]
[79,"Tab","Amlodipine Besylate10mg","20's",null,null,null,null,null,null,null,"Hypotin 10mg","Tab","20's",144.96,51.16,64.70750551876381,"Saffron",null,null,null,null,null,null,null,null,null,null,null,null,null,null,null,null,null,null,null,null,null,null,null,null,null,null,null,null,null,null,null,null,null,null,null,"Onato 10mg ","Tab","20's",102.51,50.6,50.638962052482682,"Sami",null,null,null,null,null,null,null,null,null,null,null,null,null,null,null,null,null,null,null,null,null,"Amlocard 10mg ","Tab","10's",250,170,32,"Pharmatec",null,null,null,null,null,null,null,null,null,null,null,null,null,null,"Caloc 10mg ","Tab","20's",150,102,32,"Bosch","Ampress 10mg","Tab","20's",280,63,77.5,"BH",null,null,null,null,null,null,null,null,null,null,null,null,null,null,null,null,null,null,null,null,null,null,null,null,null,null,null,null,null,null,null,null,null,null,null,"Ca-B 10mg","Tab","20's",220,29.88,86.418181818181822,"Saydon Pharma",null,null,null,null,null,null,null,null,null,null,null,null,null,null,null,null,null,null,null,null,null,null,null,null,null,null,null,null,null,null,null,null,null,null,null,null,null,null,null,null,null,null,null,null,null,null,null,null,null,null,null,null,null,null,null,null,null,null,null,null,null,null,null,"Norvasic 10mg","Tab","30's",700,500,28.571428571428569,"Pfizer Pakistan",null,null,null,null,null,null,null,null,null,null,null,null,null,null,null,null,null,null,null,null,null,null,null,null,null,null,null,null,null,null,null,null,null,null,null,"Amilip 10mg","Tab","20's",199,43,78.391959798994975,"Novaned","Lodopin 10mg ","Tab","20's",120.36,88.77,26.246261216350959,"Martin Dow",null,null,null,null,null,null,null,"Coram 10mg ","Tab","20's",150,45,70,"Brooks",null,null,null,null,null,null,null,null,null,null,null,null,null,null,null,null,null,null,null,null,null,null,null,null,null,null,null,null,null,null,null,null,null,null,null,null,null,null,null,null,null,null,null,null,null,null,null,null,null,null,null,null,null,null,null,null,null,null,null,null,null,null,null,null,null,null,null,null,null,null,null,null,null,null,null,null,null,null,null,null,null,null,null,null,null,null,null,null,null,null,null,null,null,null,null,null,null,null,null,null,null,null,null,null,null,null,null,null,null,null,null,null,null,null,null,null,null,null,null,null,null,null,null,null,null,null,null,null,null,null,null,null,null,null,null,null,null,null,null,null,"Amdipine 10mg","Tab","30's",228.22,65.5,71.299623170624841,"Nabiqasim"]
[80,"Tab","Amlodipine 5mg+Atorvastatin 10mg","10's",null,null,null,null,null,null,null,null,null,null,null,null,null,null,null,null,null,null,null,null,null,null,null,null,null,null,null,null,null,null,null,null,null,null,null,null,null,null,null,null,null,null,null,null,null,null,null,null,null,null,null,null,null,null,null,null,null,null,null,null,null,null,null,null,null,null,null,null,null,null,null,null,null,null,null,null,null,null,null,null,null,null,null,null,null,null,null,null,null,null,null,null,null,null,null,null,null,null,null,null,null,null,null,null,null,null,null,null,null,null,null,null,null,null,null,null,null,null,null,null,null,null,null,null,null,null,null,null,null,null,null,null,null,null,null,null,null,null,null,null,null,null,null,null,null,null,null,null,null,null,null,null,null,null,null,null,null,null,null,null,null,null,null,null,null,null,null,null,null,null,null,null,null,null,null,null,null,null,null,null,null,null,null,null,null,null,null,null,null,null,null,null,null,null,null,null,null,null,null,null,null,null,null,null,null,null,null,null,null,null,null,null,null,null,null,null,null,null,null,null,null,null,null,null,null,null,null,null,null,null,null,"Vastapine 5/10mg","Tab","20's",330,280.5,{"$f":"100-IF86/IE86*100","v":15},"Welmark Pharma",null,null,null,null,null,null,null,null,null,null,null,null,null,null,null,null,null,null,null,null,null,null,null,null,null,null,null,null,null,null,null,null,null,null,null,null,null,null,null,null,null,null,null,null,null,null,null,null,null,null,null,null,null,null,null,null,null,null,null,null,null,null,null,null,null,null,null,null,null,null,null,null,null,null,null,null,null,null,null,null,null,null,null,null,null,null,null,null,null,null,null,null,null,null,null,null,null,null,null,null,null,null,null,null,null,null,null,null,null,null,null,null,null,null,null,null,null,null,null,null,null,null,null,null,null,null,null,null,null,null,null,null,null,null,null,null,null,null,null,null,null,null,null,null,null,null,null,null,null,null,null,null,null,null,null,null,null,null,null,null,null,null,null,null,null,null,null,null,null,null,null,null,null,null,null,null,null,null,null,null,null,null,null,null,null,null,null,null,null,"AM Descol 5/10mg","Tab","7's",115,45.95,60.043478260869563,"Nabiqasim"]
[81,"Tab","Amlodipine5mg+Atorvastatin20mg/20mg","10's",null,null,null,null,null,null,null,null,null,null,null,null,null,null,null,null,null,null,null,null,null,null,null,null,null,null,null,null,null,null,null,null,null,null,null,null,null,null,null,null,null,null,null,null,null,null,null,null,null,null,null,null,null,null,null,null,null,null,null,null,null,null,null,null,null,null,null,null,null,null,null,null,null,null,null,null,null,null,null,null,null,null,null,null,null,null,null,null,null,null,null,null,null,null,null,null,null,null,null,null,null,null,null,null,null,null,null,null,null,null,null,null,null,null,null,null,null,null,null,null,null,null,null,null,null,null,null,null,null,null,null,null,null,null,null,null,null,null,null,null,null,null,null,null,null,null,null,null,null,null,null,null,null,null,null,null,null,null,null,null,null,null,null,null,null,null,null,null,null,null,null,null,null,null,null,null,null,null,null,null,null,null,null,null,null,null,null,null,null,null,null,null,null,null,null,null,null,null,null,null,null,null,null,null,null,null,null,null,null,null,null,null,null,null,null,null,null,null,null,null,null,null,null,null,null,null,null,null,null,null,null,"Vastapine 5/20mg","Tab","20's",500,425,15,"Welmark Pharma"]
[82,"Tab","Amlodipine5mg+valsartan 80mg","28's","Extor 5/80mg","Tab","14's",270.3,119,{"$f":"100-I88/H88*100","v":55.974842767295598},"Searle Pharma","Prestor 5/80mg","Tab","14's",238,80.12,{"$f":"100-P88/O88*100","v":66.336134453781511},"Saffron",null,null,null,null,null,null,null,null,null,null,null,null,null,null,null,null,null,null,null,null,null,null,null,null,null,null,null,null,"Avsar 5/80mg","Tab","14's",252,82.6,{"$f":"100-AY88/AX88*100","v":67.222222222222229},"PharmEvo",null,null,null,null,null,null,null,null,null,null,null,null,null,null,null,null,null,null,null,null,null,null,null,null,null,null,null,null,null,null,null,null,null,null,null,null,null,null,null,null,null,null,null,null,null,null,null,null,null,null,null,null,null,null,null,null,"AV-Sartan 5/80MG ","Tab","14's",204.16,78,{"$f":"100-DJ88/DI88*100","v":61.794670846394986},"BH",null,null,null,null,null,null,null,null,null,null,null,null,null,null,null,null,null,null,null,null,null,null,null,null,null,null,null,null,null,null,null,null,null,null,null,null,null,null,null,null,null,null,null,null,null,null,null,null,null,null,null,null,null,null,null,null,null,null,null,null,null,null,null,null,null,null,null,null,null,null,null,null,null,null,null,null,null,null,null,null,null,null,null,null,null,null,null,null,null,null,null,"Exforge 5/80mg","Tab","28's",1288,985.32,{"$f":"100-HD88/HC88*100","v":23.5},"Novartis",null,null,null,null,null,null,null,null,null,null,null,null,null,null,null,null,null,null,null,null,null,"Silodipine 5/80mg","Tab","14'S",330,160,51.515151515151516,"Siam Pharma",null,null,null,null,null,null,null,null,null,null,null,null,null,null,null,null,null,null,null,null,null,null,null,null,null,null,null,null,null,null,null,null,null,null,null,null,null,null,null,null,null,null,null,null,null,null,null,null,null,null,null,null,null,null,null,null,null,null,null,null,null,null,null,null,null,null,null,null,null,null,null,null,null,null,null,null,null,null,null,null,null,null,null,null,null,null,null,null,null,null,null,null,null,null,null,null,null,null,null,null,null,null,null,null,null,null,null,null,null,null,null,null,null,null,null,null,null,null,null,"Amstan 5/80mg","Tab","14's",265,213.92,{"$f":"100-NB88/NA88*100","v":19.275471698113208},"Scilife Pharma"]
[83,"Tab","Aspirin 150mg","30's",null,null,null,null,null,null,null,null,null,null,null,null,null,null,null,null,null,null,null,null,null,null,null,null,null,null,null,null,null,null,null,null,null,null,null,null,null,null,null,null,null,null,null,null,null,null,null,null,null,null,null,null,null,null,null,null,null,null,null,null,null,null,null,null,null,null,null,null,null,null,null,null,null,null,null,null,null,null,null,null,null,null,null,null,null,null,null,null,null,null,null,null,null,null,null,null,null,null,null,null,null,null,null,null,null,null,null,null,null,null,null,null,"Loprin 150mg","Tab","30's",44,34,{"$f":"100-DQ89/DP89*100","v":22.727272727272734},"Highnoon"]
[84,"Tab","Aspirin 75mg","30's",null,null,null,null,null,null,null,null,null,null,null,null,null,null,null,null,null,null,null,null,null,null,null,null,null,null,null,null,null,null,null,null,null,null,null,null,null,null,null,null,null,null,null,null,null,null,null,null,null,null,null,null,null,null,null,null,null,null,null,null,null,null,null,null,null,null,null,null,null,null,null,null,null,null,null,null,null,null,null,null,null,null,null,null,null,null,null,null,null,null,null,null,null,null,null,null,null,null,null,null,null,null,null,null,null,null,null,null,null,null,null,null,"Loprin 75mg","Tab","30's",33,20,39.393939393939391,"Highnoon"]
[85,"Tab","Atenolol 50mg","20's",null,null,null,null,null,null,null,null,null,null,null,null,null,null,null,null,null,null,null,null,null,null,null,null,null,null,null,null,null,null,null,null,null,null,null,null,null,null,null,null,null,null,null,null,null,null,null,null,null,null,null,null,null,null,null,null,null,null,null,null,null,null,null,null,null,null,null,null,null,null,null,null,null,null,null,null,null,null,null,null,null,null,null,null,null,null,null,null,null,null,null,null,null,null,null,null,null,null,"Atilin 50mg ","Tab","20's",70,47,{"$f":"100-DC91/DB91*100","v":32.857142857142861},"Bosch",null,null,null,null,null,null,null,"Blockium 50mg","Tab","30's",175,100,42.857142857142861,"Highnoon",null,null,null,null,null,null,null,null,null,null,null,null,null,null,null,null,null,null,null,null,null,null,null,null,null,null,null,null,"Sydlol 50mg","Tab","20's",65,24.8,{"$f":"100-EZ91/EY91*100","v":61.846153846153847},"Saydon Pharma",null,null,null,null,null,null,null,null,null,null,null,null,null,null,null,null,null,null,null,null,null,null,null,null,null,null,null,null,null,null,null,null,null,null,null,"Atelor 50mg","Tab","20's",60.35,37,{"$f":"100-GP91/GO91*100","v":38.690969345484675},"Pharmedic",null,null,null,null,null,null,null,null,null,null,null,null,null,null,null,null,null,null,null,null,null,null,null,null,null,null,null,null,null,null,null,null,null,null,null,null,null,null,null,null,null,null,null,null,null,null,null,null,null,"Netel 50mg","Tab","20's",74,19,{"$f":"100-IT91/IS91*100","v":74.324324324324323},"3S Pharma",null,null,null,null,null,null,null,"B-Loc 50mg","Tab","20's",74,21.6,{"$f":"100-JH91/JG91*100","v":70.810810810810807},"Novamed",null,null,null,null,null,null,null,null,null,null,null,null,null,null,null,null,null,null,null,null,null,null,null,null,null,null,null,null,"Atenorm 50mg","Tab","14's",36.799999999999997,21,{"$f":"100-KQ91/KP91*100","v":42.934782608695642},"Ferozsons Labs",null,null,null,null,null,null,null,null,null,null,null,null,null,null,null,null,null,null,null,null,null,null,null,null,null,null,null,null,null,null,null,null,null,null,null,null,null,null,null,null,null,null,null,null,null,null,null,null,null,null,null,null,null,null,null,null,null,null,null,null,null,null,null,null,null,null,null,null,null,null,null,null,null,null,null,null,null,null,null,null,null,null,null,null,null,null,null,null,null,null,null,null,null,null,null,null,null,null,null,null,null,null,null,null,null,null,null,null,null,null,null,null,null,null,null,null,null,null,null,null,null,null,null,null,null,null,"Normitab 50mg","Tab","28's",105.49,63,{"$f":"100-PT91/PS91*100","v":40.278699402786991},"Nabiqasim"]
[86,"Tab","Atorvastatin  10mg","10's",null,null,null,null,null,null,null,null,null,null,null,null,null,null,null,null,null,null,null,null,null,null,null,null,null,null,null,null,null,null,null,null,null,null,null,"Tavist 10mg ","Tab","10's",58.82,30,{"$f":"100-AR92/AQ92*100","v":48.996939816388988},"Macter","Mypro 10MG","Tab","10's",165,66,60,"Pharmevo",null,null,null,null,null,null,null,null,null,null,null,null,null,null,null,null,null,null,null,null,null,null,null,null,null,null,null,null,"Atorva 10mg ","Tab","10's",180,137.69999999999999,{"$f":"100-CH92/CG92*100","v":23.500000000000014},"Pharmatec",null,null,null,null,null,null,null,null,null,null,null,null,null,null,"Orva 10mg","Tab","10's",150,95.63,36.24666666666667,"Bosch","Sensicon 10mg","Tab","10's",144.94999999999999,30.15,{"$f":"100-DJ92/DI92*100","v":79.199724042773369},"BH","Lipirex 10mg","Tab","10's",170,28,83.529411764705884,"Highnoon",null,null,null,null,null,null,null,null,null,null,null,null,null,null,null,null,null,null,null,null,null,null,null,null,null,null,null,null,null,null,null,null,null,null,null,null,null,null,null,null,null,null,null,null,null,null,null,null,null,null,null,null,null,null,null,null,null,null,null,null,null,null,null,null,null,null,null,null,null,null,null,null,null,null,null,null,null,null,null,null,null,null,null,null,null,null,null,null,null,null,null,null,null,null,null,null,null,null,"Lipitor 10mg","Tab","10's",662.81,394.32,{"$f":"100-HR92/HQ92*100","v":40.507837841915475},"Pfizer Pakistan",null,null,null,null,null,null,null,"Xtor 10mg ","Tab","10's",150,127.5,{"$f":"100-IF92/IE92*100","v":15},"Paramount",null,null,null,null,null,null,null,null,null,null,null,null,null,null,null,null,null,null,null,null,null,"Lipilow 10mg","Tab","10's",140,32,77.142857142857139,"Novamed",null,null,null,null,null,null,null,null,null,null,null,null,null,null,null,null,null,null,null,null,null,null,null,null,null,null,null,null,null,null,null,null,null,null,null,null,null,null,null,null,null,null,null,null,null,null,null,null,null,null,null,null,null,null,null,null,null,null,null,null,null,null,null,null,null,null,null,null,null,null,"Lipiget 10mg","Tab","10's",175,67,61.714285714285715,"Getz Pharma"]
[87,"Tab","Atorvastatin  20mg","10's",null,null,null,null,null,null,null,null,null,null,null,null,null,null,null,null,null,null,null,null,null,null,null,null,null,null,null,null,null,null,null,null,null,null,null,"Tavist 20mg ","Tab","10's",105.88,55,48.054401208915756,"Macter","Mypro 20MG","Tab","10's",299,118,60.535117056856187,"Pharmevo",null,null,null,null,null,null,null,null,null,null,null,null,null,null,null,null,null,null,null,null,null,"Raytor 20mg ","Tab","10's",220,102.85,{"$f":"100-CA93/BZ93*100","v":53.25},"Ray Pharma","Atorva 20mg ","Tab","10's",330,252.45,23.5,"Pharmatec",null,null,null,null,null,null,null,null,null,null,null,null,null,null,"Orva 20mg","Tab","10's",250,159.38,36.248000000000005,"Bosch","Sensicon 20mg","Tab","10's",240,50.74,78.858333333333334,"BH","Lipirex 20mg","Tab","10's",310,45,85.483870967741936,"Highnoon",null,null,null,null,null,null,null,null,null,null,null,null,null,null,null,null,null,null,null,null,null,null,null,null,null,null,null,null,null,null,null,null,null,null,null,null,null,null,null,null,null,null,null,null,null,null,null,null,null,null,null,null,null,null,null,null,null,null,null,null,null,null,null,null,null,null,null,null,null,null,null,null,null,null,null,null,null,null,null,null,null,null,null,null,null,null,null,null,null,null,null,null,null,null,null,null,null,null,null,null,null,null,null,null,null,null,null,null,null,null,null,null,"Xtor 20mg ","Tab","10's",280,238,15,"Paramount",null,null,null,null,null,null,null,null,null,null,null,null,null,null,null,null,null,null,null,null,null,"Lipilow 20mg","Tab","10's",240,44.5,81.458333333333329,"Novamed",null,null,null,null,null,null,null,null,null,null,null,null,null,null,null,null,null,null,null,null,null,null,null,null,null,null,null,null,null,null,null,null,null,null,null,null,null,null,null,null,null,null,"Univastin 20mg","Tab","10's",366,73,{"$f":"100-LE93/LD93*100","v":80.054644808743177},"Unisons Pharma",null,null,null,null,null,null,null,null,null,null,null,null,null,null,null,null,null,null,null,null,null,"Lipiget 20mg","Tab","10's",330,45,86.36363636363636,"Getz Pharma",null,null,null,null,null,null,null,null,null,null,null,null,null,null,null,null,null,null,null,null,null,null,null,null,null,null,null,null,null,null,null,null,null,null,null,null,null,null,null,null,null,null,null,null,null,null,null,null,null,null,null,null,null,null,null,null,null,null,null,null,null,null,null,null,null,null,null,null,null,null,null,null,null,null,null,null,null,null,null,null,null,null,null,null,"Descol 20mg","Tab","10's",190,38.950000000000003,{"$f":"100-PT93/PS93*100","v":79.5},"Nabiqasim"]
[88,"Tab","Atorvastatin  40mg","10's",null,null,null,null,null,null,null,null,null,null,null,null,null,null,null,null,null,null,null,null,null,null,null,null,null,null,null,null,null,null,null,null,null,null,null,null,null,null,null,null,null,null,"Mypro 40MG","Tab","10's",399,161,59.649122807017548,"Pharmevo",null,null,null,null,null,null,null,null,null,null,null,null,null,null,null,null,null,null,null,null,null,null,null,null,null,null,null,null,"Atorva 40mg ","Tab","10's",450,344.25,23.5,"Pharmatec",null,null,null,null,null,null,null,null,null,null,null,null,null,null,"Orva 40mg","Tab","10's",350,223.13,36.248571428571431,"Bosch",null,null,null,null,null,null,null,"Lipirex 40mg","Tab","10's",400,90,77.5,"Highnoon",null,null,null,null,null,null,null,null,null,null,null,null,null,null,null,null,null,null,null,null,null,null,null,null,null,null,null,null,null,null,null,null,null,null,null,null,null,null,null,null,null,null,null,null,null,null,null,null,null,null,null,null,null,null,null,null,null,null,null,null,null,null,null,null,null,null,null,null,null,null,null,null,null,null,null,null,null,null,null,null,null,null,null,null,null,null,null,null,null,null,null,null,null,null,null,null,null,null,null,null,null,null,null,null,null,null,null,null,null,null,null,null,"Xtor 40mg ","Tab","10's",360,306,15,"Paramount",null,null,null,null,null,null,null,null,null,null,null,null,null,null,null,null,null,null,null,null,null,null,null,null,null,null,null,null,null,null,null,null,null,null,null,null,null,null,null,null,null,null,null,null,null,null,null,null,null,null,null,null,null,null,null,null,null,null,null,null,null,null,null,null,null,null,null,null,null,null,null,null,null,null,null,null,null,null,null,null,null,null,null,null,null,null,null,null,null,null,null,null,null,null,null,null,null,null,"Lipiget 40mg","Tab","10's",425,250,41.17647058823529,"Getz Pharma",null,null,null,null,null,null,null,null,null,null,null,null,null,null,"Lochol 40mg","Tab","10's",174.99,133.69999999999999,{"$f":"100-NB94/NA94*100","v":23.595634036230649},"Scilife Pharma"]
[89,"Tab","Bisoprolol 5mg","20's",null,null,null,null,null,null,null,null,null,null,null,null,null,null,null,null,null,null,null,null,null,null,null,null,null,null,null,null,null,null,null,null,null,null,null,null,null,null,null,null,null,null,null,null,null,null,null,null,null,"Actim 5mg","Tab","14's",95.66,58.1,39.264060213255277,"Sami",null,null,null,null,null,null,null,null,null,null,null,null,null,null,null,null,null,null,null,null,null,null,null,null,null,null,null,null,null,null,null,null,null,null,null,null,null,null,null,null,null,null,null,null,null,null,null,null,null,null,null,null,null,null,null,null,null,null,null,null,null,null,null,null,null,null,null,null,null,null,null,null,null,null,null,null,null,null,null,null,null,null,null,null,null,null,null,null,null,null,null,null,null,null,null,null,null,null,null,null,null,null,null,null,null,null,null,null,null,null,null,null,null,null,null,null,null,null,null,null,null,null,null,null,null,null,null,null,null,null,null,null,null,null,null,null,null,null,null,null,null,null,null,null,null,null,null,null,null,null,null,null,null,null,null,null,null,null,null,null,null,null,null,null,null,null,null,null,null,null,null,null,null,null,null,"Lorposib","Tab","14's",115,80,30.434782608695656,"Fynk Pharma",null,null,null,null,null,null,null,null,null,null,null,null,null,null,null,null,null,null,null,null,null,null,null,null,null,null,null,null,"Concor 5mg","Tab","14's",158.36000000000001,127.88,{"$f":"100-JO95/JN95*100","v":19.24728466784542},"Martin Dow"]
[90,"Tab","Captopril 12.5mg","20's"]
[91,"Tab","Captopril 25mg","20's",null,null,null,null,null,null,null,null,null,null,null,null,null,null,null,null,null,null,null,null,null,null,null,null,null,null,null,null,null,null,null,null,null,null,null,null,null,null,null,null,null,null,null,null,null,null,null,null,null,null,null,null,null,null,null,null,null,null,null,null,null,null,null,null,null,null,null,null,null,null,null,null,null,null,null,null,null,null,null,null,null,null,null,null,null,null,null,null,null,null,null,"Capoten 25mg ","Tab","20's",157.76,127.4,{"$f":"100-CV97/CU97*100","v":19.244421906693702},"Gsk",null,null,null,null,null,null,null,null,null,null,null,null,null,null,null,null,null,null,null,null,null,null,null,null,null,null,null,null,null,null,null,null,null,null,null,null,null,null,null,null,null,null,null,null,null,null,null,null,null,null,null,null,null,null,null,null,null,null,null,null,null,null,null,null,null,null,null,null,null,null,null,null,null,null,null,null,null,null,null,null,null,null,null,null,null,null,null,null,null,null,null,null,null,null,null,null,null,null,null,null,null,null,null,null,null,null,null,null,null,null,null,null,null,null,null,null,null,null,null,null,null,null,null,null,null,null,null,null,null,null,null,null,null,null,null,null,null,null,null,null,null,null,null,null,null,null,null,null,null,null,null,null,null,null,null,null,null,null,null,null,null,null,null,null,null,null,null,null,null,null,null,null,null,null,null,null,null,null,null,null,null,null,null,null,null,null,null,null,null,null,null,null,null,null,null,null,null,null,null,null,null,null,null,null,null,null,null,null,null,null,null,null,null,null,null,null,null,null,null,null,null,null,null,null,null,null,null,null,null,null,null,null,null,null,null,null,null,null,null,null,null,null,null,null,null,null,null,null,null,null,null,null,null,null,null,null,null,null,null,null,null,null,null,null,null,null,null,null,null,null,null,null,null,null,null,null,null,null,null,null,null,null,null,null,null,null,null,null,null,null,null,null,null,null,null,null,null,null,null,null,null,null,null,null,null,null,null,null,null,null,null,null,null,null,null,null,null,null,null,null,null,null,null,null,null,null,null,null,null,null,null,null,null,null,null,null,null,null,null,null,null,null,null,"Valopril 25mg","Tab","20's",113,93.17,{"$f":"100-QH97/QG97*100","v":17.548672566371678},"Valor Pharma"]
[92,"Tab","Carvedilol 6.25mg","30's",null,null,null,null,null,null,null,null,null,null,null,null,null,null,null,null,null,null,null,null,null,null,null,null,null,null,null,null,null,null,null,null,null,null,null,"Hart 6.25mg ","Tab","30's",66,44.88,32,"Macter",null,null,null,null,null,null,null,null,null,null,null,null,null,null,null,null,null,null,null,null,null,null,null,null,null,null,null,null,null,null,null,null,null,null,null,null,null,null,null,null,null,null,null,null,null,null,null,null,null,null,null,null,null,null,null,null,null,null,null,null,null,null,null,"Vedicar 6.25mg","Tab","30's",160,97,{"$f":"100-DJ98/DI98*100","v":39.375000000000007},"BH",null,null,null,null,null,null,null,null,null,null,null,null,null,null,null,null,null,null,null,null,null,null,null,null,null,null,null,null,null,null,null,null,null,null,null,null,null,null,null,null,null,null,null,null,null,null,null,null,null,null,null,null,null,null,null,null,null,null,null,null,null,null,null,null,null,null,null,null,null,null,null,null,null,null,null,null,null,null,null,null,null,null,null,null,null,null,null,null,null,null,null,null,null,null,null,null,null,null,null,null,null,null,null,null,null,null,null,null,null,null,null,null,null,null,null,null,null,null,null,null,null,null,null,null,null,null,null,null,null,null,null,null,null,null,null,null,null,null,null,null,null,null,null,null,null,null,null,null,null,null,null,null,null,null,null,null,null,null,null,null,null,null,null,null,null,null,null,null,null,null,null,null,null,null,null,null,null,null,null,null,null,null,"Carveda 6.25mg","Tab","30's",167.95,49,{"$f":"100-KQ98/KP98*100","v":70.824650193509967},"Ferozsons Labs"]
[93,"Tab","Carvedilol 12.5mg","30's",null,null,null,null,null,null,null,null,null,null,null,null,null,null,null,null,null,null,null,null,null,null,null,null,null,null,null,null,null,null,null,null,null,null,null,null,null,null,null,null,null,null,null,null,null,null,null,null,null,null,null,null,null,null,null,null,null,null,null,null,null,null,null,null,null,null,null,null,null,null,null,null,null,null,null,null,null,null,null,null,null,null,null,null,null,null,null,null,null,null,null,null,null,null,null,null,null,null,null,null,null,null,null,null,null,"Vedicar 12.5mg","Tab","10's",89.22,49,45.079578569827397,"BH",null,null,null,null,null,null,null,null,null,null,null,null,null,null,null,null,null,null,null,null,null,null,null,null,null,null,null,null,null,null,null,null,null,null,null,null,null,null,null,null,null,null,null,null,null,null,null,null,null,null,null,null,null,null,null,null,null,null,null,null,null,null,null,null,null,null,null,null,null,null,null,null,null,null,null,null,null,null,null,null,null,null,null,null,null,null,null,null,null,null,null,null,null,null,null,null,null,null,null,null,null,null,null,null,null,null,null,null,null,null,null,null,null,null,null,null,null,null,null,null,null,null,null,null,null,null,null,null,null,null,null,null,null,null,null,null,null,null,null,null,null,null,null,null,null,null,null,null,null,null,null,null,null,null,null,null,null,null,null,null,null,null,null,null,null,null,null,null,null,null,null,null,null,null,null,null,null,null,null,null,null,null,"Carveda 12.5mg","Tab","30's",335.91,129,61.596856300794862,"Ferozsons Labs"]
[94,"Tab","Carvedilol 25mg","30's",null,null,null,null,null,null,null,null,null,null,null,null,null,null,null,null,null,null,null,null,null,null,null,null,null,null,null,null,null,null,null,null,null,null,null,null,null,null,null,null,null,null,null,null,null,null,null,null,null,null,null,null,null,null,null,null,null,null,null,null,null,null,null,null,null,null,null,null,null,null,null,null,null,null,null,null,null,null,null,null,null,null,null,null,null,null,null,null,null,null,null,null,null,null,null,null,null,null,null,null,null,null,null,null,null,"Vedicar 25mg","Tab","10's",145,74,48.96551724137931,"BH",null,null,null,null,null,null,null,null,null,null,null,null,null,null,null,null,null,null,null,null,null,null,null,null,null,null,null,null,null,null,null,null,null,null,null,null,null,null,null,null,null,null,null,null,null,null,null,null,null,null,null,null,null,null,null,null,null,null,null,null,null,null,null,null,null,null,null,null,null,null,null,null,null,null,null,null,null,null,null,null,null,null,null,null,null,null,null,null,null,null,null,null,null,null,null,null,null,null,null,null,null,null,null,null,null,null,null,null,null,null,null,null,null,null,null,null,null,null,null,null,null,null,null,null,null,null,null,null,null,null,null,null,null,null,null,null,null,null,null,null,null,null,null,null,null,null,null,null,null,null,null,null,null,null,null,null,null,null,null,null,null,null,null,null,null,null,null,null,null,null,null,null,null,null,null,null,null,null,null,null,null,null,"Carveda 25mg","Tab","10's",204.69,98,52.122722165225461,"Ferozsons Labs"]
[95,"Tab","Clopedogril 75mg+Asprin 75mg ","30's",null,null,null,null,null,null,null,"Plagril plus","Tab","10's",152.21,71.47,{"$f":"100-P101/O101*100","v":53.045135010840291},"Saffron",null,null,null,null,null,null,null,null,null,null,null,null,null,null,null,null,null,null,null,null,null,"Locril ","Tab","50's",200,157.5,21.25,"Macter","Lowplat Plus","Tab","10's",152.19999999999999,67.8,{"$f":"100-AY101/AX101*100","v":55.453350854139288},"Pharmevo",null,null,null,null,null,null,null,null,null,null,null,null,null,null,null,null,null,null,null,null,null,null,null,null,null,null,null,null,null,null,null,null,null,null,null,null,null,null,null,null,null,null,null,null,null,null,null,null,null,"Orgrel Plus 81","Tab","10's",125,85,{"$f":"100-DC101/DB101*100","v":32},"Bosch","Clotnil  Plus 75/75mg ","Tab","10's",125,46.12,63.104000000000006,"BH","Pidogrel -AP ","Tab","10's",147.07,45,{"$f":"100-DQ101/DP101*100","v":69.402325423267825},"Highnoon"]
[96,"Tab","Clopidogrel 75 mg","10's",null,null,null,null,null,null,null,null,null,null,null,null,null,null,null,null,null,null,null,null,null,null,null,null,null,null,null,null,null,null,null,null,null,null,null,null,null,null,null,null,null,null,"Lowplat","Tab","10's",146.96,65,55.770277626565054,"Pharmevo",null,null,null,null,null,null,null,null,null,null,null,null,null,null,null,null,null,null,null,null,null,"Ravplat 75mg ","Tab","10's",140,71.400000000000006,{"$f":"100-CA102/BZ102*100","v":49},"Ray Pharma",null,null,null,null,null,null,null,null,null,null,null,null,null,null,null,null,null,null,null,null,null,"Orgrel  75mg","Tab","10's",120,81.599999999999994,32,"Bosch","Clotnil 75mg ","Tab","10's",130,45,65.384615384615387,"BH","Pidogrel 75mg","Tab","10's",150.13,40,73.356424432158803,"Highnoon",null,null,null,null,null,null,null,"Pletwil 75mg","Tab","10's",140,24,{"$f":"100-EE102/ED102*100","v":82.857142857142861},"Wilson's",null,null,null,null,null,null,null,null,null,null,null,null,null,null,null,null,null,null,null,null,null,null,null,null,null,null,null,null,null,null,null,null,null,null,null,null,null,null,null,null,null,null,null,null,null,null,null,null,null,null,null,null,null,null,null,null,null,null,null,null,null,null,null,null,null,null,null,null,null,null,null,null,null,null,null,null,null,null,null,null,null,null,null,null,null,null,null,null,null,null,null,null,null,null,null,null,null,null,null,null,null,null,null,null,null,null,null,null,null,null,null,null,null,null,null,null,null,null,null,null,null,null,null,null,null,null,"Seaclop 75mg","Tab","10's",140,35,{"$f":"100-JH102/JG102*100","v":75},"Novamed",null,null,null,null,null,null,null,null,null,null,null,null,null,null,null,null,null,null,null,null,null,null,null,null,null,null,null,null,null,null,null,null,null,null,null,null,null,null,null,null,null,null,null,null,null,null,null,null,null,null,null,null,null,null,null,null,null,null,null,null,null,null,null,null,null,null,null,null,null,null,null,null,null,null,null,null,null,null,null,null,null,null,null,null,null,null,null,null,null,null,null,null,null,null,null,null,null,null,null,null,null,null,null,null,null,"Clopeg 75mg","Tab","10's",140,41,{"$f":"100-NP102/NO102*100","v":70.714285714285708},"Citi Pharma",null,null,null,null,null,null,null,null,null,null,null,null,null,null,null,null,null,null,null,null,null,null,null,null,null,null,null,null,null,null,null,null,null,null,null,null,null,null,null,null,null,null,null,null,null,null,null,null,null,"Deplat 75mg","Tab","10's",108.12,43.95,{"$f":"100-PT102/PS102*100","v":59.350721420643723},"Nabiqasim"]
[97,"Tab","Digoxin 0.25mg","100's"]
[98,"Tab","Diltiazem 30mg","100's",null,null,null,null,null,null,null,null,null,null,null,null,null,null,null,null,null,null,null,null,null,null,null,null,null,null,null,null,null,null,null,null,null,null,null,null,null,null,null,null,null,null,null,null,null,null,null,null,null,null,null,null,null,null,null,null,null,null,null,null,null,null,null,null,null,null,null,null,null,null,null,null,null,null,null,null,null,null,null,null,null,null,null,null,null,null,null,null,null,null,null,null,null,null,null,null,null,null,null,null,null,null,null,null,null,null,null,null,null,null,null,null,"Herbesser 30mg ","Tab","30's",129.94999999999999,105,{"$f":"100-DQ104/DP104*100","v":19.199692189303576},"Highnoon"]
[99,"Tab","Diltiazem 60mg","100's",null,null,null,null,null,null,null,null,null,null,null,null,null,null,null,null,null,null,null,null,null,null,null,null,null,null,null,null,null,null,null,null,null,null,null,null,null,null,null,null,null,null,null,null,null,null,null,null,null,null,null,null,null,null,null,null,null,null,null,null,null,null,null,null,null,null,null,null,null,null,null,null,null,null,null,null,null,null,null,null,null,null,null,null,null,null,null,null,null,null,null,null,null,null,null,null,null,null,null,null,null,null,null,null,null,null,null,null,null,null,null,null,"Herbesser 60mg ","Tab","30's",236.9,195,17.686787674124105,"Highnoon"]
[100,"Tab","Diosmin 450mg,Hesperidin 50mg","20's"]
[101,"Inj.","Dobutamine 250mg","Vial/20ml"]
[102,"Inj.","Dopamine 40mg/ml, Vial of 5ml","Vial/20ml",null,null,null,null,null,null,null,null,null,null,null,null,null,null,null,null,null,null,null,null,null,null,null,null,null,null,null,null,null,null,null,null,null,null,null,null,null,null,null,null,null,null,null,null,null,null,null,null,null,null,null,null,null,null,null,null,null,null,null,null,null,null,null,null,null,null,null,null,null,null,null,null,null,null,null,null,null,null,null,null,null,null,null,null,null,null,null,null,null,null,null,null,null,null,null,null,null,null,null,null,null,null,null,null,null,null,null,null,null,null,null,null,null,null,null,null,null,null,null,null,null,null,null,null,null,null,null,null,null,null,null,null,null,null,null,null,null,null,null,null,null,null,null,null,null,null,null,null,null,null,null,null,null,null,null,null,null,null,null,null,null,null,null,null,null,null,null,null,null,null,null,null,null,null,null,null,null,null,null,null,null,null,null,null,null,null,null,null,null,null,null,null,null,null,null,null,null,null,null,null,null,null,null,null,null,null,null,null,null,null,null,null,null,null,null,null,null,null,null,null,null,null,null,null,null,null,null,null,null,null,null,null,null,null,null,null,null,null,null,null,null,null,null,null,null,null,null,null,null,null,null,null,null,null,null,null,null,null,null,null,null,null,null,null,null,null,null,null,null,null,null,null,null,null,null,null,null,null,null,null,null,null,null,null,null,null,null,null,null,null,null,null,null,null,null,null,null,null,null,null,null,null,null,null,null,null,null,null,null,null,null,null,null,null,null,null,null,null,null,null,null,null,null,null,null,null,null,null,null,null,null,null,null,null,null,null,null,null,null,null,null,null,null,null,null,null,null,null,null,null,null,null,null,null,null,null,null,null,null,null,null,null,null,null,null,null,null,null,null,null,null,"Dopilax ","Inj","50'",2850,2422.5,{"$f":"100-NP108/NO108*100","v":15},"Elite Pharma"]
[103,"Tab","Enalaprin Maleate 10 mg ",20]
[104,"Tab","Enalaprin Maleate 5 mg  ",20]
[105,"Tab","Glyceryl Trinitrate:2.6mg","30's","Sustac 2.6mg","Tab","30's",181,100,44.751381215469607,"Searle Pharma",null,null,null,null,null,null,null,null,null,null,null,null,null,null,null,null,null,null,null,null,null,null,null,null,null,null,null,null,null,null,null,null,null,null,null,null,null,null,null,null,null,null,null,null,null,null,null,null,null,null,null,null,null,null,null,null,null,null,null,null,null,null,null,null,null,null,null,null,null,null,null,null,null,null,null,null,null,null,null,null,null,null,null,null,null,null,null,null,null,null,null,null,null,null,null,null,null,null,null,null,null,null,null,null,null,null,null,null,null,null,null,null,null,null,null,null,null,null,null,null,null,null,null,null,null,null,null,null,null,null,null,null,null,null,null,null,null,null,null,null,null,null,null,null,null,null,null,null,null,null,null,null,null,null,null,null,null,null,null,null,null,null,null,null,null,null,null,null,null,null,null,null,null,null,null,null,null,null,null,null,null,null,null,null,null,null,null,null,null,null,null,null,null,null,null,null,null,null,null,null,null,null,null,null,null,null,null,null,null,null,null,null,null,null,null,null,null,null,null,null,null,null,null,null,null,null,null,null,null,null,null,null,null,null,null,null,null,null,null,null,null,null,null,null,null,null,null,null,null,null,null,null,null,null,null,null,null,null,null,null,null,null,null,null,null,null,null,null,null,null,null,null,null,null,null,null,null,null,null,null,null,null,null,null,null,null,null,null,null,null,null,null,null,null,null,null,null,null,null,null,null,null,null,null,null,null,null,null,null,null,null,null,null,null,null,null,null,null,null,null,null,null,null,null,null,null,null,null,null,null,null,null,null,null,null,null,null,null,null,null,null,null,null,null,null,null,null,null,null,null,null,null,null,null,null,null,null,null,null,null,null,null,null,null,null,null,null,null,null,null,null,null,null,null,null,null,null,null,null,null,null,null,null,null,null,null,null,null,null,null,null,null,null,null,null,null,null,null,null,null,null,null,null,null,null,null,null,null,null,null,null,null,null,null,null,null,null,null,null,null,null,null,null,null,null,null,null,null,null,null,null,null,null,null,"Cornit 2.6mg","Tab","30's",160,131.91999999999999,{"$f":"100-QH111/QG111*100","v":17.550000000000011},"Valor Pharma"]
[106,"Tab","Glyceryl Trinitrate:6.4mg","30's","Sustac 6.4mg","Tab","30's",214,118,44.859813084112155,"Searle Pharma"]
[107,"Patches","Glyceryltrintrite patches 2.5mg","10's"]
[108,"Patches","Glyceryltrintrite patches 5mg","10's"]
[109,"Inj.","Nitroglycerin 5mg/25mg","1'S"]
[110,"Inj.","Hydralazine 20mg Injection","amp"]
[111,"Tab","Indapamide Hemihydrate 2.5 mg ","30's"]
[112,"Tab","Irbisartan+Hydrochlorothaizide 150/12.5mg","10's",null,null,null,null,null,null,null,null,null,null,null,null,null,null,null,null,null,null,null,null,null,null,null,null,null,null,null,null,null,null,null,null,null,null,null,null,null,null,null,null,null,null,null,null,null,null,null,null,null,null,null,null,null,null,null,null,null,null,null,null,null,null,null,null,null,null,null,null,null,null,null,null,null,null,null,null,null,null,null,null,null,null,null,null,null,null,null,null,null,null,null,null,null,null,null,null,null,null,null,null,null,null,null,null,null,"Irecon-H ","Tab","10's",213,92,{"$f":"100-DJ118/DI118*100","v":56.8075117370892},"BH",null,null,null,null,null,null,null,null,null,null,null,null,null,null,null,null,null,null,null,null,null,null,null,null,null,null,null,null,null,null,null,null,null,null,null,null,null,null,null,null,null,null,null,null,null,null,null,null,null,null,null,null,null,null,null,null,null,null,null,null,null,null,null,null,null,null,null,null,null,null,null,null,null,null,null,null,null,null,null,null,null,null,null,null,null,null,null,null,null,null,null,null,null,null,null,null,null,null,null,null,null,null,null,null,null,null,null,null,null,null,null,null,null,null,null,null,null,null,null,null,null,null,null,null,null,null,null,null,null,null,null,null,null,null,null,null,null,null,null,null,"Co-Approval 150/12.5mg","Tab","10's",1089.1600000000001,925.79,{"$f":"100-JA118/IZ118*100","v":14.99963274450036},"Sanofi Aventis"]
[113,"Tab","Irbisartan+Hydrochlorothaizide 300/25mg","10's",null,null,null,null,null,null,null,null,null,null,null,null,null,null,null,null,null,null,null,null,null,null,null,null,null,null,null,null,null,null,null,null,null,null,null,null,null,null,null,null,null,null,null,null,null,null,null,null,null,null,null,null,null,null,null,null,null,null,null,null,null,null,null,null,null,null,null,null,null,null,null,null,null,null,null,null,null,null,null,null,null,null,null,null,null,null,null,null,null,null,null,null,null,null,null,null,null,null,null,null,null,null,null,null,null,null,null,null,null,null,null,null,null,null,null,null,null,null,null,null,null,null,null,null,null,null,null,null,null,null,null,null,null,null,null,null,null,null,null,null,null,null,null,null,null,null,null,null,null,null,null,null,null,null,null,null,null,null,null,null,null,null,null,null,null,null,null,null,null,null,null,null,null,null,null,null,null,null,null,null,null,null,null,null,null,null,null,null,null,null,null,null,null,null,null,null,null,null,null,null,null,null,null,null,null,null,null,null,null,null,null,null,null,null,null,null,null,null,null,null,null,null,null,null,null,null,null,null,null,null,null,null,null,null,null,null,null,null,null,null,null,null,null,null,null,null,null,null,null,null,null,null,"Co-Approval 300/25mg","Tab","10's",1620.46,1377.39,15.000061710872217,"Sanofi Aventis"]
[114,"Tab","Isocorbide Dinitrate 5mg (Sublingual) OR Glyceryl Trinitrate ","30's"]
[115,"Tab","Isosorbide Dinitrate 10mg","100's"]
[116,"Inj.","Isosorbide Dinitrate 10mg/10ml","10's"]
[117,"Tab","Isosorbide Mononitrate 20mg ","20's",null,null,null,null,null,null,null,null,null,null,null,null,null,null,null,null,null,null,null,null,null,null,null,null,null,null,null,null,null,null,null,null,null,null,null,null,null,null,null,null,null,null,null,null,null,null,null,null,null,null,null,null,null,null,null,null,null,null,null,null,null,null,null,null,null,null,null,null,null,null,null,null,null,null,null,null,null,null,null,null,null,null,null,null,null,null,null,null,null,null,null,null,null,null,null,null,null,null,null,null,null,null,null,null,null,null,null,null,null,null,null,null,null,null,null,null,null,null,null,null,null,null,null,null,null,null,null,null,null,null,null,null,null,null,null,null,null,null,null,null,null,null,null,null,null,null,null,null,null,null,null,null,null,null,null,null,null,null,null,null,null,null,null,null,null,null,null,null,null,null,null,null,null,null,null,null,null,null,null,null,null,null,null,null,null,null,null,null,null,null,null,null,null,null,null,null,null,null,null,null,null,null,null,null,null,null,null,null,null,null,null,null,null,null,null,null,null,null,null,null,null,null,null,null,null,null,null,null,null,null,null,null,null,null,null,null,null,null,null,null,null,null,null,null,null,null,null,null,null,null,null,null,null,null,null,null,null,null,null,null,null,null,null,null,null,null,null,null,null,null,null,null,null,null,null,null,null,null,null,null,null,null,null,null,null,null,null,null,null,null,null,null,null,null,null,null,null,null,null,null,null,null,null,null,null,null,null,null,null,null,null,null,null,null,null,null,null,null,null,null,null,null,null,null,null,null,null,null,null,null,null,null,null,null,null,null,null,null,null,null,null,null,null,null,null,null,null,null,null,null,null,null,null,null,null,null,null,null,null,null,null,null,null,null,null,null,null,null,null,null,null,null,null,null,null,null,null,null,null,null,null,null,null,null,null,null,null,null,null,null,null,null,null,null,null,null,null,null,null,null,null,null,null,null,null,null,null,null,null,null,null,null,null,null,null,null,null,null,null,null,null,null,null,null,null,null,null,null,null,null,null,null,null,null,null,null,null,null,null,null,null,"Monocord 20mg","Tab","20's",63,51.94,{"$f":"100-QH123/QG123*100","v":17.555555555555557},"Valor Pharma"]
[118,"Inj.","Labetalol 50mg Injection","amp"]
[119,"Tab","Lisinopril (As Dihydrate) 10mg","   20's",null,null,null,null,null,null,null,null,null,null,null,null,null,null,null,null,null,null,null,null,null,null,null,null,null,null,null,null,null,null,null,null,null,null,null,null,null,null,null,null,null,null,null,null,null,null,null,null,null,null,null,null,null,null,null,null,null,null,null,null,null,null,null,null,null,null,null,null,null,null,null,null,null,null,null,null,null,null,null,null,null,null,null,null,null,null,null,null,null,null,null,null,null,null,null,null,null,null,"Corace 10mg ","Tab","20's",154,104.72,{"$f":"100-DC125/DB125*100","v":32},"Bosch",null,null,null,null,null,null,null,null,null,null,null,null,null,null,null,null,null,null,null,null,null,null,null,null,null,null,null,null,null,null,null,null,null,null,null,null,null,null,null,null,null,null,null,null,null,null,null,null,null,null,null,null,null,null,null,null,null,null,null,null,null,null,null,null,null,null,null,null,null,null,null,null,null,null,null,null,null,null,null,null,null,null,null,null,null,null,null,null,null,null,null,null,null,null,null,null,null,null,null,null,null,null,null,null,null,null,null,null,null,null,null,null,null,null,null,null,null,null,null,null,null,null,null,null,null,null,null,null,null,null,null,null,null,null,null,null,null,null,null,null,null,null,null,null,null,null,null,null,null,null,null,null,null,null,null,null,null,null,null,null,null,null,null,null,null,null,null,null,null,null,null,null,null,null,null,null,null,null,null,null,null,null,null,null,null,null,null,null,null,null,null,null,null,null,null,null,null,null,null,null,null,null,null,"Bepril 10mg","Tab","10's",82,57,{"$f":"100-LE125/LD125*100","v":30.487804878048792},"Unisons Pharma",null,null,null,null,null,null,null,null,null,null,null,null,null,null,null,null,null,null,null,null,null,null,null,null,null,null,null,null,null,null,null,null,null,null,null,null,null,null,null,null,null,null,"Trupril 10mg","Tab","14's",112.16,95.34,{"$f":"100-NB125/NA125*100","v":14.996433666191137},"Scilife Pharma",null,null,null,null,null,null,null,null,null,null,null,null,null,null,null,null,null,null,null,null,null,null,null,null,null,null,null,null,null,null,null,null,null,null,null,null,null,null,null,null,null,null,null,null,null,null,null,null,null,null,null,null,null,null,null,null,null,null,null,null,null,null,null,null,null,null,null,null,null,null,null,null,null,null,null,null,null,"Lisopril 10mg","Tab","30's",400,329.8,{"$f":"100-QH125/QG125*100","v":17.549999999999997},"Valor Pharma","Conpril 10mg","Tab","10's",83,41.5,{"$f":"100-QO125/QN125*100","v":50},"Convell"]
[123,"Tablet","Nebivolol 2.5mg","14s","Byscard 2.5mg","Tab","14's",108.4,65,40.036900369003689,"Searle Pharma",null,null,null,null,null,null,null,null,null,null,null,null,null,null,null,null,null,null,null,null,null,null,null,null,null,null,null,null,null,null,null,null,null,null,null,null,null,null,null,null,null,null,null,null,null,null,null,null,null,null,null,null,null,null,null,null,null,null,null,null,null,null,null,null,null,null,null,null,null,null,null,null,null,null,null,null,null,null,null,null,null,null,null,null,null,null,null,null,null,null,null,null,null,null,null,null,null,null,null,null,null,null,null,null,null,"Nebix 2.5mg","Tab","14's",100.77,60,{"$f":"100-DQ129/DP129*100","v":40.458469782673411},"Highnoon",null,null,null,null,null,null,null,"Nib 2.5mg","Tab","14's",100.8,56,{"$f":"100-EE129/ED129*100","v":44.444444444444443},"Wilson's",null,null,null,null,null,null,null,null,null,null,null,null,null,null,null,null,null,null,null,null,null,null,null,null,null,null,null,null,null,null,null,null,null,null,null,null,null,null,null,null,null,null,null,null,null,null,null,null,null,null,null,null,null,null,null,null,null,null,null,null,null,null,null,null,null,null,null,null,null,null,null,null,null,null,null,null,null,null,null,null,null,null,null,null,null,null,null,null,null,null,null,null,null,null,null,null,null,null,null,null,null,null,null,null,null,null,null,null,null,null,null,null,null,null,null,null,null,null,null,null,null,null,null,null,null,null,null,null,null,null,null,null,null,null,null,null,null,null,null,null,null,null,null,null,null,null,null,null,null,null,null,null,null,null,null,null,null,null,null,null,null,null,null,null,null,null,null,null,null,null,null,null,null,null,null,null,null,null,null,null,null,null,null,null,null,null,null,null,null,null,null,null,null,null,null,null,null,null,null,null,null,null,null,"Nebil 2.5mg","Tab","14's",97.5,63.01,35.374358974358984,"Getz Pharma"]
[128,"Tab","Nicorandil 10mg","10's"]
[134,"Tab","Propranolol 10mg","100's"]
[140,"Tab","Simvastatin 10mg","20's",null,null,null,null,null,null,null,null,null,null,null,null,null,null,null,null,null,null,null,null,null,null,null,null,null,null,null,null,null,null,null,null,null,null,null,null,null,null,null,null,null,null,null,null,null,null,null,null,null,null,null,null,null,null,null,null,null,null,null,null,null,null,null,null,null,null,null,null,null,null,null,null,null,null,null,null,null,null,null,null,null,null,null,null,null,null,null,null,null,null,null,null,null,null,null,null,null,null,null,null,null,null,null,null,null,null,null,null,null,null,null,null,null,null,null,null,null,null,null,null,null,null,null,null,null,null,null,null,null,null,null,null,null,null,null,null,null,null,null,null,null,null,null,null,null,null,null,null,null,null,null,null,null,null,null,null,null,null,null,null,null,null,null,null,null,null,null,null,null,null,null,null,null,null,null,null,null,null,null,null,null,null,null,null,null,null,null,null,null,null,null,null,null,null,null,null,null,null,null,null,null,null,null,null,null,null,null,null,null,null,null,null,null,null,null,null,null,null,null,null,null,null,null,null,null,null,null,null,null,null,null,null,null,null,null,null,null,null,null,null,null,null,null,null,null,null,null,null,null,null,null,null,null,null,null,null,null,null,null,"Sim-Still 10mg","Tab","10's",166,100,39.75903614457831,"Novamed"]
[151,"Inj.","Enoxaprin (Low mol Wt.Heparin) 20mg","2's"]
[155,"Inj.","Heparin 5000 IU","Vial",null,null,null,null,null,null,null,null,null,null,null,null,null,null,null,null,null,null,null,null,null,null,null,null,null,null,null,null,null,null,null,null,null,null,null,null,null,null,null,null,null,null,null,null,null,null,null,null,null,null,null,null,null,null,null,null,null,null,null,null,null,null,null,null,null,null,null,null,null,null,null,null,null,null,null,null,null,null,null,null,null,null,null,null,null,null,null,null,null,null,null,null,null,null,null,null,null,null,null,null,null,null,null,null,null,null,null,null,null,null,null,null,null,null,null,null,null,null,null,null,null,null,null,null,null,null,null,null,null,null,null,null,null,null,null,null,null,null,null,null,null,null,null,null,null,null,null,null,null,null,null,null,null,null,null,null,null,null,null,null,null,null,null,null,null,null,null,null,null,null,null,null,null,null,null,"Heprin 5000IU","Inj","1's",550,415,{"$f":"100-GB161/GA161*100","v":24.545454545454547},"B.Braun"]
[162,"Cap/Tab","Tranexamic Acid 250mg","30's",null,null,null,null,null,null,null,null,null,null,null,null,null,null,null,null,null,null,null,null,null,null,null,null,null,null,null,null,"Transcam 250mg","Cap","10's",65,48.62,25.200000000000003,"Chas a Mendoza",null,null,null,null,null,null,null,null,null,null,null,null,null,null,"Brino 250mg","Tab","20's",134.6,75,44.279346210995541,"Sami","Maxna 250mg","Cap","30's",134.6,97.24,{"$f":"100-BM168/BL168*100","v":27.756315007429421},"AGP",null,null,null,null,null,{"$f":"100-BT168/BS168*100","v":{"$error":"#DIV/0!"}},null,null,null,null,null,null,null,null,null,null,null,null,null,null,null,null,null,null,null,null,null,null,null,null,null,null,null,null,null,"Btrol 250mg ","Cap","10's",65,46.96,27.753846153846155,"Bosch",null,null,null,null,null,null,null,null,null,null,null,null,null,null,null,null,null,null,null,null,null,null,null,null,null,null,null,null,null,null,null,null,null,null,null,"Xed 250mg ","Cap","30's",224.25,152.49,32,"Indus Pharma",null,null,null,null,null,null,null,null,null,null,null,null,null,null,null,null,null,null,null,null,null,null,null,null,null,null,null,null,null,null,null,null,null,null,null,null,null,null,null,null,null,null,null,null,null,null,null,null,null,null,null,null,null,null,null,null,null,null,null,null,null,null,null,null,null,null,null,null,null,null,null,null,null,null,null,null,null,null,null,null,null,null,null,null,null,null,null,null,null,null,null,null,null,null,null,null,null,null,null,null,null,null,null,null,null,null,null,null,null,null,null,null,null,null,null,null,null,null,null,null,null,null,null,null,null,null,null,null,null,null,null,null,null,null,null,null,null,null,null,null,null,null,null,null,null,null,null,null,null,null,null,null,null,null,null,null,null,null,null,null,null,null,null,null,null,null,null,null,null,null,null,null,null,null,null,null,null,null,null,null,null,null,null,null,null,null,null,null,null,null,null,null,null,null,null,null,null,null,null,null,null,null,null,null,null,null,null,null,null,null,null,null,null,null,null,null,null,null,null,null,null,null,null,null,null,null,null,null,null,null,null,null,null,null,null,null,null,null,null,null,null,null,null,null,null,null,null,null,null,null,null,null,"Traxacid 250mg","Cap","20's",130,74.5,{"$f":"100-OR168/OQ168*100","v":42.692307692307693},"Asian Contiental"]
[167,"Tab","Diclofenac sodium75+Misoprostol 200mcg",20,"Rotec 75mg","Tab","20's",275,175,36.363636363636367,"Searle Pharma",null,null,null,null,null,null,null,null,null,null,null,null,null,null,null,null,null,null,null,null,null,null,null,null,null,null,null,null,null,null,null,null,null,null,null,"Esmart ","Tab","20's",247.46,129.41999999999999,47.700638487028215,"Pharmevo",null,null,null,null,null,null,null,"Magnofenac 75mg","Tab","20's",80,61.2,{"$f":"100-BM173/BL173*100","v":23.5},"AGP",null,null,null,null,null,{"$f":"100-BT173/BS173*100","v":{"$error":"#DIV/0!"}}]
[173,"Inj.","Diclofenac Sodium 75mg/3ml","05's",null,null,null,null,null,null,null,null,null,null,null,null,null,null,null,null,null,null,null,null,null,null,null,null,null,null,null,null,null,null,null,null,null,null,null,null,null,null,null,null,null,null,null,null,null,null,null,null,null,null,null,null,null,null,null,null,"Magnofenac 3ml ","Inj","5's",80,61.2,{"$f":"100-BM179/BL179*100","v":23.5},"AGP",null,null,null,null,null,{"$f":"100-BT179/BS179*100","v":{"$error":"#DIV/0!"}},null,null,null,null,null,null,null,null,null,null,null,null,null,null,null,null,null,null,null,null,null,null,null,null,null,null,null,null,null,"Orthofenac 75mg ","Tab","5's",110,70.13,{"$f":"100-DC179/DB179*100","v":36.24545454545455},"Bosch","Mobikare 75mg","Inj","5'S",130,60.87,{"$f":"100-DJ179/DI179*100","v":53.176923076923075},"BH",null,null,null,null,null,null,null,null,null,null,null,null,null,null,null,null,null,null,null,null,null,null,null,null,null,null,null,null,"Dyclo 75mg ","Inj","20's",295.45999999999998,172,{"$f":"100-ES179/ER179*100","v":41.785690110336418},"Indus Pharma","Volfen 75mg","Inj","5's",82.85,44.95,{"$f":"100-EZ179/EY179*100","v":45.745322872661433},"Saydon Pharma",null,null,null,null,null,null,null,null,null,null,null,null,null,null,null,null,null,null,null,null,null,null,null,null,null,null,null,null,null,null,null,null,null,null,null,null,null,null,null,null,null,null,null,null,null,null,null,null,null,null,null,null,null,null,null,null,null,null,null,null,null,null,null,null,null,null,null,null,null,null,"Bajfenac ","Inj","100's",1096,750,{"$f":"100-HY179/HX179*100","v":31.569343065693431},"Bajwa Pharma",null,null,null,null,null,null,null,null,null,null,null,null,null,null,null,null,null,null,null,null,null,null,null,null,null,null,null,null,"Dianic Inj 75mg/3ml","Inj","5's",65,32.5,{"$f":"100-JH179/JG179*100","v":50},"Novamed","Neurofenac ","Inj","5's",147,112.46,{"$f":"100-JO179/JN179*100","v":23.496598639455783},"Martin Dow",null,null,null,null,null,null,null,"Phlogin ","Inj","5's",136.96,48,{"$f":"100-KC179/KB179*100","v":64.953271028037392},"Brooks",null,null,null,null,null,null,null,null,null,null,null,null,null,null,null,null,null,null,null,null,null,null,null,null,null,null,null,null,null,null,null,null,null,null,null,null,null,null,null,null,null,null,null,null,null,null,null,null,null,null,null,null,null,null,null,null,null,null,null,null,null,null,null,null,null,null,null,null,null,null,null,null,null,null,null,null,null,null,null,null,null,null,null,null,"Fenlok 75mg","Inj","5's",65,31,{"$f":"100-NP179/NO179*100","v":52.307692307692307},"GMP Pharma","Artifen ","Inj","5's",136.97,116.42,{"$f":"100-NW179/NV179*100","v":15.003285390961523},"Abbott LAB",null,null,null,null,null,null,null,null,null,null,null,null,null,null,"Voren ","Inj","100's",2710.67,1985,{"$f":"100-OR179/OQ179*100","v":26.770872146000798},"Asian Contiental",null,null,null,null,null,null,null,null,null,null,null,null,null,null,null,null,null,null,null,null,null,null,null,null,null,null,null,null,"Lisodim 75mg","Inj","100's",1521,918.75,{"$f":"100-QA179/PZ179*100","v":39.595660749506898},"Surge Lab"]
[179,"Susp","Ibuprofen 200mg +Pseudoephedrine 30mg","60ml",null,null,null,null,null,null,null,null,null,null,null,null,null,null,null,null,null,null,null,null,null,null,null,null,null,null,null,null,null,null,null,null,null,null,null,null,null,null,null,null,null,null,null,null,null,null,null,null,null,null,null,null,null,null,null,null,null,null,null,null,null,null,null,null,null,null,null,null,null,null,null,null,null,null,null,null,null,null,null,null,null,null,null,null,null,null,null,null,null,null,null,null,null,null,null,null,null,null,null,null,null,null,null,null,null,null,null,null,null,null,null,null,null,null,null,null,null,null,null,null,null,null,null,null,null,null,null,null,null,null,null,null,null,null,null,null,null,null,null,null,null,null,null,null,null,null,null,null,null,null,null,null,null,null,null,null,null,null,null,null,null,null,null,null,null,null,null,null,null,null,null,null,null,null,null,null,null,null,null,null,null,null,null,null,null,null,null,null,null,null,null,null,null,null,null,null,null,null,null,null,null,null,null,null,null,null,null,null,null,null,null,null,null,null,null,null,null,null,null,null,null,null,null,null,null,null,null,null,null,null,null,null,null,null,null,null,null,null,null,null,null,null,null,null,null,null,null,null,null,null,null,null,null,null,null,null,null,null,null,null,null,null,null,null,null,null,null,null,null,null,null,null,null,null,null,null,null,null,null,null,null,null,null,null,null,null,null,null,null,null,null,null,null,null,null,null,null,null,null,null,null,null,null,null,null,null,null,null,null,null,null,null,null,null,null,null,null,null,null,null,null,null,null,null,null,null,null,null,null,null,null,null,null,null,null,null,null,null,null,null,null,null,null,null,null,null,null,null,null,null,null,null,null,null,null,null,null,null,null,null,null,null,null,null,null,null,null,null,null,null,null,null,null,null,null,null,null,null,"Arinac ","Susp","120ml",65.819999999999993,55.95,14.99544211485869,"Abbott LAB"]
[186,"Tab/Cap","Leflonamide 20mg","30's"]
[191,"Tab","Naproxin Sodium 550mg","30's",null,null,null,null,null,null,null,null,null,null,null,null,null,null,null,null,null,null,null,null,null,null,null,null,null,null,null,null,null,null,null,null,null,null,null,null,null,null,null,null,null,null,null,null,null,null,null,null,null,null,null,null,null,null,null,null,null,null,null,null,null,null,null,null,null,null,null,null,null,null,null,null,null,null,null,null,null,null,null,null,null,null,null,null,null,null,null,null,null,null,null,null,null,null,null,null,null,null,null,null,null,null,null,null,null,null,null,null,null,null,null,null,null,null,null,null,null,null,null,null,null,null,null,null,null,null,null,null,null,null,null,null,null,null,null,null,null,null,null,null,null,null,null,null,null,null,null,null,null,null,null,null,null,null,null,null,null,null,null,null,null,null,null,null,null,null,null,null,null,null,null,null,null,null,null,null,null,null,null,null,null,null,null,null,null,null,null,null,null,null,null,null,null,null,null,null,"GIA 550MG","Tab","30's",225.69,149,{"$f":"100-GW197/GV197*100","v":33.980238380078859},"Hiranis Pharma",null,null,null,null,null,null,null,null,null,null,null,null,null,null,null,null,null,null,null,null,null,null,null,null,null,null,null,null,null,null,null,null,null,null,null,null,null,null,null,null,null,null,null,null,null,null,null,null,null,null,null,null,null,null,null,null,"Roxen 550mg","Tab","20's",143,88,38.46153846153846,"Novamed ","Apranax 550mg ","Tab","20's",230,195.5,{"$f":"100-JO197/JN197*100","v":15},"Martin Dow",null,null,null,null,null,null,null,null,null,null,null,null,null,null,null,null,null,null,null,null,null,null,null,null,null,null,null,null,null,null,null,null,null,null,null,null,null,null,null,null,null,null,"Tormax 550mg","Tablet","20's",184.71,141.30000000000001,{"$f":"100-LL197/LK197*100","v":23.501705375994803},"Platinum Pharma",null,null,null,null,null,null,null,null,null,null,null,null,null,null,null,null,null,null,null,null,null,null,null,null,null,null,null,null,null,null,null,null,null,null,null,null,null,null,null,null,null,null,null,null,null,null,null,null,null,null,null,null,null,null,null,null,"Flexin 500mg","Tab","30's",228.65,194.35,15.001093374152646,"Abbott LAB",null,null,null,null,null,null,null,null,null,null,null,null,null,null,null,null,null,null,null,null,null,null,null,null,null,null,null,null,null,null,null,null,null,null,null,null,null,null,null,null,null,null,null,null,null,null,null,null,null,null,null,null,null,null,null,null,"Zenap 500mg","Tab","20'S",143,117.9,17.552447552447546,"Valor Pharma"]
[203,"Tab","Piroxiam20mg,cyclodextrin 20mg ","20's",null,null,null,null,null,null,null,"Pirexen 20mg","Tab","20's",183.7,99.81,{"$f":"100-P209/O209*100","v":45.666848121937939},"Saffron",null,null,null,null,null,null,null,null,null,null,null,null,null,null,null,null,null,null,null,null,null,null,null,null,null,null,null,null,null,null,null,null,null,null,null,null,null,null,null,null,null,null,"Briax 20mg ","Tab","20's",183.69,140.52600000000001,{"$f":"100-BM209/BL209*100","v":23.498285154336102},"AGP",null,null,null,null,null,{"$f":"100-BT209/BS209*100","v":{"$error":"#DIV/0!"}},null,null,null,null,null,null,null,null,null,null,null,null,null,null,null,null,null,null,null,null,null,null,null,null,null,null,null,null,null,null,null,null,null,null,null,null,null,null,null,null,null,null,null,null,null,null,null,null,null,null,null,null,null,null,null,null,null,null,null,null,null,null,null,null,null,null,null,null,null,null,null,null,null,null,null,null,null,null,null,null,null,null,null,null,null,null,null,null,null,null,null,null,"Brexin 20mg","Tab","20's",305,254.07,{"$f":"100-FN209/FM209*100","v":16.698360655737716},"Chiesi Pharma",null,null,null,null,null,null,null,null,null,null,null,null,null,null,null,null,null,null,null,null,null,null,null,null,null,null,null,null,"Relevo 20mg","Tab","20's",183.7,48.48,{"$f":"100-GW209/GV209*100","v":73.609145345672289},"Hiranis Pharma",null,null,null,null,null,null,null,null,null,null,null,null,null,null,null,null,null,null,null,null,null,null,null,null,null,null,null,null,null,null,null,null,null,null,null,null,null,null,null,null,null,null,"Arkcin 20mg","Tab","20's",175,45,{"$f":"100-IT209/IS209*100","v":74.285714285714292},"3S Pharma",null,null,null,null,null,null,null,null,null,null,null,null,null,null,null,null,null,null,null,null,null,null,null,null,null,null,null,null,null,null,null,null,null,null,null,null,null,null,null,null,null,null,null,null,null,null,null,null,null,null,null,null,null,null,null,null,"Camtrin ","Tab","20's",175,61,{"$f":"100-LE209/LD209*100","v":65.142857142857139},"Synchro Pharma",null,null,null,null,null,null,null,null,null,null,null,null,null,null,null,null,null,null,null,null,null,null,null,null,null,null,null,null,null,null,null,null,null,null,null,null,null,null,null,null,null,null,null,null,null,null,null,null,null,null,null,null,null,null,null,null,null,null,null,null,null,null,null,null,null,null,null,null,null,null,null,null,null,null,null,null,null,null,null,null,null,null,null,null,null,null,null,null,null,null,null,null,null,null,null,null,null,null,null,null,null,null,null,null,null,null,null,null,null,null,null,null,null,null,null,null,null,null,null,null,null,null,null,null,null,null,"Pharox-B ","Tab","20's",175,144.29,{"$f":"100-QH209/QG209*100","v":17.548571428571435},"Valor Pharma"]
[206,"Tab","Tizanidine2mg","10's",null,null,null,null,null,null,null,null,null,null,null,null,null,null,null,null,null,null,null,null,null,null,null,null,null,null,null,null,null,null,null,null,null,null,null,null,null,null,null,null,null,null,null,null,null,null,null,null,null,null,null,null,null,null,null,null,"Analar 2mg","Tab","10's",87.12,48.1325,{"$f":"100-BM212/BL212*100","v":44.751492194674015},"AGP",null,null,null,null,null,{"$f":"100-BT212/BS212*100","v":{"$error":"#DIV/0!"}},null,null,null,null,null,null,null,null,null,null,null,null,null,null,null,null,null,null,null,null,null,null,null,null,null,null,null,null,null,null,null,null,null,null,null,null,"Terlax ","Tab","10's",95.45,17.850000000000001,{"$f":"100-DJ212/DI212*100","v":81.299109481403875},"BH",null,null,null,null,null,null,null,null,null,null,null,null,null,null,null,null,null,null,null,null,null,null,null,null,null,null,null,null,null,null,null,null,null,null,null,"Tinza 2mg","Tab","10's",80,18.850000000000001,{"$f":"100-EZ212/EY212*100","v":76.4375},"Saydon Pharma",null,null,null,null,null,null,null,null,null,null,null,null,null,null,null,null,null,null,null,null,null,null,null,null,null,null,null,null,null,null,null,null,null,null,null,null,null,null,null,null,null,null,null,null,null,null,null,null,null,null,null,null,null,null,null,null,null,null,null,null,null,null,null,null,null,null,null,null,null,null,null,null,null,null,null,null,null,null,null,null,null,null,null,null,null,null,null,null,null,null,null,"Vizin 2mg","Tab","10's",83,14.69,{"$f":"100-IT212/IS212*100","v":82.301204819277103},"3S Pharma",null,null,null,null,null,null,null,null,null,null,null,null,null,null,"Tizorel ","Tab","10's",81.599999999999994,64.23,21.286764705882348,"Martin Dow",null,null,null,null,null,null,null,null,null,null,null,null,null,null,null,null,null,null,null,null,null,null,null,null,null,null,null,null,null,null,null,null,null,null,null,"Xantix 2mg","Tab","10's",83,43,{"$f":"100-LE212/LD212*100","v":48.192771084337352},"Wimits Pharma",null,null,null,null,null,null,null,"Cibtaz 2mg","Tab","10's",83,29.5,{"$f":"100-LS212/LR212*100","v":64.457831325301214},"Cibex Pvt Ltd",null,null,null,null,null,null,null,null,null,null,null,null,null,null,null,null,null,null,null,null,null,"Zantid 2mg","Tab","10's",95.45,32,{"$f":"100-MU212/MT212*100","v":66.474594028287058},"Sante Pvt Ltd",null,null,null,null,null,null,null,null,null,null,null,null,null,null,null,null,null,null,null,null,null,null,null,null,null,null,null,null,null,null,null,null,null,null,null,null,null,null,null,null,null,null,null,null,null,null,null,null,null,null,null,null,null,null,null,null,null,null,null,null,null,null,null,"Relaxit 2g","Tab","10's",80,38.35,{"$f":"100-PM212/PL212*100","v":52.0625},"Glitz Pharma",null,null,null,null,null,null,null,null,null,null,null,null,null,null,null,null,null,null,null,null,null,"Myotiz 2mg","Tab","10's",83,37,{"$f":"100-QO212/QN212*100","v":55.421686746987952},"Convell"]
[214,"Tab","Clobazam 10mg","100's"]
[218,"Tab","Divalprex Sodium 500mg","100's",null,null,null,null,null,null,null,null,null,null,null,null,null,null,null,null,null,null,null,null,null,null,null,null,null,null,null,null,null,null,null,null,null,null,null,null,null,null,null,null,null,null,null,null,null,null,null,null,null,null,null,null,null,null,null,null,null,null,null,null,null,null,null,null,null,null,null,null,null,null,null,null,null,null,null,null,null,null,null,null,null,null,null,null,null,null,null,null,null,null,null,null,null,null,null,null,null,null,null,null,null,null,null,null,null,null,null,null,null,null,null,null,null,null,null,null,null,null,null,null,null,null,null,null,null,null,null,null,null,null,null,null,null,null,null,null,null,null,null,null,null,null,null,null,null,null,null,null,null,null,null,null,null,null,null,null,null,null,null,null,null,null,null,null,null,null,null,null,null,null,null,null,null,null,null,null,null,null,null,null,null,null,null,null,null,null,null,null,null,null,null,null,null,null,null,null,null,null,null,null,null,null,null,null,null,null,null,null,null,null,null,null,null,null,null,null,null,null,null,null,null,null,null,null,null,null,null,null,null,null,null,null,null,null,null,null,null,null,null,null,null,null,null,null,null,null,null,null,null,null,null,null,null,null,null,null,null,null,null,null,null,null,null,null,null,null,null,null,null,null,null,null,null,null,null,null,null,null,null,null,null,null,null,null,null,null,null,null,null,null,null,null,null,null,null,null,null,null,null,null,null,null,null,null,null,null,null,null,null,null,null,null,null,null,null,"Dapakan 500mg","Tab","20's",113.85,72.58,36.249451032059724,"Platinum Pharma",null,null,null,null,null,null,null,null,null,null,null,null,null,null,null,null,null,null,null,null,null,null,null,null,null,null,null,null,null,null,null,null,null,null,null,null,null,null,null,null,null,null,null,null,null,null,null,null,null,null,null,null,null,null,null,null,"Epival 500mg","Tab","100's",887.3,754.21,14.999436492730752,"Abbott LAB"]
[224,"Tab","Quetiapine 100mg","10S",null,null,null,null,null,null,null,null,null,null,null,null,null,null,null,null,null,null,null,null,null,null,null,null,null,null,null,null,null,null,null,null,null,null,null,null,null,null,null,null,null,null,"Evokalm 100mg","Tab","10's",217.5,93,57.241379310344826,"Pharmevo",null,null,null,null,null,null,null,null,null,null,null,null,null,null,null,null,null,null,null,null,null,null,null,null,null,null,null,null,null,null,null,null,null,null,null,null,null,null,null,null,null,null,null,null,null,null,null,null,null,null,null,null,null,null,null,null,null,null,null,null,null,null,null,null,null,null,null,null,null,null,null,null,null,null,null,null,null,null,null,null,null,null,null,null,null,null,null,null,null,null,null,null,null,null,null,null,null,null,null,null,null,null,null,null,null,null,null,null,null,null,null,null,null,null,null,null,null,null,null,null,null,null,null,null,null,null,null,null,null,null,null,null,null,null,null,null,null,null,null,null,null,null,null,null,null,null,null,"Qutenza 100mg","Tab","10's",220,98,{"$f":"100-GW231/GV231*100","v":55.454545454545453},"Hiranis Pharma",null,null,null,null,null,null,null,null,null,null,null,null,null,null,null,null,null,null,null,null,null,null,null,null,null,null,null,null,null,null,null,null,null,null,null,null,null,null,null,null,null,null,null,null,null,null,null,null,null,null,null,null,null,null,null,null,null,null,null,null,null,null,null,null,null,null,null,null,null,null,null,null,null,null,null,null,null,null,null,null,null,null,null,null,null,null,null,null,null,null,null,null,null,null,null,null,null,null,null,null,null,null,null,null,null,null,null,null,null,null,null,null,"Quetap 100mg ","Tab","30's",540,321.3,{"$f":"100-LL231/LK231*100","v":40.5},"Platinum Pharma",null,null,null,null,null,null,null,null,null,null,null,null,null,null,null,null,null,null,null,null,null,null,null,null,null,null,null,null,null,null,null,null,null,null,null,null,null,null,null,null,null,null,null,null,null,null,null,null,null,null,null,null,null,null,null,null,null,null,null,null,null,null,null,null,null,null,null,null,null,null,null,null,null,null,null,null,null,null,null,null,null,null,null,null,null,null,null,null,null,null,null,null,null,null,null,null,null,null,"Qutia 100mg","Tab","30's",570,412.5,{"$f":"100-PM231/PL231*100","v":27.631578947368425},"Glitz Pharma"]
[229,"Tab","Ropinirole 0.25mg","10's"]
[236,"Tab","Alprazolam 0.5mg","30's",null,null,null,null,null,null,null,null,null,null,null,null,null,null,null,null,null,null,null,null,null,null,null,null,null,null,null,null,null,null,null,null,null,null,null,null,null,null,null,null,null,null,null,null,null,null,null,null,null,null,null,null,null,null,null,null,null,null,null,null,null,null,null,null,null,null,null,null,null,null,null,null,null,null,null,null,null,null,null,null,null,null,null,null,null,null,null,null,null,null,null,null,null,null,null,null,null,null,null,null,null,null,null,null,null,null,null,null,null,null,null,null,null,null,null,null,null,null,null,null,null,null,null,null,null,null,null,null,null,null,null,null,null,null,null,null,null,null,null,null,null,null,null,null,null,null,null,null,null,null,null,null,null,null,null,null,null,null,null,null,null,null,null,null,null,null,null,null,null,null,null,null,null,null,null,null,null,null,null,null,null,null,null,null,null,null,null,null,null,null,null,null,null,null,null,null,null,null,null,null,null,null,null,null,null,null,null,null,null,null,null,null,null,null,null,null,null,null,null,null,null,null,null,null,null,null,null,null,null,null,null,null,null,null,null,null,null,null,null,null,null,null,null,null,null,null,null,null,null,null,null,null,null,null,null,null,null,null,null,"Prazolam 0.5mg ","Tab","30's",147,118.8,{"$f":"100-JH244/JG244*100","v":19.183673469387756},"Novamed ",null,null,null,null,null,null,null,null,null,null,null,null,null,null,null,null,null,null,null,null,null,null,null,null,null,null,null,null,null,null,null,null,null,null,null,null,null,null,null,null,null,null,null,null,null,null,null,null,null,null,null,null,null,null,null,null,null,null,null,null,null,null,null,null,null,null,null,null,null,null,null,null,null,null,null,null,null,null,null,null,null,null,null,null,null,null,null,null,null,null,null,null,null,null,null,null,null,null,null,null,null,null,null,null,null,null,null,null,null,null,null,null,null,null,null,null,null,null,null,null,null,null,null,null,null,null,"Axal .5mg","Tab","30's",190,161.5,{"$f":"100-OK244/OJ244*100","v":15},"Amson Vaccines & Pharma"]
[244,"Tab","Diazepam 5mg/10mg ","100's"]
[248,"Inj.","Midazolam 5mg/ml","Amp"]
[255,"Syp","Chlorpromazine HCI 25mg/5ml","120ml"]
[267,null,"(Q) Anti-Parkinsonism"]
[268,"Tab","Amantadine Sulphate 100mg","20's",null,null,null,null,null,null,null,null,null,null,null,null,null,null,null,null,null,null,null,null,null,null,null,null,null,null,null,null,null,null,null,null,null,null,null,null,null,null,null,null,null,null,null,null,null,null,null,null,null,null,null,null,null,null,null,null,null,null,null,null,null,null,null,null,null,null,null,null,null,null,null,null,null,null,null,null,null,null,null,null,null,null,null,null,null,null,null,null,null,null,null,null,null,null,null,null,null,null,null,null,null,null,null,null,null,null,null,null,null,null,null,null,null,null,null,null,null,null,null,null,null,null,null,null,null,null,null,null,null,null,null,null,null,null,null,null,null,null,null,null,null,null,null,null,null,null,null,null,null,null,null,null,null,null,null,null,null,null,null,null,null,null,null,null,null,null,null,null,null,null,null,null,null,null,null,null,null,null,null,null,null,null,null,null,null,null,null,null,null,null,null,null,null,null,null,null,null,null,null,null,null,null,null,null,null,null,null,null,null,null,null,null,null,null,null,null,null,null,null,null,null,null,null,null,null,null,null,null,null,null,null,null,null,null,null,null,null,null,null,null,null,null,null,null,null,null,null,null,null,null,null,null,null,null,null,null,null,null,null,null,null,null,null,null,null,null,null,null,null,null,null,null,null,null,null,null,null,null,null,null,"Pk-Merz 100mg","Tab","20's",316.8,235,{"$f":"100-KC276/KB276*100","v":25.820707070707073},"Brooks"]
[279,"Tab","Ebastine 10mg","10's",null,null,null,null,null,null,null,null,null,null,null,null,null,null,null,null,null,null,null,null,null,null,null,null,null,null,null,null,null,null,null,null,null,null,null,null,null,null,null,null,null,null,null,null,null,null,null,null,null,null,null,null,null,null,null,null,null,null,null,null,null,null,null,null,null,null,null,null,null,null,null,null,null,null,null,null,null,null,null,null,null,null,null,null,null,null,null,null,null,null,null,null,null,null,null,null,null,null,null,null,null,null,null,null,null,null,null,null,null,null,null,null,"Kestine 10mg","Tab","10's",149.03,120,{"$f":"100-DQ287/DP287*100","v":19.479299469905385},"Highnoon",null,null,null,null,null,null,null,null,null,null,null,null,null,null,null,null,null,null,null,null,null,null,null,null,null,null,null,null,null,null,null,null,null,null,null,null,null,null,null,null,null,null,null,null,null,null,null,null,null,null,null,null,null,null,null,null,null,null,null,null,null,null,null,null,null,null,null,null,null,null,null,null,null,null,null,null,null,"Olivestin 10mg","Tab","10's",99.72,24.78,75.150421179302043,"Hiranis Pharma",null,null,null,null,null,null,null,null,null,null,null,null,null,null,null,null,null,null,null,null,null,null,null,null,null,null,null,null,null,null,null,null,null,null,null,null,null,null,null,null,null,null,null,null,null,null,null,null,null,null,null,null,null,null,null,null,null,null,null,null,null,null,null,null,null,null,null,null,null,null,null,null,null,null,null,null,null,null,null,null,null,null,null,null,null,null,null,null,null,null,null,null,null,null,null,null,null,null,null,null,null,null,null,null,null,null,null,null,null,null,null,null,null,null,null,null,null,null,null,null,null,null,null,null,null,null,null,null,null,null,null,null,null,null,null,null,null,null,null,null,null,null,null,null,null,null,null,null,null,null,null,null,null,null,null,null,null,null,null,null,null,null,null,null,null,null,null,null,null,null,null,null,null,null,null,null,null,null,null,null,null,null,null,null,null,null,null,null,null,null,null,null,null,null,null,null,null,null,null,null,null,null,null,null,null,null,null,null,null,null,null,null,null,null,null,null,null,"Ebglit 10mg","Tab","10's",125,45,{"$f":"100-PM287/PL287*100","v":64},"Glitz Pharma"]
[285,"Tab","Levocetrizine 5mg","10's",null,null,null,null,null,null,null,null,null,null,null,null,null,null,null,null,null,null,null,null,null,null,null,null,null,null,null,null,null,null,null,null,null,null,null,null,null,null,null,null,null,null,null,null,null,null,null,null,null,"Neo-Sedil","Tab","10's",57.73,37.4,35.215659102719556,"Sami",null,null,null,null,null,null,null,null,null,null,null,null,null,null,null,null,null,null,null,null,null,null,null,null,null,null,null,null,null,null,null,null,null,null,null,null,null,null,null,null,null,null,null,null,null,null,null,null,null,null,null,null,null,null,null,null,null,null,null,null,null,null,null,null,null,null,null,null,null,null,null,null,null,null,null,null,null,null,null,null,null,null,null,null,"Irnazin","Tab","10's",57.74,39.26,{"$f":"100-ES293/ER293*100","v":32.005542085209569},"Indus Pharma",null,null,null,null,null,null,null,null,null,null,null,null,null,null,null,null,null,null,null,null,null,null,null,null,null,null,null,null,null,null,null,null,null,null,null,null,null,null,null,null,null,null,null,null,null,null,null,null,null,null,null,null,null,null,null,null,null,null,null,null,null,null,null,"T Day 5mg","Tab","30's",173.2,125,{"$f":"100-HK293/HJ293*100","v":27.829099307159339},"Gsk OTC",null,null,null,null,null,null,null,null,null,null,null,null,null,null,null,null,null,null,null,null,null,"Leviva 5mg","Tab","10's",57.73,25,{"$f":"100-IM293/IL293*100","v":56.694959293261732},"Tiltis Pharma","Levamin 5mg","Tab","10's",55,16.95,{"$f":"100-IT293/IS293*100","v":69.181818181818187},"3S Pharma",null,null,null,null,null,null,null,null,null,null,null,null,null,null,null,null,null,null,null,null,null,null,null,null,null,null,null,null,"Levocit 5mg","Tab","10's",50,22,{"$f":"100-KC293/KB293*100","v":56},"Brooks",null,null,null,null,null,null,null,null,null,null,null,null,null,null,null,null,null,null,null,null,null,"Pip 5mg","Tab","10's",55,22,{"$f":"100-LE293/LD293*100","v":60},"Unisons Pharma",null,null,null,null,null,null,null,null,null,null,null,null,null,null,null,null,null,null,null,null,null,null,null,null,null,null,null,null,null,null,null,null,null,null,null,null,null,null,null,null,null,null,null,null,null,null,null,null,null,null,null,null,null,null,null,null,null,null,null,null,null,null,null,null,null,null,null,null,null,null,null,null,null,null,null,null,null,null,null,null,null,null,null,null,"Atiza 5mg","Tab","30's",152,105,{"$f":"100-OR293/OQ293*100","v":30.921052631578945},"Asian Contiental",null,null,null,null,null,null,null,null,null,null,null,null,null,null,"Zeocit 5mg","Tab","10's",54,27,{"$f":"100-PM293/PL293*100","v":50},"Glitz Pharma",null,null,null,null,null,null,null,null,null,null,null,null,null,null,null,null,null,null,null,null,null,null,null,null,null,null,null,null,null,null,null,null,null,null,null,"Etrizine-L ","Tab","10's",46.75,37.4,{"$f":"100-RC293/RB293*100","v":20},"Derma Techno"]
[287,"Syp","Loratadine 5mg/5ml","30 ml",null,null,null,null,null,null,null,null,null,null,null,null,null,null,null,null,null,null,null,null,null,"Allerwood 5mg/5ml","Syp","30ml",32,23.94,25.1875,"W.Wards",null,null,null,null,null,null,null,null,null,null,null,null,null,null,null,null,null,null,null,null,null,null,null,null,null,null,null,null,null,null,null,null,null,null,null,null,null,null,null,null,null,null,null,null,null,null,null,null,null,null,null,null,null,null,null,null,null,null,null,null,null,null,null,null,null,null,null,null,null,null,null,null,null,null,null,null,null,null,null,null,null,null,null,null,"Senergy-OD","Susp","30ml",50,38,24,"Highnoon",null,null,null,null,null,null,null,"Talergin 5mg","Syp","1'S",54.06,36.700000000000003,32.112467628560864,"Wilson's",null,null,null,null,null,null,null,null,null,null,null,null,null,null,null,null,null,null,null,null,null,null,null,null,null,null,null,null,null,null,null,null,null,null,null,null,null,null,null,null,null,null,null,null,null,null,null,null,null,null,null,null,null,null,null,null,null,null,null,null,null,null,null,null,null,null,null,null,null,null,null,null,null,null,null,null,null,null,null,null,null,null,null,null,null,null,null,null,null,null,null,null,null,null,null,null,null,null,null,null,null,null,null,null,null,null,null,null,null,null,null,null,null,null,null,null,null,null,null,null,null,null,null,null,null,null,"Clarin 10mg ","Syp","30ml",28.75,23.5,18.260869565217391,"Novamed ","Exigentin ","Syp","60ml",49.71,40.96,17.602092134379404,"Martin Dow",null,null,null,null,null,null,null,null,null,null,null,null,null,null,null,null,null,null,null,null,null,null,null,null,null,null,null,null,null,null,null,null,null,null,null,null,null,null,null,null,null,null,null,null,null,null,null,null,null,null,null,null,null,null,null,null,null,null,null,null,null,null,null,null,null,null,null,null,null,null,null,null,null,null,null,null,null,null,null,null,null,null,null,null,null,null,null,null,null,null,null,null,null,null,null,null,null,null,null,null,null,null,null,null,null,null,null,null,null,null,null,null,null,null,null,null,null,null,null,null,null,null,null,null,null,null,null,null,null,null,null,null,null,null,null,null,null,null,null,null,null,null,null,null,null,null,null,null,null,null,null,null,null,null,null,null,null,null,null,null,null,null,null,null,null,null,null,null,null,null,null,null,null,null,null,null,null,null,null,null,null,null,"Loratacare","Syp","60ml",49,36.75,{"$f":"100-QV295/QU295*100","v":25},"Care Pharma"]
[296,"Tab","Co-Dergocrine Mesylate 1.5mg","30's",null,null,null,null,null,null,null,null,null,null,null,null,null,null,null,null,null,null,null,null,null,null,null,null,null,null,null,null,null,null,null,null,null,null,null,null,null,null,null,null,null,null,null,null,null,null,null,null,null,null,null,null,null,null,null,null,null,null,null,null,null,null,null,null,null,null,null,null,null,null,null,null,null,null,null,null,null,null,null,null,null,null,null,null,null,null,null,null,null,null,null,null,null,null,null,null,null,null,null,null,null,null,null,null,null,null,null,null,null,null,null,null,null,null,null,null,null,null,null,null,null,null,null,null,null,null,null,null,null,null,null,null,null,null,null,null,null,null,null,null,null,null,null,null,null,null,null,null,null,null,null,null,null,null,null,null,null,null,null,null,null,null,null,null,null,null,null,null,null,null,null,null,null,null,null,null,null,null,null,null,null,null,null,null,null,null,null,null,null,null,null,null,null,null,null,null,null,null,null,null,null,null,null,null,null,null,null,null,null,null,null,null,null,null,null,null,null,null,null,null,null,null,null,null,null,null,null,null,null,null,null,null,null,null,null,null,null,null,null,null,null,null,null,null,null,null,null,null,null,null,null,null,null,null,null,null,null,null,null,null,null,null,null,null,null,null,null,null,null,null,null,null,null,null,null,null,null,null,null,null,null,null,null,null,null,null,null,null,null,null,null,null,null,null,null,null,null,null,null,null,null,null,null,null,null,null,null,null,null,null,null,null,null,null,null,"Ceregin ","Tab","30's",178.45,113.76,36.251050714485842,"Platinum Pharma"]
[306,"Drops","Soda Glycerine Ear Drops","10ml"]
[307,"Drops","Tobramycin 0.3% Ear Drop","5ml"]
[318,null,"(V) Drugs Acting on Endocrine/Female System"]
[320,"Tab","Carbimazol 5mg","100's",null,null,null,null,null,null,null,null,null,null,null,null,null,null,null,null,null,null,null,null,null,null,null,null,null,null,null,null,null,null,null,null,null,null,null,null,null,null,null,null,null,null,null,null,null,null,null,null,null,null,null,null,null,null,null,null,null,null,null,null,null,null,null,null,null,null,null,null,null,null,"Neomercazole ","Tab","100's",107.14,91.07,{"$f":"100-CA328/BZ328*100","v":14.999066641777119},"Ray Pharma"]
[330,"Inj.","Levonorgestril 1.5mg Ethinyloestradiol 0.03mg ","28's"]
[337,"Inj","Testosterone Oenanthate 100mg","Amp"]
[345,"Tab","Prednisolone 5mg","1000's",null,null,null,null,null,null,null,null,null,null,null,null,null,null,null,null,null,null,null,null,null,null,null,null,null,null,null,null,null,null,null,null,null,null,null,null,null,null,null,null,null,null,null,null,null,null,null,null,null,null,null,null,null,null,null,null,null,null,null,null,null,null,null,null,null,null,null,null,null,null,null,null,null,null,null,null,null,null,null,null,null,null,null,null,null,null,null,null,null,null,null,null,null,null,null,null,null,null,null,null,null,null,null,null,null,null,null,null,null,null,null,null,null,null,null,null,null,null,null,null,null,null,null,null,null,null,null,null,null,null,null,null,null,null,null,null,null,null,null,null,null,null,null,null,null,null,null,null,null,null,null,null,null,null,null,null,null,null,null,null,null,null,null,null,null,null,null,null,null,null,null,null,null,null,null,null,null,null,null,null,null,null,null,null,null,null,null,null,null,null,null,null,null,null,null,null,null,null,null,null,null,null,null,null,null,null,null,null,null,null,null,null,null,null,null,null,null,"Deltacortril 5mg","Tab","1000's",1500,1160,{"$f":"100-HR353/HQ353*100","v":22.666666666666671},"Pfizer Pakistan"]
[350,"Inj.","Methylprednisolone Acetate 40mg/ml","Vial",null,null,null,null,null,null,null,null,null,null,null,null,null,null,null,null,null,null,null,null,null,null,null,null,null,null,null,null,null,null,null,null,null,null,null,null,null,null,null,null,null,null,null,null,null,null,null,null,null,null,null,null,null,null,null,null,null,null,null,null,null,null,null,null,null,null,null,null,null,null,null,null,null,null,null,null,null,null,null,null,null,null,null,null,null,null,null,null,null,null,null,null,null,null,null,null,null,null,null,null,null,null,null,null,null,null,null,null,null,null,null,null,null,null,null,null,null,null,null,null,null,null,null,null,null,null,null,null,null,null,null,null,null,null,null,null,null,null,null,null,null,null,null,null,null,null,null,null,null,null,null,null,null,null,null,null,null,null,null,null,null,null,null,null,null,null,null,null,null,null,null,null,null,null,null,null,null,null,null,null,null,null,null,null,null,null,null,null,null,null,null,null,null,null,null,null,null,null,null,null,null,null,null,null,null,null,null,null,null,null,null,null,null,null,null,null,null,"Depo Medrol 40mg","Inj","1's",145.97,119.32,{"$f":"100-HR358/HQ358*100","v":18.257176132081938},"Pfizer Pakistan"]
[358,"Sachet","Citric acid+sod Bicarbonate+tartaric acid","100's",null,null,null,null,null,null,null,null,null,null,null,null,null,null,null,null,null,null,null,null,null,null,null,null,null,null,null,null,null,null,null,null,null,null,null,null,null,null,null,null,null,null,null,null,null,null,null,null,null,null,null,null,null,null,null,null,null,null,null,null,null,null,null,null,null,null,null,null,null,null,null,null,null,null,null,null,null,null,null,null,null,null,null,null,null,null,null,null,null,null,null,null,null,null,null,null,null,null,null,null,null,null,null,null,null,null,null,null,null,null,null,null,null,null,null,null,null,null,null,null,null,null,null,null,null,null,null,null,null,null,null,null,null,null,null,null,null,null,null,null,null,null,null,null,null,null,null,null,null,null,null,null,null,null,null,null,null,null,null,null,null,null,null,null,null,null,null,null,null,null,null,null,null,null,null,null,null,null,null,null,null,null,null,null,null,null,null,null,null,null,null,null,null,null,null,null,null,null,null,null,null,null,null,null,null,null,null,null,null,null,null,null,null,null,null,null,null,null,null,null,null,null,null,null,null,null,null,null,null,null,null,null,null,null,null,null,null,null,null,null,null,null,null,null,null,null,null,null,null,null,null,null,null,null,null,null,null,null,null,null,null,null,null,null,null,null,null,null,null,null,null,null,null,null,null,null,null,null,null,null,null,null,null,null,null,null,null,null,null,null,null,null,null,null,null,null,null,null,null,null,null,null,null,null,null,null,null,null,null,null,null,null,null,null,null,null,null,null,null,null,null,null,null,null,null,null,null,null,null,null,null,null,null,null,null,null,null,null,null,null,null,null,null,null,null,null,null,null,null,null,null,null,null,null,null,null,null,null,null,null,null,null,null,null,null,null,null,null,null,null,null,null,null,null,null,null,null,null,"Citro Soda 5g","Sachet","100's",1150,977.5,{"$f":"100-NW366/NV366*100","v":15},"Abbott LAB"]
[362,"inj","Frusemide 20mg/2ml","50's",null,null,null,null,null,null,null,null,null,null,null,null,null,null,null,null,null,null,null,null,null,null,null,null,null,null,null,null,null,null,null,null,null,null,null,null,null,null,null,null,null,null,null,null,null,null,null,null,null,null,null,null,null,null,null,null,null,null,null,null,null,null,null,null,null,null,null,null,null,null,null,null,null,null,null,null,null,null,null,null,null,null,null,null,null,null,null,null,null,null,null,null,null,null,null,null,null,null,null,null,null,null,null,null,null,null,null,null,null,null,null,null,null,null,null,null,null,null,null,null,null,null,null,null,null,null,null,null,null,null,null,null,null,null,null,null,null,null,null,null,null,null,null,null,null,null,null,null,null,null,null,null,null,null,null,null,null,null,null,null,null,null,null,null,null,null,null,null,null,null,null,null,null,null,null,null,null,null,null,null,null,null,null,null,null,null,null,null,null,null,null,null,null,null,null,null,null,null,null,null,null,null,null,null,null,null,null,null,null,null,null,null,null,null,null,null,null,null,null,null,null,null,null,null,"Frusemide ","Inj","50's",291,180,{"$f":"100-HY370/HX370*100","v":38.144329896907216},"Bajwa Pharma"]
[369,"Tab","Spiranolactone 100mg","10's","Aldactone 100mg ","Tab","10's",86.5,73.53,14.994219653179186,"Searle Pharma"]
[377,null,"(Z) Vaginal Preparations/Anti-Fungals"]
[380,"Cream","Clotrimazole 1% Vaginal","10gm"]
[389,"Cream ","Terbinafine HCL 1% ","10g",null,null,null,null,null,null,null,"Terbisil 10g","Cream","1's",176.35,77.5,{"$f":"100-P397/O397*100","v":56.053303090445134},"Saffron",null,null,null,null,null,null,null,null,null,null,null,null,null,null,null,null,null,null,null,null,null,null,null,null,null,null,null,null,null,null,null,null,null,null,null,null,null,null,null,null,null,null,null,null,null,null,null,null,null,null,null,null,null,null,null,null,null,null,null,null,null,null,null,null,null,null,null,null,null,null,null,null,null,null,null,null,null,null,null,null,null,null,null,null,null,null,null,null,null,null,null,null,null,null,null,null,null,null,null,null,null,null,null,null,null,null,null,null,null,null,null,null,null,null,null,null,null,null,null,null,null,null,null,null,null,null,null,null,null,null,null,null,null,null,null,null,null,null,null,null,null,null,null,null,null,null,null,null,null,null,null,null,null,null,null,null,null,null,null,null,null,null,null,null,null,null,null,null,null,null,null,null,null,null,null,null,null,null,null,null,null,null,null,null,null,null,null,null,null,null,null,null,null,null,null,null,"Lamisil ","Cream","10g",254.15,190,{"$f":"100-HK397/HJ397*100","v":25.240999409797354},"Gsk OTC",null,null,null,null,null,null,null,null,null,null,null,null,null,null,null,null,null,null,null,null,null,null,null,null,null,null,null,null,null,null,null,null,null,null,null,null,null,null,null,null,null,null,null,null,null,null,null,null,null,null,null,null,null,null,null,null,null,null,null,null,null,null,null,null,null,null,null,null,null,null,null,null,null,null,null,null,null,null,null,null,null,null,null,null,null,null,null,null,null,null,null,null,null,null,null,null,null,null,null,null,null,null,null,null,null,null,null,null,null,null,null,null,null,null,null,null,null,null,null,null,null,null,null,null,null,null,null,null,null,null,null,null,null,"Terbisan Cream","Cream","10g",190.9,64,{"$f":"100-MU397/MT397*100","v":66.474594028287058},"Sante Pvt Ltd",null,null,null,null,null,null,null,null,null,null,null,null,null,null,null,null,null,null,null,null,null,null,null,null,null,null,null,null,null,null,null,null,null,null,null,null,null,null,null,null,null,null,null,null,null,null,null,null,null,null,null,null,null,null,null,null,null,null,null,null,null,null,null,null,null,null,null,null,null,null,null,null,null,null,null,null,null,null,null,null,null,null,null,null,"T-Fin 1% ","Cream","10g",170,140.16999999999999,{"$f":"100-QH397/QG397*100","v":17.547058823529412},"Valor Pharma"]
[397,"Susp","Amoxycillin 400mg, Clavulanic Acid 57mg/5ml (457mg)","70 ml",null,null,null,null,null,null,null,null,null,null,null,null,null,null,null,null,null,null,null,null,null,null,null,null,null,null,null,null,null,null,null,null,null,null,null,null,null,null,null,null,null,null,null,null,null,null,null,null,null,null,null,null,null,null,null,null,null,null,null,null,null,null,null,null,null,null,null,null,null,null,null,null,null,null,null,null,null,null,null,null,null,null,null,null,null,null,null,null,null,null,null,null,null,null,null,null,null,null,"Calamox DUO 400/57mg","Susp","70ml",144,99,31.25,"Bosch",null,null,null,null,null,null,null,null,null,null,null,null,null,null,null,null,null,null,null,null,null,null,null,null,null,null,null,null,null,null,null,null,null,null,null,null,null,null,null,null,null,null,null,null,null,null,null,null,null,null,null,null,null,null,null,null,null,null,null,null,null,null,null,null,null,null,null,null,null,null,null,null,null,null,null,null,null,null,null,null,null,null,null,null,null,null,null,null,null,null,null,null,null,null,null,null,null,null,null,null,null,null,null,null,null,null,null,null,null,null,null,null,null,null,null,null,null,null,null,null,null,null,null,null,null,null,null,null,null,null,null,null,null,null,null,null,null,null,null,null,null,null,null,null,null,null,null,null,null,null,null,null,null,null,null,null,null,null,null,null,null,null,null,null,null,null,null,null,null,null,null,null,null,null,null,null,null,null,null,null,null,null,null,null,null,null,null,null,null,null,null,null,null,null,null,null,null,null,null,null,null,null,null,null,null,null,null,null,null,null,null,null,null,null,null,null,null,null,null,null,null,null,null,null,null,null,null,null,null,null,null,"Amclav Plus 457mg ","Susp","70ml",144,91.2,{"$f":"100-MG405/MF405*100","v":36.666666666666671},"Getz Pharma"]
[401,"Tab","Amoxycillin 250mg + Clavulanic Acid 125mg(375mg)","6's",null,null,null,null,null,null,null,null,null,null,null,null,null,null,null,null,null,null,null,null,null,null,null,null,null,null,null,null,null,null,null,null,null,null,null,null,null,null,null,null,null,null,null,null,null,null,null,null,null,null,null,null,null,null,null,null,null,null,null,null,null,null,null,null,null,null,null,null,null,null,null,null,null,null,null,null,null,null,null,null,null,null,null,null,null,null,null,null,null,null,null,null,null,null,null,null,null,null,"Calamox 375mg ","Tab","6's",83.17,48.96,41.132619935072746,"Bosch"]
[410,"syp","Ampicillin 125mg/5ml","60ml"]
[413,"Inj.","Ampicillin 250mg","Vial"]
[421,"Inj","Benzyl Penicilline 500,000 Units","Vial"]
[428,"Cap","Cefadroxil 500 mg","12's",null,null,null,null,null,null,null,null,null,null,null,null,null,null,null,null,null,null,null,null,null,"Efroxil 500mg","Cap","12's",180,134.63999999999999,{"$f":"100-AD436/AC436*100","v":25.200000000000017},"W.Wards",null,null,null,null,null,null,null,null,null,null,null,null,null,null,null,null,null,null,null,null,null,"Neucef 500mg","Cap","12's",246,135,45.121951219512191,"Sami",null,null,null,null,null,null,null,null,null,null,null,null,null,null,null,null,null,null,null,null,null,null,null,null,null,null,null,null,null,null,null,null,null,null,null,null,null,null,null,null,null,null,"Dromax 500mg ","Cap","12's",172,128.66,25.197674418604649,"Bosch",null,null,null,null,null,null,null,null,null,null,null,null,null,null,null,null,null,null,null,null,null,null,null,null,null,null,null,null,null,null,null,null,null,null,null,null,null,null,null,null,null,null,"Agdrox 500mg","Cap","12's",250,119.88,{"$f":"100-EZ436/EY436*100","v":52.048000000000002},"Saydon Pharma",null,null,null,null,null,null,null,null,null,null,null,null,null,null,null,null,null,null,null,null,null,null,null,null,null,null,null,null,null,null,null,null,null,null,null,null,null,null,null,null,null,null,"Sionex 500mg","Cap","12's",180,99.68,{"$f":"100-GW436/GV436*100","v":44.62222222222222},"Hiranis Pharma",null,null,null,null,null,null,null,null,null,null,null,null,null,null,null,null,null,null,null,null,null,null,null,null,null,null,null,null,null,null,null,null,null,null,null,null,null,null,null,null,null,null,null,null,null,null,null,null,null,null,null,null,null,null,null,null,null,null,null,null,null,null,null,null,null,null,null,null,null,null,null,null,null,null,null,null,null,null,null,null,null,null,null,null,null,null,null,null,null,null,null,null,null,null,null,null,null,null,null,null,null,null,null,null,null,"Oxicef  ","Cap","12's",180,135,{"$f":"100-LE436/LD436*100","v":25},"Synchro Pharma","Cedrox 500mg","Cap","12's",190.51,127.92,{"$f":"100-LL436/LK436*100","v":32.853918429478767},"Platinum Pharma",null,null,null,null,null,null,null,null,null,null,null,null,null,null,null,null,null,null,null,null,null,"Kaydrox 500mg","Cap","10's",162,109.25,{"$f":"100-MN436/MM436*100","v":32.561728395061735},"KCL Pharma",null,null,null,null,null,{"$f":"100-MU436/MT436*100","v":{"$error":"#DIV/0!"}},null,null,null,null,null,null,null,null,null,null,null,null,null,null,null,"Goxil 500mg","Cap","12's",180,127,{"$f":"100-NP436/NO436*100","v":29.444444444444443},"GMP Pharma"]
[432,"Inj","Cefepime HCL 1000mg","Vial",null,null,null,null,null,null,null,null,null,null,null,null,null,null,null,null,null,null,null,null,null,null,null,null,null,null,null,null,null,null,null,null,null,null,null,null,null,null,null,null,null,null,null,null,null,null,null,null,null,null,null,null,null,null,null,null,null,null,null,null,null,null,null,null,null,null,null,null,null,null,null,null,null,null,null,null,null,null,null,null,null,null,null,null,null,null,null,null,null,null,null,null,null,null,null,null,null,null,null,null,null,null,null,null,null,null,null,null,null,null,null,null,null,null,null,null,null,null,null,null,null,null,null,null,null,null,null,null,null,null,null,null,null,null,null,null,null,null,null,null,null,null,null,null,null,null,null,null,null,null,null,null,null,null,null,null,null,null,null,null,null,null,null,null,null,null,null,null,null,null,null,null,null,null,null,null,null,null,null,null,null,null,null,null,null,null,null,null,null,null,null,null,null,null,null,null,null,null,null,null,null,null,null,null,null,null,null,null,null,null,null,null,null,null,null,null,null,null,null,null,null,null,null,null,null,null,null,null,null,null,null,"Benpime 1000mg","Inj","1's",569.5,484.07499999999999,15,"Benson Pharma",null,null,null,null,null,null,null,null,null,null,null,null,null,null,null,null,null,null,null,null,null,null,null,null,null,null,null,null,null,null,null,null,null,null,null,null,null,null,null,null,null,null,null,null,null,null,null,null,null,null,null,null,null,null,null,null,null,null,null,null,null,null,null,null,null,null,null,null,null,null,"Synopime 1000mg","Inj","1's",600,180,70,"Synchro Pharma"]
[440,"Inj.","Ceftazidime 1gm","Vial","Fitem 1g","INJ","1'S",263,140,46.768060836501903,"Searle Pharma",null,null,null,null,null,null,null,null,null,null,null,null,null,null,null,null,null,null,null,null,null,null,null,null,null,null,null,null,null,null,null,null,null,null,null,null,null,null,null,null,null,null,null,null,null,null,null,null,null,null,null,null,null,null,null,null,null,null,null,null,null,null,null,null,null,null,null,null,null,null,null,null,null,null,null,null,null,null,null,null,null,null,null,null,null,null,null,null,null,null,null,"Fortazim 1G","Inj","1's",287,91,68.292682926829272,"Bosch",null,null,null,null,null,null,null,null,null,null,null,null,null,null,null,null,null,null,null,null,null,null,null,null,null,null,null,null,null,null,null,null,null,null,null,null,null,null,null,null,null,null,null,null,null,null,null,null,null,null,null,null,null,null,null,null,null,null,null,null,null,null,null,null,null,null,null,null,null,null,null,null,null,null,null,null,null,null,null,null,null,null,null,null,null,null,null,null,null,null,null,null,null,null,null,null,null,null,null,null,null,null,null,null,null,null,null,null,null,null,null,null,null,null,null,null,null,null,null,null,null,null,null,null,null,null,"Vegazid 1G","Inj","1's",275,233.75,{"$f":"100-IF448/IE448*100","v":15},"Vega Pharma",null,null,null,null,null,null,null,null,null,null,null,null,null,null,null,null,null,null,null,null,null,null,null,null,null,null,null,null,null,null,null,null,null,null,null,null,null,null,null,null,null,null,"Xidim 1000mg","Inj","1's",330,70,78.787878787878782,"Brooks",null,null,null,null,null,null,null,null,null,null,null,null,null,null,null,null,null,null,null,null,null,"X-Act 1G","Inj","1's",275,124,{"$f":"100-LE448/LD448*100","v":54.909090909090907},"Synchro Pharma",null,null,null,null,null,null,null,null,null,null,null,null,null,null,null,null,null,null,null,null,null,null,null,null,null,null,null,null,null,null,null,null,null,null,null,null,null,null,null,null,null,null,null,null,null,null,null,null,null,"Ceftiz 1g","Inj","1's",260,89,65.769230769230774,"Shaigan Pharma",null,null,null,null,null,null,null,null,null,null,null,null,null,null,null,null,null,null,null,null,null,null,null,null,null,null,null,null,null,null,null,null,null,null,null,null,null,null,null,null,null,null,null,null,null,null,null,null,null,null,null,null,null,null,null,null,null,null,null,null,null,null,null,"Xtracid 1g","Inj","1's",337.27,93.75,{"$f":"100-QA448/PZ448*100","v":72.203279271800042},"Surge Lab"]
[449,"Syp","Cefuroxime Axetil 125mg/5ml","50ml",null,null,null,null,null,null,null,null,null,null,null,null,null,null,null,null,null,null,null,null,null,null,null,null,null,null,null,null,null,null,null,null,null,null,null,null,null,null,null,null,null,null,null,null,null,null,null,null,null,null,null,null,null,null,null,null,null,null,null,null,null,null,null,null,null,null,null,null,null,null,null,null,null,null,null,null,null,null,null,null,null,null,null,null,null,null,null,null,null,null,null,null,null,null,null,null,null,null,"Zecef 125mg","Susp","50ml",190,145.35,23.5,"Bosch"]
[452,"Cap","Cephalexin 500mg cap",12,null,null,null,null,null,null,null,null,null,null,null,null,null,null,null,null,null,null,null,null,null,null,null,null,null,null,null,null,null,null,null,null,null,null,null,null,null,null,null,null,null,null,null,null,null,null,null,null,null,null,null,null,null,null,null,null,"Keflex 500mg","Cap","12's",207.08,174.25980000000001,{"$f":"100-BM460/BL460*100","v":15.849043847788295},"AGP",null,null,null,null,null,{"$f":"100-BT460/BS460*100","v":{"$error":"#DIV/0!"}},null,null,null,null,null,null,null,null,null,null,null,null,null,null,null,null,null,null,null,null,null,null,null,null,null,null,null,null,null,null,null,null,null,null,null,null,null,null,null,null,null,null,null,null,null,null,null,null,null,null,null,null,null,null,null,null,null,null,null,null,null,null,null,null,null,null,null,null,null,null,null,null,null,null,null,null,null,null,null,null,null,null,null,null,null,null,null,null,null,null,null,null,null,null,null,null,null,null,null,null,null,null,null,null,null,null,null,null,null,null,null,null,null,null,null,null,null,null,null,null,null,null,null,null,null,null,null,"Bacticlor 500mg ","Cap","12's",207.08,118,{"$f":"100-GW460/GV460*100","v":43.017191423604409},"Hiranis Pharma",null,null,null,null,null,null,null,null,null,null,null,null,null,null,null,null,null,null,null,null,null,null,null,null,null,null,null,null,null,null,null,null,null,null,null,null,null,null,null,null,null,null,null,null,null,null,null,null,null,null,null,null,null,null,null,null,null,null,null,null,null,null,null,null,null,null,null,null,null,null,null,null,null,null,null,null,null,null,null,null,null,null,null,null,null,null,null,null,null,null,null,"Ceporex 500mg","Cap","12's",207.08,170.74,{"$f":"100-KQ460/KP460*100","v":17.548773420900133},"Gsk"]
[462,"Susp","Ciprofloxacin 250mg ","60ml","Cinoxin 250mg","Susp","90ml",160,110,31.25,"Searle Pharma",null,null,null,null,null,null,null,null,null,null,null,null,null,null,null,null,null,null,null,null,null,null,null,null,null,null,null,null,null,null,null,null,null,null,null,null,null,null,null,null,null,null,"Novidat 250mg ","Susp","1's",165.67,87,47.485966077141306,"Sami",null,null,null,null,null,null,null,null,null,null,null,null,null,null,null,null,null,null,null,null,null,null,null,null,null,null,null,null,null,null,null,null,null,null,null,null,null,null,null,null,null,null,null,null,null,null,null,null,null,null,null,null,null,null,null,null,"Cyrocin 250mg","Susp","60ml",165.66,90,{"$f":"100-DQ470/DP470*100","v":45.671858022455638},"Highnoon",null,null,null,null,null,null,null,null,null,null,null,null,null,null,null,null,null,null,null,null,null,null,null,null,null,null,null,null,"Ds Riget 250mg","Susp","60ml",160,99,{"$f":"100-EZ470/EY470*100","v":38.125},"Saydon Pharma",null,null,null,null,null,null,null,null,null,null,null,null,null,null,null,null,null,null,null,null,null,null,null,null,null,null,null,null,null,null,null,null,null,null,null,null,null,null,null,null,null,null,null,null,null,null,null,null,null,null,null,null,null,null,null,null,null,null,null,null,null,null,null,null,null,null,null,null,null,null,"Ciposim 250mg","Susp","60ml",160,58,{"$f":"100-HY470/HX470*100","v":63.75},"Sims Pharma",null,null,null,null,null,null,null,null,null,null,null,null,null,null,null,null,null,null,null,null,null,null,null,null,null,null,null,null,"Ciprojan 250mg","Susp","60ml",160,72,{"$f":"100-JH470/JG470*100","v":55},"Novamed ",null,null,null,null,null,null,null,null,null,null,null,null,null,null,null,null,null,null,null,null,null,null,null,null,null,null,null,null,null,null,null,null,null,null,null,null,null,null,null,null,null,null,null,null,null,null,null,null,null,null,null,null,null,null,null,null,null,null,null,null,null,null,null,null,null,null,null,null,null,null,"Cipesta 250mg","Susp","60ml",165.66,96.2,41.929252686224793,"Getz Pharma"]
[464,"Tab","Clarithromycin 500mg","10's",null,null,null,null,null,null,null,"Karit 500mg ","Tab","10's",430,205.26,52.265116279069765,"Saffron",null,null,null,null,null,null,null,null,null,null,null,null,null,null,null,null,null,null,null,null,null,"Ultima 500mg ","Tab","10's",395,210,46.835443037974692,"Macter",null,null,null,null,null,null,null,"Rithmo 500mg","Tab","10's",352.04,134,61.936143620043175,"Sami","Afoxin 500mg ","Tab","10's",400,238,40.5,"AGP",null,null,null,null,null,{"$error":"#DIV/0!"},null,null,null,null,null,null,null,null,null,null,null,null,null,null,null,null,null,null,null,null,null,null,null,null,null,null,null,null,null,"Maclacin 500mg","Tab","10's",375,239.06,36.250666666666667,"Bosch","Megaklar 500mg","Tab","10's",390,168.26,56.856410256410264,"BH",null,null,null,null,null,null,null,null,null,null,null,null,null,null,null,null,null,null,null,null,null,null,null,null,null,null,null,null,null,null,null,null,null,null,null,null,null,null,null,null,null,null,null,null,null,null,null,null,null,null,null,null,null,null,null,null,null,null,null,null,null,null,null,null,null,null,null,null,null,null,null,null,null,null,null,null,null,null,null,null,null,null,null,null,null,null,null,null,null,null,null,null,null,null,null,null,null,null,null,null,null,null,null,null,null,null,null,null,null,null,null,null,null,null,null,null,null,null,null,null,null,null,null,null,null,null,null,null,null,null,null,null,null,null,null,null,null,null,null,null,null,null,null,null,null,null,null,"Arithro 500mg ","Tab","10's",445,140,68.539325842696627,"Novamed ","Klaribact 500mg","Tab","10's",502.08,392.08,21.908859145952846,"Martin Dow",null,null,null,null,null,null,null,null,null,null,null,null,null,null,"Larith 500mg","Tab","10's",379,214,{"$f":"100-KJ472/KI472*100","v":43.535620052770454},"Genix Pharma",null,null,null,null,null,null,null,null,null,null,null,null,null,null,null,null,null,null,null,null,null,null,null,null,null,null,null,null,null,null,null,null,null,null,null,null,null,null,null,null,null,null,"Claritek 500mg","Tab","10's",435,164.7,62.137931034482762,"Getz Pharma",null,null,null,null,null,null,null,null,null,null,null,null,null,null,null,null,null,null,null,null,null,null,null,null,null,null,null,null,null,null,null,null,null,null,null,"Klarcid 500mg","Tab","10's",671.48,570.76,14.999702150473581,"Abbott LAB",null,null,null,null,null,null,null,null,null,null,null,null,null,null,null,null,null,null,null,null,null,null,null,null,null,null,null,null,null,null,null,null,null,null,null,"Clatz 500mg","Tab","10's",380,259,31.84210526315789,"Glitz Pharma",null,null,null,null,null,null,null,null,null,null,null,null,null,null,"Caricin 500mg","Tab","10's",445,366.9,17.55056179775282,"Valor Pharma"]
[472,"Inj","Gentamycin 40mg","10's",null,null,null,null,null,null,null,null,null,null,null,null,null,null,null,null,null,null,null,null,null,null,null,null,null,null,null,null,null,null,null,null,null,null,null,null,null,null,null,null,null,null,null,null,null,null,null,null,null,null,null,null,null,null,null,null,null,null,null,null,null,null,null,null,null,null,null,null,null,null,"Genticyn 40mg ","Inj","10's",60.5,43.71,{"$f":"100-CA480/BZ480*100","v":27.752066115702476},"Ray Pharma",null,null,null,null,null,null,null,null,null,null,null,null,null,null,null,null,null,null,null,null,null,"Gentic 40mg ","Inj","5's",100,73.2,{"$f":"100-DC480/DB480*100","v":26.799999999999997},"Bosch",null,null,null,null,null,null,null,null,null,null,null,null,null,null,null,null,null,null,null,null,null,null,null,null,null,null,null,null,null,null,null,null,null,null,null,null,null,null,null,null,null,null,null,null,null,null,null,null,null,null,null,null,null,null,null,null,null,null,null,null,null,null,null,null,null,null,null,null,null,null,null,null,null,null,null,null,null,null,null,null,null,null,null,null,null,null,null,null,null,null,null,null,null,null,null,null,null,null,null,null,null,null,null,null,null,null,null,null,null,null,null,null,null,null,null,null,null,null,null,null,null,null,null,null,null,null,null,null,null,null,null,null,null,null,null,null,null,null,null,null,null,null,null,null,null,null,null,null,null,null,null,null,null,null,null,null,null,null,null,null,null,"Refobacin ","Inj","5's",112,95.2,{"$f":"100-JO480/JN480*100","v":15},"Martin Dow"]
[481,"Infusion","Moxifloxacin inj 500mg","vial",null,null,null,null,null,null,null,null,null,null,null,null,null,null,null,null,null,null,null,null,null,null,null,null,null,null,null,null,null,null,null,null,null,null,null,null,null,null,null,null,null,null,null,null,null,null,null,null,null,"Mofest INF","inf","1's",360,115,68.055555555555557,"Sami",null,null,null,null,null,null,null,null,null,null,null,null,null,null,null,null,null,null,null,null,null,null,null,null,null,null,null,null,null,null,null,null,null,null,null,null,null,null,null,null,null,null,"Avelin 400mg/250ml","Inj","1's",550,114,79.27272727272728,"Bosch",null,null,null,null,null,null,null,null,null,null,null,null,null,null,null,null,null,null,null,null,null,null,null,null,null,null,null,null,null,null,null,null,null,null,null,null,null,null,null,null,null,null,null,null,null,null,null,null,null,null,null,null,null,null,null,null,null,null,null,null,null,null,null,null,null,null,null,null,null,null,null,null,null,null,null,null,null,null,null,null,null,null,null,null,null,null,null,null,null,null,null,null,null,null,null,null,null,null,null,null,null,null,null,null,null,null,null,null,null,null,null,null,null,null,null,null,null,null,null,null,null,null,null,null,null,null,null,null,null,null,null,null,null,null,null,null,null,null,null,null,null,null,null,null,null,null,null,null,null,null,null,null,null,null,null,null,null,null,null,null,null,null,null,null,null,null,null,null,null,null,null,null,null,null,null,null,null,null,null,null,null,null,null,null,null,null,null,null,null,null,null,null,null,null,null,null,null,null,null,null,null,null,null,"Moflox 500mg","inj","1's",1000,200,{"$f":"100-LE489/LD489*100","v":80},"Synchro Pharma"]
[484,"Tab","Ofloxacin 200mg","10's",null,null,null,null,null,null,null,null,null,null,null,null,null,null,null,null,null,null,null,null,null,null,null,null,null,null,null,null,null,null,null,null,null,null,null,null,null,null,null,null,null,null,null,null,null,null,null,null,null,null,null,null,null,null,null,null,null,null,null,null,null,null,null,null,null,null,null,null,null,null,null,null,null,null,null,null,null,null,null,null,null,null,null,null,null,null,null,null,null,null,null,null,null,null,null,null,null,null,"Tariflox 200mg ","Tab","10's",150,102,{"$f":"100-DC492/DB492*100","v":32},"Bosch",null,null,null,null,null,null,null,null,null,null,null,null,null,null,null,null,null,null,null,null,null,null,null,null,null,null,null,null,null,null,null,null,null,null,null,null,null,null,null,null,null,null,null,null,null,null,null,null,null,null,null,null,null,null,null,null,null,null,null,null,null,null,null,null,null,null,null,null,null,null,null,null,null,null,null,null,null,"Floxol 200mg","Tab","10's",296.79000000000002,30,{"$f":"100-GI492/GH492*100","v":89.891842717072677},"PDH",null,null,null,null,null,null,null,null,null,null,null,null,null,null,null,null,null,null,null,null,null,null,null,null,null,null,null,null,null,null,null,null,null,null,null,null,null,null,null,null,null,null,null,null,null,null,null,null,null,null,null,null,null,null,null,null,null,null,null,null,null,null,null,null,null,null,null,null,null,null,"O-Quine 200mg ","Tab","10's",115,34,{"$f":"100-JH492/JG492*100","v":70.434782608695656},"Novamed ",null,null,null,null,null,null,null,null,null,null,null,null,null,null,"Quinox 200mg ","Tab","10's",125,27,{"$f":"100-KC492/KB492*100","v":78.400000000000006},"Brooks",null,null,null,null,null,null,null,null,null,null,null,null,null,null,null,null,null,null,null,null,null,null,null,null,null,null,null,null,null,null,null,null,null,null,null,null,null,null,null,null,null,null,null,null,null,null,null,null,null,null,null,null,null,null,null,null,null,null,null,null,null,null,null,null,null,null,null,null,null,null,null,null,null,null,null,null,null,null,null,null,null,null,null,null,null,null,null,null,null,null,null,null,null,null,null,null,null,null,null,null,null,null,null,null,null,null,null,null,null,null,null,null,null,null,null,null,null,null,null,"Kapcin 200mg","Tab","10's",91.87,34.75,{"$f":"100-OY492/OX492*100","v":62.174812234679436},"Cirin Pharma"]
[494,"Inj ","Vancomycin HCL1000mg ","Vial",null,null,null,null,null,null,null,null,null,null,null,null,null,null,null,null,null,null,null,null,null,null,null,null,null,null,null,null,null,null,null,null,null,null,null,null,null,null,null,null,null,null,null,null,null,null,null,null,null,null,null,null,null,null,null,null,null,null,null,null,null,null,null,null,null,null,null,null,null,null,null,null,null,null,null,null,null,null,null,null,null,null,null,null,null,null,null,null,null,null,null,null,null,null,null,null,null,null,"Vinjec CP 1000mg","Inj","1's",1207,550,54.43247721623861,"Bosch",null,null,null,null,null,null,null,null,null,null,null,null,null,null,null,null,null,null,null,null,null,null,null,null,null,null,null,null,null,null,null,null,null,null,null,null,null,null,null,null,null,null,null,null,null,null,null,null,null,null,null,null,null,null,null,null,null,null,null,null,null,null,null,null,null,null,null,null,null,null,null,null,null,null,null,null,null,null,null,null,null,null,null,null,null,null,null,null,null,null,null,null,null,null,null,null,null,null,null,null,null,null,null,null,null,null,null,null,null,null,null,null,null,null,null,null,null,null,null,null,null,null,null,null,null,null,"Vancotech 1000mg","Inj","1's",1200,550,54.166666666666671,"Fynk Pharma",null,null,null,null,null,null,null,null,null,null,null,null,null,null,null,null,null,null,null,null,null,null,null,null,null,null,null,null,null,null,null,null,null,null,null,null,null,null,null,null,null,null,null,null,null,null,null,null,null,null,null,null,null,null,null,null,null,null,null,null,null,null,null,null,null,null,null,null,null,null,null,null,null,null,null,null,null,null,null,null,null,null,null,null,null,null,null,null,null,null,null,null,null,null,null,null,null,null,null,null,null,null,null,null,null,null,null,null,null,null,null,null,null,null,null,null,null,null,null,null,null,null,null,null,null,null,null,null,null,null,null,null,null,null,null,null,null,null,null,null,"Vancomycin 1000mg","Inj","20ml",1531.49,935,38.948344422751703,"Abbott LAB"]
[496,null,"(AB) ANTI - TUBERCULOSIS"]
[505,"Tab","Ethambutol 225mg,  Isoniazid 60mg, Rifampicin 120mg, Pyrazinamide 300mg; tab.","100's"]
[511,"Inj.","Streptomycin 1gm","Vial"]
[516,"Tab","Lumefantrin 120mg,Artemether20mg","16's",null,null,null,null,null,null,null,null,null,null,null,null,null,null,null,null,null,null,null,null,null,"Artelum 20/120mg","Tab","16's",280,209.44,{"$f":"100-AD524/AC524*100","v":25.200000000000003},"W.Wards",null,null,null,null,null,null,null,null,null,null,null,null,null,null,null,null,null,null,null,null,null,null,null,null,null,null,null,null,null,null,null,null,null,null,null,null,null,null,null,null,null,null,null,null,null,null,null,null,null,null,null,null,null,null,null,null,null,null,null,null,null,null,null,null,null,null,null,null,null,null,"Qmetem 20/120mg ","Tab","16's",320,231.2,{"$f":"100-DC524/DB524*100","v":27.750000000000014},"Bosch",null,null,null,null,null,null,null,"Artecxin Dispersible ","Tab","16's",320,90,{"$f":"100-DQ524/DP524*100","v":71.875},"Highnoon"]
[523,"Tab","Quinine Bisulphate 300 mg ","100's"]
[533,"Tab","Glimepiride 2 mg","20's",null,null,null,null,null,null,null,"Safgo 2mg ","Tab","20's",124.2,47.01,{"$f":"100-P541/O541*100","v":62.149758454106284},"Saffron","G Helix 2mg","Tab","20's",120,63,{"$f":"100-W541/V541*100","v":47.5},"Helix",null,null,null,null,null,null,null,null,null,null,null,null,null,null,"Glio  2mg","Tab","20's",160,108.8,32,"Macter","Evopride 2mg","Tab","30's",257.81,47.7,81.498002404871798,"Pharmevo","Gpride 2mg","Tab","20's",170,41,75.882352941176464,"Sami","Gluconorm 2mg","Tablet","20's",106.7,72.56,{"$f":"100-BM541/BL541*100","v":31.996251171508902},"AGP",null,null,null,null,null,{"$f":"100-BT541/BS541*100","v":{"$error":"#DIV/0!"}},null,"Ravpride 2mg ","Tab","20's",110,74.8,32,"Ray Pharma",null,null,null,null,null,null,null,null,null,null,null,null,null,null,null,null,null,null,null,null,null,null,null,null,null,null,null,null,"Diabold 2mg","Tab","20's",100,37,63,"BH",null,null,null,null,null,null,null,null,null,null,null,null,null,null,null,null,null,null,null,null,null,null,null,null,null,null,null,null,null,null,null,null,null,null,null,null,null,null,null,null,null,null,null,null,null,null,null,null,null,null,null,null,null,null,null,null,null,null,null,null,null,null,null,null,null,null,null,null,null,null,null,null,null,null,null,null,null,null,null,null,null,null,null,null,null,null,null,null,null,null,null,null,null,null,null,null,null,null,null,null,null,null,null,null,null,null,null,null,null,null,null,null,null,null,null,null,null,null,null,null,null,null,null,null,null,null,null,null,null,null,null,null,null,"Glimso 2mg","Tab","20's",200,29.38,{"$f":"100-IT541/IS541*100","v":85.31},"3S Pharma","Amaryl 2mg","Tab","20's",466,396.1,14.999999999999986,"Sanofi Aventis",null,null,null,null,null,null,null,"Glioptim 2MG ","Tab","20's",101.44,79.209999999999994,21.914432176656149,"Martin Dow",null,null,null,null,null,null,null,"Limoride 2mg","Tab","20's",200,60,70,"Brooks",null,null,null,null,null,null,null,null,null,null,null,null,null,null,null,null,null,null,null,null,null,null,null,null,null,null,null,null,null,null,null,null,null,null,null,null,null,null,null,null,null,null,null,null,null,null,null,null,null,"Getryl 2mg ","Tab","20's",170,36.4,78.588235294117652,"Getz Pharma",null,null,null,null,null,null,null,null,null,null,null,null,null,null,null,null,null,null,null,null,null,null,null,null,null,null,null,null,null,null,null,null,null,null,null,"Econid 2mg","Tab","20's",198.8,43,78.370221327967812,"Abbott LAB"]
[535,"Inj.","Insulin 70/30 (Recombinent DNA Origin)","10ml",null,null,null,null,null,null,null,null,null,null,null,null,null,null,null,null,null,null,null,null,null,null,null,null,null,null,null,null,null,null,null,null,null,null,null,null,null,null,null,null,null,null,null,null,null,null,null,null,null,null,null,null,null,null,null,null,null,null,null,null,null,null,null,"Mixtard ","Inj","10ml",540,234.29,{"$f":"100-BT543/BS543*100","v":56.612962962962968},"Novo Nordisk ",null,null,null,null,null,null,null,null,null,null,null,null,null,null,null,null,null,null,null,null,null,null,null,null,null,null,null,null,null,null,null,null,null,null,null,null,null,null,null,null,null,null,null,null,null,null,null,null,null,null,null,null,null,null,null,null,null,null,null,null,null,null,null,null,null,null,null,null,null,null,null,null,null,null,null,null,null,null,null,null,null,null,null,null,null,null,null,null,null,null,null,null,null,null,null,null,null,null,null,null,null,null,null,null,null,null,null,null,null,null,null,null,null,null,null,null,null,null,null,null,null,null,null,null,null,null,null,null,null,null,null,null,null,null,null,null,null,null,null,null,null,null,null,null,null,null,null,null,null,null,null,null,null,null,null,null,null,null,null,null,null,null,null,null,null,null,null,null,null,null,null,null,null,null,null,null,null,null,null,null,null,null,null,null,null,null,null,null,null,null,null,null,null,null,null,null,null,null,null,null,null,null,null,null,null,null,null,null,null,null,null,null,null,null,null,null,null,null,null,null,null,null,null,null,null,null,null,null,null,null,null,null,null,null,null,null,null,null,null,null,null,null,null,null,null,null,null,null,null,null,null,null,null,null,null,null,null,null,null,null,null,null,null,null,null,null,"Insuget 70/30","Inj","10ml",488,210,56.967213114754102,"Getz Pharma"]
[546,"Tab","Pioglitazone+Glimepride 30/4mg","10's",null,null,null,null,null,null,null,null,null,null,null,null,null,null,null,null,null,null,null,null,null,null,null,null,null,null,null,null,null,null,null,null,null,null,null,null,null,null,null,null,null,null,null,null,null,null,null,null,null,null,null,null,null,null,null,null,null,null,null,null,null,null,null,null,null,null,null,null,null,null,null,null,null,null,null,null,null,null,null,null,null,null,null,null,null,null,null,null,null,null,null,null,null,null,null,null,null,null,null,null,null,null,null,null,null,null,null,null,null,null,null,null,null,null,null,null,null,null,null,null,null,null,null,null,null,null,null,null,null,null,null,null,null,null,null,null,null,null,null,null,null,null,null,null,null,null,null,null,null,null,null,null,null,null,null,null,null,null,null,null,null,null,null,null,null,null,null,null,null,null,null,null,null,null,null,null,null,null,null,null,null,null,null,null,null,null,null,null,null,null,null,null,null,null,null,null,null,null,null,null,null,null,null,null,null,null,null,null,null,null,null,null,null,null,null,null,null,null,null,null,null,null,null,null,null,null,null,null,null,null,null,null,null,null,null,null,null,null,null,null,null,null,null,null,null,null,null,null,null,null,null,null,null,null,null,null,null,null,null,null,null,null,null,null,null,null,null,null,null,null,null,null,null,null,null,null,null,null,null,null,null,null,null,null,null,null,null,null,null,null,null,null,null,null,null,null,null,null,null,null,null,null,null,null,null,null,null,null,null,null,null,null,null,null,null,null,null,null,null,null,null,null,null,null,null,null,null,null,null,null,null,null,null,null,null,null,"Zoliget 30/4mg","Tab","14's",280,135,51.785714285714285,"Getz Pharma"]
[554,"Inj.","Calcium Gluconate 10ml","50's"]
[557,"Drops","Multivitamin Drops","60ml",null,null,null,null,null,null,null,null,null,null,null,null,null,null,null,null,null,null,null,null,null,null,null,null,null,null,null,null,null,null,null,null,null,null,null,null,null,null,null,null,null,null,null,null,null,null,null,null,null,null,null,null,null,null,null,null,null,null,null,null,null,null,null,null,null,null,null,null,null,null,null,null,null,null,null,null,null,null,null,null,null,null,null,null,null,null,null,null,null,null,null,null,null,null,null,null,null,null,null,null,null,null,null,null,null,null,null,null,null,null,null,null,null,null,null,null,null,null,null,null,null,null,null,null,null,null,null,null,null,null,null,null,null,null,null,null,null,null,null,null,null,null,null,null,null,null,null,null,null,null,null,null,null,null,null,null,null,null,null,null,null,null,null,null,null,null,null,null,null,null,null,null,null,null,null,null,null,null,null,null,null,null,null,null,null,null,null,null,null,null,null,null,null,null,null,null,null,null,null,null,null,null,null,null,null,null,null,null,null,null,null,null,null,null,null,null,null,null,null,null,null,null,null,null,null,null,null,null,null,null,null,null,null,null,null,null,null,null,null,null,null,null,null,null,null,null,null,null,null,null,null,null,null,null,null,null,null,null,null,null,null,null,null,null,null,null,null,null,null,null,null,null,null,null,null,null,null,null,null,null,null,null,null,null,null,null,null,null,null,null,null,null,null,null,null,null,null,null,null,null,null,null,null,null,null,null,null,null,null,null,null,null,null,null,null,null,null,null,null,null,null,null,null,null,null,null,null,null,null,null,null,null,null,null,null,null,null,null,null,null,null,null,null,null,null,null,null,null,null,null,null,null,null,null,null,null,null,null,null,null,null,null,null,null,null,null,null,null,null,null,null,null,null,null,null,null,null,null,"Vidaylin Drops","Drops","10ml",41.6,35.36,{"$f":"100-NW565/NV565*100","v":15},"Abbott LAB"]
[562,"Tab","Folic Acid 5mg","100's"]
[568,"Tab","Iron polmaltose complex plain","10's",null,null,null,null,null,null,null,null,null,null,null,null,null,null,null,null,null,null,null,null,null,null,null,null,null,null,null,null,null,null,null,null,null,null,null,null,null,null,null,null,null,null,null,null,null,null,null,null,null,null,null,null,null,null,null,null,null,null,null,null,null,null,null,null,null,null,null,null,null,null,null,null,null,null,null,null,null,null,null,null,null,null,null,null,null,null,null,null,null,null,null,null,null,null,null,null,null,null,null,null,null,null,null,null,null,null,null,null,null,null,null,null,null,null,null,null,null,null,null,null,null,null,null,null,null,null,null,null,null,null,null,null,null,null,null,null,null,null,null,null,null,null,null,null,null,null,null,null,null,null,null,null,null,null,null,null,null,null,null,null,null,null,null,null,null,null,null,null,null,null,null,null,null,null,null,null,null,null,null,null,null,null,null,null,null,null,null,null,null,null,null,null,null,null,null,null,null,null,null,null,null,null,null,null,null,null,null,null,null,null,null,null,null,null,null,null,null,null,null,null,null,null,null,null,null,null,null,null,null,null,null,null,null,null,null,null,null,null,null,null,null,null,null,null,null,null,null,null,null,null,null,null,null,null,null,null,null,null,null,null,null,null,null,null,null,null,null,null,null,null,null,null,null,null,null,null,null,null,null,null,null,null,null,null,null,null,null,null,null,null,null,null,null,null,null,null,null,null,null,null,null,null,null,null,null,null,null,null,"Venagro ","Tab","10's",70,35,{"$f":"100-LE576/LD576*100","v":50},"Synchro Pharma",null,null,null,null,null,null,null,null,null,null,null,null,null,null,null,null,null,null,null,null,null,null,null,null,null,null,null,null,null,null,null,null,null,null,null,null,null,null,null,null,null,null,null,null,null,null,null,null,null,null,null,null,null,null,null,null,null,null,null,null,null,null,null,null,null,null,null,null,null,null,null,null,null,null,null,null,null,null,null,null,null,null,null,null,null,null,null,null,null,null,null,null,null,null,null,null,null,null,null,null,null,null,null,null,null,"Gloft 100mg","Tab","10's",70,37.950000000000003,{"$f":"100-PM576/PL576*100","v":45.785714285714285},"Glitz Pharma"]
[574,"Inj.","Mecobalamine 500 mcg/ml","10's",null,null,null,null,null,null,null,null,null,null,null,null,null,null,null,null,null,null,null,null,null,null,null,null,null,null,null,null,null,null,null,null,null,null,null,"Cobolmin ","Inj","10's",490,250,48.979591836734691,"Macter",null,null,null,null,null,null,null,null,null,null,null,null,null,null,"Mecovate 500mcg","Inj","10's",360,235.62,34.549999999999997,"AGP",null,null,null,null,null,{"$error":"#DIV/0!"},null,"Raycobal 500mcg","Inj","10's",425.55,253.2,40.500528727529087,"Ray Pharma","Mecotec 500mcg","Inj","10's",385,278.16000000000003,27.750649350649354,"Pharmatec",null,null,null,null,null,null,null,null,null,null,null,null,null,null,"Qbal 500mcg","Inj","10's",200,153,23.5,"Bosch",null,null,null,null,null,null,null,null,null,null,null,null,null,null,null,null,null,null,null,null,null,null,null,null,null,null,null,null,null,null,null,null,null,null,null,null,null,null,null,null,null,null,null,null,null,null,null,null,null,null,null,null,null,null,null,null,null,null,null,null,null,null,null,null,null,null,null,null,null,null,null,null,null,null,null,null,null,null,null,null,null,null,null,null,null,null,null,null,null,null,null,null,null,null,null,null,null,null,null,null,null,null,null,null,null,null,null,null,null,null,null,null,null,null,null,null,null,null,null,null,null,null,null,null,null,null,null,null,null,null,null,null,null,null,null,null,null,null,null,null,null,null,null,null,null,null,null,null,null,null,null,null,null,null,null,null,null,null,null,null,null,"Neuromet ","Inj","10's",697.52,503.96,27.749741942883361,"Martin Dow",null,null,null,null,null,null,null,null,null,null,null,null,null,null,null,null,null,null,null,null,null,null,null,null,null,null,null,null,null,null,null,null,null,null,null,"Mecowim","Inj","10's",460,115,75,"Wimits Pharma",null,null,null,null,null,null,null,null,null,null,null,null,null,null,null,null,null,null,null,null,null,"Nervon 500mcg","Inj","10's",400,107.7,73.075000000000003,"Getz Pharma",null,null,null,null,null,null,null,null,null,null,null,null,null,null,null,null,null,null,null,null,null,null,null,null,null,null,null,null,"Gecopak ","Inj","10's",460,105,{"$f":"100-NP582/NO582*100","v":77.173913043478265},"GMP Pharma",null,null,null,null,null,null,null,null,null,null,null,null,null,null,null,null,null,null,null,null,null,"Mexamine ","INJ","10'S",390,249,36.15384615384616,"Asian Contiental"]
[585,"Tab","Pyridoxine 50mg","20's",null,null,null,null,null,null,null,null,null,null,null,null,null,null,null,null,null,null,null,null,null,null,null,null,null,null,null,null,"Vita -6","Tab","20's",45,33.659999999999997,{"$f":"100-AK594/AJ594*100","v":25.200000000000017},"Chas a Mendoza",null,null,null,null,null,null,null,null,null,null,null,null,null,null,null,null,null,null,null,null,null,null,null,null,null,null,null,null,null,null,null,null,null,null,null,null,null,null,null,null,null,null,null,null,null,null,null,null,null,null,null,null,null,null,null,null,null,null,null,null,null,null,null,null,null,null,null,null,null,null,null,null,null,null,null,null,null,null,null,null,null,null,null,null,null,null,null,null,null,null,null,null,null,null,null,null,null,null,null,null,null,null,null,null,null,null,null,null,null,null,null,null,null,null,null,null,null,null,null,null,null,null,null,null,null,null,null,null,null,null,null,null,null,null,null,null,null,null,null,null,null,null,null,null,null,null,null,null,null,null,null,null,null,null,null,null,null,null,null,null,null,null,null,null,null,null,null,null,null,null,null,null,null,null,null,null,null,null,null,null,null,null,null,null,null,null,null,null,null,null,null,null,null,null,null,null,null,null,null,null,null,null,null,null,null,null,null,null,null,null,null,null,null,null,null,null,null,null,null,null,null,null,null,null,null,null,null,null,null,null,null,null,null,null,null,null,null,null,null,null,null,null,null,null,null,null,null,null,null,null,null,null,null,null,null,null,null,null,null,null,null,null,null,null,null,null,null,null,null,null,null,null,null,null,null,null,null,null,null,null,null,null,null,null,null,null,null,null,null,null,null,null,null,null,null,null,null,null,null,null,null,null,null,null,null,null,null,null,null,null,null,null,null,null,null,null,null,null,null,null,null,null,null,null,null,null,null,null,null,null,null,null,null,null,null,null,null,null,null,null,null,null,null,null,null,null,null,null,null,null,null,null,null,null,null,null,null,"Amdoxine 50mg","Tab","20's",38,32.299999999999997,{"$f":"100-OK594/OJ594*100","v":15},"Amson Vaccines & Pharma",null,null,null,null,null,null,null,null,null,null,null,null,null,null,null,null,null,null,null,null,null,"Vitox 50mg","Tab","20's",39,33.15,{"$f":"100-PM594/PL594*100","v":15},"Glitz Pharma"]
[588,"Tab","Thiamine 10mg, Pyridoxine 100mg, Cyanocobalamine 1000mg/3ml","100's",null,null,null,null,null,null,null,null,null,null,null,null,null,null,null,null,null,null,null,null,null,null,null,null,null,null,null,null,"Thavit ","Cap","20's",55,41.14,{"$f":"100-AK597/AJ597*100","v":25.200000000000003},"Chas a Mendoza"]
[592,"Tab","Vit.B1:100mg,VitB2:100mg,cyanocobalamin 50mcg","30's/100's"]
[604,"Syp","Dextromethorphen Compund/Diphenhydramine ",null,null,null,null,null,null,null,null,null,null,null,null,null,null,null,null,null,null,null,null,null,null,"Babynol ","Syp","60ml",40,29.92,{"$f":"100-AD614/AC614*100","v":25.200000000000003},"W.Wards"]
[610,"Inh","Beclomethasone Dipropionate 250 mcg ","200 Doses",null,null,null,null,null,null,null,null,null,null,null,null,null,null,null,null,null,null,null,null,null,null,null,null,null,null,null,null,null,null,null,null,null,null,null,null,null,null,null,null,null,null,null,null,null,null,null,null,null,null,null,null,null,null,null,null,null,null,null,null,null,null,null,null,null,null,null,null,null,null,null,null,null,null,null,null,null,null,null,null,null,null,null,null,null,null,null,null,null,null,null,null,null,null,null,null,null,null,null,null,null,null,null,null,null,null,null,null,null,null,null,null,null,null,null,null,null,null,null,null,null,null,null,null,null,null,null,null,null,null,null,null,null,null,null,null,null,null,null,null,null,null,null,null,null,null,null,null,null,null,null,null,null,null,null,null,null,null,null,null,null,"Clenil 250mg","Inh","1's",427.31,355.95,{"$f":"100-FN621/FM621*100","v":16.699819802953357},"Chiesi Pharma"]
[614,"Tab","Montelukast 5mg","14's","Ventek 5mg","Tab","14's",248.5,65,73.843058350100605,"Searle Pharma",null,null,null,null,null,null,null,null,null,null,null,null,null,null,null,null,null,null,null,null,null,null,null,null,null,null,null,null,null,null,null,null,null,null,null,"Aireez 5mg ","Tab","30's",450,120.25,73.277777777777771,"Pharmevo",null,null,null,null,null,null,null,"Lucast 5mg ","Tab","14's",205,148.11000000000001,27.751219512195107,"AGP",null,null,null,null,null,{"$error":"#DIV/0!"},null,"Rayair 5mg","Tablet","14's",209.2,106.69,49.00095602294455,"Ray Pharma","Montec 5mg ","Tab","14's",248.49,190.09,23.501951788804377,"Pharmatec",null,null,null,null,null,null,null,null,null,null,null,null,null,null,"Beasy 5mg","Tab","14's",210,142.80000000000001,32,"Bosch","Aerokast 5mg ","Tab","14's",196,47.43,75.801020408163268,"BH",null,null,null,null,null,null,null,null,null,null,null,null,null,null,null,null,null,null,null,null,null,null,null,null,null,null,null,null,null,null,null,null,null,null,null,null,null,null,null,null,null,null,null,null,null,null,null,null,null,null,null,null,null,null,null,null,null,null,null,null,null,null,null,null,null,null,null,null,null,null,"Montana 5mg","Tab","14's",240,40,83.333333333333343,"PDH",null,null,null,null,null,null,null,null,null,null,null,null,null,null,null,null,null,null,null,null,null,null,null,null,null,null,null,null,null,null,null,null,null,null,null,"Simkast 5mg","Tab","14's",204,67.2,67.058823529411768,"Sims Pharma",null,null,null,null,null,null,null,null,null,null,null,null,null,null,null,null,null,null,null,null,null,null,null,null,null,null,null,null,null,null,null,null,null,null,null,null,null,null,null,null,null,null,null,null,null,null,null,null,null,null,null,null,null,null,null,null,null,null,null,null,null,null,null,null,null,null,null,null,null,null,null,null,null,null,null,null,null,null,null,null,null,null,null,null,null,null,null,null,null,null,null,null,null,null,null,null,null,null,null,null,null,null,null,null,null,"Montiget  5mg","Tab","14's",243,120,50.617283950617285,"Getz Pharma",null,null,null,null,null,null,null,null,null,null,null,null,null,null,null,null,null,null,null,null,null,null,null,null,null,null,null,null,"Cingol 5mg","Tab","14's",240,74,{"$f":"100-NP625/NO625*100","v":69.166666666666657},"Citi Pharma","Floaid 5mg","Tab","14's",142,61,57.04225352112676,"Abbott LAB",null,null,null,null,null,null,null,"Airflo 5mg Chewable ","Tab","14's",199,70,64.824120603015075,"Amson Vaccines & Pharma"]
[622,"Inh","Salmetrol + Fluticasone 25 mcg/250mcg","120 Doses",null,null,null,null,null,null,null,null,null,null,null,null,null,null,null,null,null,null,null,null,null,null,null,null,null,null,null,null,null,null,null,null,null,null,null,"Salmicort INH","Inhaler","1's",775,340,56.129032258064512,"Macter",null,null,null,null,null,null,null,null,null,null,null,null,null,null,null,null,null,null,null,null,null,null,null,null,null,null,null,null,null,null,null,null,null,null,null,null,null,null,null,null,null,null,null,null,null,null,null,null,null,null,null,null,null,null,null,null,null,null,null,null,null,null,null,null,null,null,null,null,null,null,null,null,null,null,null,null,null,null,null,null,null,null,null,null,null,null,null,null,null,null,null,null,null,null,null,null,null,null,null,null,null,null,null,null,null,null,null,null,null,null,null,null,null,null,null,null,null,null,null,null,"Inha",null,null,null,null,null,null,null,null,null,null,null,null,null,null,null,null,null,null,null,null,null,null,null,null,null,null,null,null,null,null,null,null,null,null,null,null,null,null,null,null,null,null,null,null,null,null,null,null,null,null,null,null,null,null,null,null,null,null,null,null,null,null,null,null,null,null,null,null,null,null,null,null,null,null,null,null,null,null,null,null,null,null,null,null,null,null,null,null,null,null,null,null,null,null,null,null,null,null,null,null,null,null,null,null,null,null,null,null,null,null,null,null,null,null,null,null,null,null,null,null,null,null,null,null,null,null,null,null,null,null,null,null,null,null,null,null,null,null,null,null,null,null,null,null,null,null,null,null,null,null,null,null,"Salnafot CFC Free","Inh","1's",725,554.63,{"$f":"100-LL633/LK633*100","v":23.499310344827578},"Platinum Pharma"]
[627,"Syp","Amm.Chloride,Sod.Citrate ,CPM,Menthol","120ml",null,null,null,null,null,null,null,null,null,null,null,null,null,null,null,null,null,null,null,null,null,null,null,null,null,null,null,null,null,null,null,null,null,null,null,null,null,null,null,null,null,null,null,null,null,null,null,null,null,null,null,null,null,null,null,null,null,null,null,null,null,null,null,null,null,null,null,null,null,null,null,null,null,null,null,null,null,null,null,null,null,null,null,null,null,null,null,null,null,null,null,null,null,null,null,null,null,null,null,null,null,null,null,null,null,null,null,null,null,null,null,null,null,null,null,null,null,null,null,null,null,null,null,null,null,null,null,null,null,null,null,null,null,null,null,null,null,null,null,null,null,null,null,null,null,null,null,null,null,null,null,null,null,null,null,null,null,null,null,null,null,null,null,null,null,null,null,null,null,null,null,null,null,null,null,null,null,null,null,null,null,null,null,null,null,null,null,null,null,null,null,null,null,null,null,null,null,null,null,null,null,null,null,null,null,null,null,null,null,null,null,null,null,null,null,null,null,null,null,null,null,null,null,null,null,null,null,null,null,null,null,null,null,null,null,null,null,null,null,null,null,null,null,null,null,null,null,null,null,null,null,null,null,null,null,null,null,null,null,null,null,null,null,null,null,null,null,null,null,null,null,null,null,null,null,null,null,null,null,null,null,null,null,null,null,null,null,null,null,null,null,null,null,null,null,null,null,null,null,null,null,null,null,null,null,null,null,null,null,null,null,null,null,null,null,null,null,null,null,null,null,null,null,null,null,null,null,null,null,null,null,null,null,null,null,null,null,null,null,null,null,null,null,null,null,null,null,null,null,null,null,null,null,null,null,null,null,null,null,null,null,null,null,null,null,null,null,null,null,null,null,null,null,null,null,null,null,null,null,null,null,null,null,null,null,null,null,null,null,null,null,null,null,null,null,null,null,null,null,null,null,null,null,null,null,null,null,null,null,null,null,null,null,null,null,null,null,null,null,null,null,null,null,null,null,null,null,null,null,null,null,null,null,null,null,null,null,null,null,null,null,null,null,null,null,null,null,null,null,null,null,null,null,null,null,"Cough Care","Syp","120ml",28,23.8,{"$f":"100-QV638/QU638*100","v":15},"Care Pharma"]
[634,"Oint ","Betamethasone Sodium Phosphate 0.1% w/v + Neomycin Sulphate 0.5% w/v","5 gm"]
[638,"Drops","Brimonidine Tartrate 0.2% ","5ml",null,null,null,null,null,null,null,null,null,null,null,null,null,null,null,null,null,null,null,null,null,null,null,null,null,null,null,null,null,null,null,null,null,null,null,null,null,null,null,null,null,null,null,null,null,null,null,null,null,null,null,null,null,null,null,null,null,null,null,null,null,null,null,null,null,null,null,null,null,null,null,null,null,null,null,null,null,null,null,null,null,null,null,null,null,null,null,null,null,null,null,null,null,null,null,null,null,null,null,null,null,null,null,null,null,null,null,null,null,null,null,null,null,null,null,null,null,null,null,null,null,null,null,null,null,null,null,null,null,null,null,null,null,null,null,null,null,null,null,null,null,null,null,null,null,null,null,null,null,null,null,null,null,null,null,null,null,null,null,null,null,null,null,null,null,null,null,null,null,null,null,null,null,null,null,null,null,null,null,null,null,null,null,null,null,null,null,null,null,null,null,null,null,null,null,null,null,null,null,null,null,null,null,null,null,null,null,null,null,null,null,null,null,null,null,null,null,null,null,null,null,null,null,null,null,null,null,null,null,null,null,null,null,null,null,null,null,null,null,null,null,null,null,null,null,null,null,null,null,null,null,null,null,null,null,null,null,null,null,null,null,null,null,null,null,null,null,null,null,null,null,null,null,null,null,null,null,null,null,null,null,null,null,null,null,null,null,null,null,null,null,null,null,null,null,null,null,null,null,null,null,null,null,null,null,null,null,null,null,null,null,null,null,null,null,null,null,null,null,null,null,null,null,null,null,null,null,null,null,null,null,null,null,null,null,null,null,null,null,null,null,null,null,null,null,null,null,null,null,null,null,null,null,null,null,null,null,null,null,null,null,null,null,null,null,null,null,null,null,null,null,null,null,null,null,null,null,null,null,null,null,null,null,null,null,"Alazgan ","E/D","5ml",380,249,{"$f":"100-OD649/OC649*100","v":34.473684210526315},"Alza Pharma"]
[648," Drops","Dexamethasone 0.15% + Neomycin 0.35% ","5ml"]
[654,"Drops","Emedastine Difumarate 0.05% ","5ml"]
[660,"Drops","HPMC 0.5%,Neomycin0.35%Polymyxine B,Dexamethasone0.1% w/v","10ml"]
[665,"Drops","Naphazoline  HCL 0.025%+Phenarmine Maleate 0.3% ","15ml",null,null,null,null,null,null,null,null,null,null,null,null,null,null,null,null,null,null,null,null,null,null,null,null,null,null,null,null,null,null,null,null,null,null,null,null,null,null,null,null,null,null,null,null,null,null,null,null,null,null,null,null,null,null,null,null,null,null,null,null,null,null,null,null,null,null,null,null,null,null,null,null,null,null,null,null,null,null,null,null,null,null,null,null,null,null,null,null,null,null,null,null,null,null,null,null,null,null,null,null,null,null,null,null,null,null,null,null,null,null,null,null,null,null,null,null,null,null,null,null,null,null,null,null,null,null,null,null,null,null,null,null,null,null,null,null,null,null,null,null,null,null,null,null,null,null,null,null,null,null,null,null,null,null,null,null,null,null,null,null,null,null,null,null,null,null,null,null,null,null,null,null,null,null,null,null,null,null,null,null,null,null,null,null,null,null,null,null,null,null,null,null,null,null,null,null,null,null,null,null,null,null,null,null,null,null,null,null,null,null,null,null,null,null,null,null,null,null,null,null,null,null,null,null,null,null,null,null,null,null,null,null,null,null,null,null,null,null,null,null,null,null,null,null,null,null,null,null,null,null,null,null,null,null,null,null,null,null,null,null,null,null,null,null,null,null,null,null,null,null,null,null,null,null,null,null,null,null,null,null,null,null,null,null,null,null,null,null,null,null,null,null,null,null,null,null,null,null,null,null,null,null,null,null,null,null,null,null,null,null,null,null,null,null,null,null,null,null,null,null,null,null,null,null,null,null,null,null,null,null,null,null,null,null,null,null,null,null,null,null,null,null,null,null,null,null,null,null,null,null,null,null,null,null,null,null,null,null,null,null,null,null,null,null,null,null,null,null,null,null,null,null,null,null,null,null,null,null,null,null,null,null,null,null,null,null,null,null,null,null,null,null,null,null,null,null,null,null,null,null,null,null,null,null,null,null,null,null,null,null,null,null,null,"Nafamine ","E/D","15ml",83,70.55,15,"Ethical Lab"]
[672,"Drops","Pilocarpine 2% ","10ml"]
[678,"Drops","Sod.Cromoglycate 40mg + Tetrahydrozoline HCL 0.05mg/ml","10ml",null,null,null,null,null,null,null,null,null,null,null,null,null,null,null,null,null,null,null,null,null,null,null,null,null,null,null,null,null,null,null,null,null,null,null,null,null,null,null,null,null,null,null,null,null,null,null,null,null,null,null,null,null,null,null,null,null,null,null,null,null,null,null,null,null,null,null,null,null,null,null,null,null,null,null,null,null,null,null,null,null,null,null,null,null,null,null,null,null,null,null,null,null,null,null,null,null,null,null,null,null,null,null,null,null,null,null,null,null,null,null,null,null,null,null,null,null,null,null,null,null,null,null,null,null,null,null,null,null,null,null,null,null,null,null,null,null,null,null,null,null,null,null,null,null,null,null,null,null,null,null,null,null,null,null,null,null,null,null,null,null,null,null,null,null,null,null,null,null,null,null,null,null,null,null,null,null,null,null,null,null,null,null,null,null,null,null,null,null,null,null,null,null,null,null,null,null,null,null,null,null,null,null,null,null,null,null,null,null,null,null,null,null,null,null,null,null,null,null,null,null,null,null,null,null,null,null,null,null,null,null,null,null,null,null,null,null,null,null,null,null,null,null,null,null,null,null,null,null,null,null,null,null,null,null,null,null,null,null,null,null,null,null,null,null,null,null,null,null,null,null,null,null,null,null,null,null,null,null,null,null,null,null,null,null,null,null,null,null,null,null,null,null,null,null,null,null,null,null,null,null,null,null,null,null,null,null,null,null,null,null,null,null,null,null,null,null,null,null,null,null,null,null,null,null,null,null,null,null,null,null,null,null,null,null,null,null,null,null,null,null,null,null,null,null,null,null,null,null,null,null,null,null,null,null,null,null,null,null,null,null,null,null,null,null,null,null,null,null,null,null,null,null,null,null,null,null,null,null,null,null,null,null,null,null,null,null,null,null,null,null,null,null,null,null,null,null,null,null,null,null,null,null,null,null,null,null,null,null,null,null,null,null,"Ethicrom-T","E/D","15ml",119.4,101.49,{"$f":"100-PF690/PE690*100","v":15.000000000000014},"Ethical Lab"]
[684,"Drops","Tobramycin","5ml",null,null,null,null,null,null,null,null,null,null,null,null,null,null,"Tobracin","E/D","5ml",90,50,{"$f":"100-W696/V696*100","v":44.444444444444443},"Helix",null,null,null,null,null,null,null,null,null,null,null,null,null,null,null,null,null,null,null,null,null,null,null,null,null,null,null,null,null,null,null,null,null,null,null,null,null,null,null,null,null,null,null,null,null,null,null,null,null,"Baydex T","E/D","5ml",104.12,57.53,{"$f":"100-CA696/BZ696*100","v":44.746446407990781},"Ray Pharma",null,null,null,null,null,null,null,null,null,null,null,null,null,null,null,null,null,null,null,null,null,null,null,null,null,null,null,null,"Eyebrex 0.3%","E/D","5ml",144.38999999999999,42.8,{"$f":"100-DJ696/DI696*100","v":70.358058037260193},"BH",null,null,null,null,null,null,null,null,null,null,null,null,null,null,null,null,null,null,null,null,null,null,null,null,null,null,null,null,null,null,null,null,null,null,null,null,null,null,null,null,null,null,null,null,null,null,null,null,null,null,null,null,null,null,null,null,null,null,null,null,null,null,null,null,null,null,null,null,null,null,null,null,null,null,null,null,null,null,null,null,null,null,null,null,null,null,null,null,null,null,null,null,null,null,null,null,null,null,null,null,null,null,null,null,null,null,null,null,null,null,null,null,"Tobra ","E/D","5ML",95,80.7,15.052631578947356,"Schazoo Labs",null,null,null,null,null,null,null,null,null,null,null,null,null,null,null,null,null,null,null,null,null,null,null,null,null,null,null,null,null,null,null,null,null,null,null,null,null,null,null,null,null,null,null,null,null,null,null,null,null,null,null,null,null,null,null,null,null,null,null,null,null,null,null,null,null,null,null,null,null,null,null,null,null,null,null,null,null,null,null,null,null,null,null,null,null,null,null,null,null,null,null,null,null,null,null,null,null,null,null,null,null,null,null,null,null,null,null,null,null,null,null,null,null,null,null,null,null,null,null,null,null,null,null,null,null,null,null,null,null,null,null,null,null,null,null,null,null,null,null,null,null,null,null,null,null,null,null,null,null,null,null,null,null,null,null,null,null,null,null,null,null,null,null,null,null,null,null,null,null,null,null,null,null,null,null,null,null,null,null,null,null,null,"Ocucid ","E/D","5ml",86.5,73.53,14.994219653179186,"Ethical Lab"]
[689,"Drops","Nepafenac 0.1% E/D","10ml",null,null,null,null,null,null,null,null,null,null,null,null,null,null,null,null,null,null,null,null,null,null,null,null,null,null,null,null,null,null,null,null,null,null,null,null,null,null,null,null,null,null,null,null,null,null,null,null,null,null,null,null,null,null,null,null,null,null,null,null,null,null,null,null,null,null,null,null,null,null,null,null,null,null,null,null,null,null,null,null,null,null,null,null,null,null,null,null,null,null,null,null,null,null,null,null,null,null,null,null,null,null,null,null,null,null,null,null,null,null,null,null,null,null,null,null,null,null,null,null,null,null,null,null,null,null,null,null,null,null,null,null,null,null,null,null,null,null,null,null,null,null,null,null,null,null,null,null,null,null,null,null,null,null,null,null,null,null,null,null,null,null,null,null,null,null,null,null,null,null,null,null,null,null,null,null,null,null,null,null,null,null,null,null,null,null,null,null,null,null,null,null,null,null,null,null,null,null,null,null,null,null,null,null,null,null,null,null,null,null,null,null,null,null,null,null,null,null,null,null,null,null,null,null,null,null,null,null,null,null,null,null,null,null,null,null,null,null,null,null,null,null,null,null,null,null,null,null,null,null,null,null,null,null,null,null,null,null,null,null,null,null,null,null,null,null,null,null,null,null,null,null,null,null,null,null,null,null,null,null,null,null,null,null,null,null,null,"Acukat ","E/D","5ml",288.14999999999998,163,{"$f":"100-KJ701/KI701*100","v":43.432240152698242},"Genix Pharma",null,null,null,null,null,null,null,null,null,null,null,null,null,null,null,null,null,null,null,null,null,null,null,null,null,null,null,null,null,null,null,null,null,null,null,null,null,null,null,null,null,null,null,null,null,null,null,null,null,null,null,null,null,null,null,null,"Nepac 0.1%","Drops","5ml",293.92,120,59.172563962983126,"Sante Pvt Ltd",null,null,null,null,null,null,null,null,null,null,null,null,null,null,null,null,null,null,null,null,null,null,null,null,null,null,null,null,"Naplo ","E/D","10ml",280,171,38.928571428571423,"Alza Pharma"]
[699,"Lotion","Betamethasone 0.1% w/v","60ml",null,null,null,null,null,null,null,null,null,null,null,null,null,null,null,null,null,null,null,null,null,null,null,null,null,null,null,null,null,null,null,null,null,null,null,null,null,null,null,null,null,null,null,null,null,null,null,null,null,null,null,null,null,null,null,null,null,null,null,null,null,null,null,null,null,null,null,null,null,null,null,null,null,null,null,null,null,null,null,null,null,null,null,null,null,null,null,null,null,null,null,null,null,null,null,null,null,null,null,null,null,null,null,null,null,null,null,null,null,null,null,null,null,null,null,null,null,null,null,null,null,null,null,null,null,null,null,null,null,null,null,null,null,null,null,null,null,null,null,null,null,null,null,null,null,null,null,null,null,null,null,null,null,null,null,null,null,null,null,null,null,null,null,null,null,null,null,null,null,null,null,null,null,null,null,null,null,null,null,null,null,null,null,null,null,null,null,null,null,null,null,null,null,null,null,null,null,null,null,null,null,null,null,null,null,null,null,null,null,null,null,null,null,null,null,null,null,null,null,null,null,null,null,null,null,null,null,null,null,null,null,null,null,null,null,null,null,null,null,null,null,null,null,null,null,null,null,null,null,null,null,null,null,null,null,null,null,null,null,null,null,null,null,null,null,null,null,null,null,null,null,null,null,null,null,null,null,null,null,null,null,null,null,null,null,null,null,null,null,null,null,null,null,null,null,null,null,null,null,null,null,null,null,null,null,null,null,null,null,null,null,null,null,null,null,null,null,null,null,null,null,null,null,null,null,null,null,null,null,null,null,null,null,null,null,null,null,null,null,null,null,null,null,null,null,null,null,null,null,null,null,null,null,null,null,null,null,null,null,null,null,null,null,null,null,null,null,null,null,null,null,null,null,null,null,null,null,null,null,null,null,null,null,null,null,null,null,null,null,null,null,null,null,null,null,null,null,null,null,null,null,null,null,null,null,null,null,null,null,null,null,null,null,null,null,null,null,null,null,null,null,null,null,null,null,null,null,null,null,null,null,null,null,null,null,null,null,null,null,null,null,"Betaval ","Lotion","60ml",75,63.75,15,"Valor Pharma"]
[704,"Gel","Catalase superoxide dismutase","50ml"]
[710,"Cream ","Clotrimazole 10 mg + Dexamethasone 4 mg / gm","15gm"]
[716,"cream/Oint","Fluticasone propionate0.05% w/w","10g",null,null,null,null,null,null,null,null,null,null,null,null,null,null,null,null,null,null,null,null,null,null,null,null,null,null,null,null,null,null,null,null,null,null,null,null,null,null,null,null,null,null,null,null,null,null,null,null,null,null,null,null,null,null,null,null,null,null,null,null,null,null,null,null,null,null,null,null,null,null,null,null,null,null,null,null,null,null,null,null,null,null,null,null,null,null,null,null,null,null,null,null,null,null,null,null,null,null,null,null,null,null,null,null,null,null,null,null,null,null,null,null,null,null,null,null,null,null,null,null,null,null,null,null,null,null,null,null,null,null,null,null,null,null,null,null,null,null,null,null,null,null,null,null,null,null,null,null,null,null,null,null,null,null,null,null,null,null,null,null,null,null,null,null,null,null,null,null,null,null,null,null,null,null,null,null,null,null,null,null,null,null,null,null,null,null,null,null,null,null,null,null,null,null,null,null,null,null,null,null,null,null,null,null,null,null,null,null,null,null,null,null,null,null,null,null,null,null,null,null,null,null,null,null,null,null,null,null,null,null,null,null,null,null,null,null,null,null,null,null,null,null,null,null,null,null,null,null,null,null,null,null,null,null,null,null,null,null,null,null,null,null,null,null,null,null,null,null,null,null,null,null,null,null,null,null,null,null,null,null,null,null,null,null,null,null,null,null,null,null,null,null,null,null,null,null,null,null,null,null,null,null,null,null,null,null,null,null,null,null,null,null,null,null,null,null,null,null,null,null,null,null,null,null,null,null,null,null,null,null,null,null,null,null,null,null,null,null,null,null,null,null,null,null,null,null,null,null,null,null,null,null,null,null,null,null,null,null,null,null,null,null,null,null,null,null,null,null,null,null,null,null,null,null,null,null,null,null,null,null,null,null,null,null,null,null,null,null,null,null,null,null,null,null,null,null,null,null,null,null,null,null,null,null,null,null,null,null,null,null,null,null,null,null,null,null,null,null,null,null,null,null,null,null,null,null,null,null,null,null,null,null,null,null,null,null,null,null,null,null,null,null,null,null,null,null,null,null,null,null,null,null,null,null,null,null,null,null,null,null,null,null,"Flutiprop ","Cream","5g",46.75,37.4,{"$f":"100-RC728/RB728*100","v":20},"Derma Techno"]
[721,"Oint ","Hydrocortisone0.25%,Phenol0.3%w/w","10gm"]
[731,"Cream ","Nystatin:100000IU/g, Triamcinolone:0.1%w/w, \nNeomycin:0.25%w/w, Gramicidin:0.25mg/g","15gm"]
[738,"Liquid","Salicylic Acid 16.7%,Lactic Acid 16.7% W/v","15ml"]
[743,"Cream ","Calcipotriol ","10G"]
[748,"Inj","Bupivacaine HCI 0.5%","10ml",null,null,null,null,null,null,null,null,null,null,null,null,null,null,null,null,null,null,null,null,null,null,null,null,null,null,null,null,null,null,null,null,null,null,null,null,null,null,null,null,null,null,null,null,null,null,null,null,null,null,null,null,null,null,null,null,null,null,null,null,null,null,null,null,null,null,null,null,null,null,null,null,null,null,null,null,null,null,null,null,null,null,null,null,null,null,null,null,null,null,null,null,null,null,null,null,null,null,null,null,null,null,null,null,null,null,null,null,null,null,null,null,null,null,null,null,null,null,null,null,null,null,null,null,null,null,null,null,null,null,null,null,null,null,null,null,null,null,null,null,null,null,null,null,null,null,null,null,null,null,null,null,null,null,null,null,null,null,null,null,null,null,null,null,null,null,null,null,null,null,null,null,null,null,null,null,null,null,null,null,null,null,null,null,null,null,null,null,null,null,null,null,null,null,null,null,null,null,null,null,null,null,null,null,null,null,null,null,null,null,null,null,null,null,null,null,null,null,null,null,null,null,null,null,null,null,null,null,null,null,null,null,null,null,null,null,null,null,null,null,null,null,null,null,null,null,null,null,null,null,null,null,null,null,null,null,null,null,null,null,null,null,null,null,null,null,null,null,null,null,null,null,null,null,null,null,null,null,null,null,"Sensocain 10ml","1nj","10's",null,null,{"$f":"100-KC761/KB761*100","v":{"$error":"#DIV/0!"}},"Brooks"]
[754,"Inj","Lignocaine Solution 2%  with Adrenaline 0.001%","50's"]
[761,"Inj ","Atracurium Besylate 10mg/ml  5ml Injection","5's",null,null,null,null,null,null,null,null,null,null,null,null,null,null,null,null,null,null,null,null,null,null,null,null,null,null,null,null,null,null,null,null,null,null,null,null,null,null,null,null,null,null,null,null,null,null,null,null,null,null,null,null,null,null,null,null,null,null,null,null,null,null,null,null,null,null,null,null,null,null,null,null,null,null,null,null,null,null,null,null,null,null,null,null,null,null,null,null,null,null,null,null,null,null,null,null,null,null,null,null,null,null,null,null,null,null,null,null,null,null,null,null,null,null,null,null,null,null,null,null,null,null,null,null,null,null,null,null,null,null,null,null,null,null,null,null,null,null,null,null,null,null,null,null,null,null,null,null,null,null,null,null,null,null,null,null,null,null,null,null,null,null,null,null,null,null,null,null,null,null,null,null,null,null,null,null,null,null,null,null,null,null,null,null,null,null,null,null,null,null,null,null,null,null,null,null,null,null,null,null,null,null,null,null,null,null,null,null,null,null,null,null,null,null,null,null,null,null,null,null,null,null,null,null,null,null,null,null,null,null,null,null,null,null,null,null,null,null,null,null,null,null,null,null,null,null,null,null,null,null,null,null,null,null,null,null,null,null,null,null,null,null,null,null,null,null,null,null,null,null,null,null,null,null,null,null,null,null,null,null,"Acuron 5ml","Inj","5's",1224.44,700,42.831008461010754,"Brooks"]
[766,"Inj","Neostigmine inj 2.5mg","1ML"]
[772,"soln","Didecyle Dimethyl ammonium chloride","5L"]
[781,null,"(AM) I.V SOLUTIONS"]
[789,"Infusion","Dextrose/water 10% 500ml","500ml",null,null,null,null,null,null,null,null,null,null,null,null,null,null,null,null,null,null,null,null,null,null,null,null,null,null,null,null,null,null,null,null,null,null,null,null,null,null,null,null,null,null,null,null,null,null,null,null,null,null,null,null,null,null,null,null,null,null,null,null,null,null,null,null,null,null,null,null,null,null,null,null,null,null,null,null,null,null,null,null,null,null,null,null,null,null,null,null,null,null,null,null,null,null,null,null,null,null,null,null,null,null,null,null,null,null,null,null,null,null,null,null,null,null,null,null,null,null,null,null,null,null,null,null,null,null,null,null,null,null,null,null,null,null,null,null,null,null,null,null,null,null,null,null,null,null,null,null,null,null,null,null,null,null,null,null,null,null,null,null,null,null,null,null,null,null,null,null,null,null,null,null,null,null,null,null,null,null,null,null,null,null,null,null,null,null,null,null,null,null,null,null,null,null,null,null,null,null,null,null,null,null,null,null,null,null,null,null,null,null,null,null,null,null,null,null,null,null,null,null,null,null,null,null,"Zeesol 10% 500ml","Inj","500ml",56,46,{"$f":"100-HY802/HX802*100","v":17.857142857142861},"Shahzeb Pharma"]
[793,"Infusion","Hartman's/Ringer Solution 1000ml","1000ml",null,null,null,null,null,null,null,null,null,null,null,null,null,null,null,null,null,null,null,null,null,null,null,null,null,null,null,null,null,null,null,null,null,null,null,null,null,null,null,null,null,null,null,null,null,null,null,null,null,null,null,null,null,null,null,null,null,null,null,null,null,null,null,null,null,null,null,null,null,null,null,null,null,null,null,null,null,null,null,null,null,null,null,null,null,null,null,null,null,null,null,null,null,null,null,null,null,null,null,null,null,null,null,null,null,null,null,null,null,null,null,null,null,null,null,null,null,null,null,null,null,null,null,null,null,null,null,null,null,null,null,null,null,null,null,null,null,null,null,null,null,null,null,null,null,null,null,null,null,null,null,null,null,null,null,null,null,null,null,null,null,null,null,null,null,null,null,null,null,null,null,null,null,null,null,null,null,null,null,null,null,null,null,null,null,null,null,null,null,null,null,null,null,null,null,null,null,null,null,null,null,null,null,null,null,null,null,null,null,null,null,null,null,null,null,null,null,null,null,null,null,null,null,null,"Zeesol Hartmann's 1000ml","Inj","1000ml",77,45,41.558441558441558,"Shahzeb Pharma"]
[800,"Infusion","Hypertonic solution 1000ml","1000ml"]
[805,"Infusion","Medisol AC+BC 4 Litter","4000ml"]
[813,"Tab","Cyclosporin-A 100mg.","50's",null,null,null,null,null,null,null,null,null,null,null,null,null,null,null,null,null,null,null,null,null,null,null,null,null,null,null,null,null,null,null,null,null,null,null,null,null,null,null,null,null,null,null,null,null,null,null,null,null,null,null,null,null,null,null,null,null,null,null,null,null,null,null,null,null,null,null,null,null,null,null,null,null,null,null,null,null,null,null,null,null,null,null,null,null,null,null,null,null,null,null,null,null,null,null,null,null,null,null,null,null,null,null,null,null,null,null,null,null,null,null,null,null,null,null,null,null,null,null,null,null,null,null,null,null,null,null,null,null,null,null,null,null,null,null,null,null,null,null,null,null,null,null,null,null,null,null,null,null,null,null,null,null,null,null,null,null,null,null,null,null,null,null,null,null,null,null,null,null,null,null,null,null,null,null,null,null,null,null,null,null,null,null,null,null,null,null,null,null,null,null,null,null,null,null,null,null,null,null,null,null,null,null,"Sandimmun Neoral 100mg","Cap","50's",7756.32,5132.84,{"$f":"100-HD826/HC826*100","v":33.823772098108378},"Novartis"]
[821,"Tab","Letrozole 2.5mg","30's",null,null,null,null,null,null,null,null,null,null,null,null,null,null,null,null,null,null,null,null,null,null,null,null,null,null,null,null,null,null,null,null,null,null,null,null,null,null,null,null,null,null,null,null,null,null,null,null,null,null,null,null,null,null,null,null,null,null,null,null,null,null,null,null,null,null,null,null,null,null,null,null,null,null,null,null,null,null,null,null,null,null,null,null,null,null,null,null,null,null,null,null,null,null,null,null,null,null,null,null,null,null,null,null,null,null,null,null,null,null,null,null,null,null,null,null,null,null,null,null,null,null,null,null,null,null,null,null,null,null,null,null,null,null,null,null,null,null,null,null,null,null,null,null,null,null,null,null,null,null,null,null,null,null,null,null,null,null,null,null,null,null,null,null,null,null,null,null,null,null,null,null,null,null,null,null,null,null,null,null,null,null,null,null,null,null,null,null,null,null,null,null,null,null,null,null,null,null,null,null,null,null,null,null,null,null,null,null,null,null,null,null,null,null,null,null,null,null,null,null,null,null,null,null,null,null,null,null,null,null,null,null,null,null,null,null,null,null,null,null,null,null,null,null,null,null,null,null,null,null,null,null,null,null,null,null,null,null,null,null,null,null,null,null,null,null,null,null,null,null,null,null,null,null,null,null,null,null,null,null,null,null,null,null,null,null,null,"LETS","Tab","10's",2000,1630,{"$f":"100-KJ834/KI834*100","v":18.5},"Genix Pharma",null,null,null,null,null,null,null,null,null,null,null,null,null,null,"Wimzole 2.5mg","Tab","10's",2000,1400,{"$f":"100-LE834/LD834*100","v":30},"Wimits Pharma"]
[825,"Inj","Methotrexate 5mg,50mg, 500mg.","Vial"]
[832,"Inj.","Paclitaxel 30mg","vial"]
[837,"Tab","Tacrolimus 0.5mg","10's",null,null,null,null,null,null,null,null,null,null,null,null,null,null,null,null,null,null,null,null,null,null,null,null,null,null,null,null,null,null,null,null,null,null,null,null,null,null,null,null,null,null,null,null,null,null,null,null,null,null,null,null,null,null,null,null,null,null,null,null,null,null,null,null,null,null,null,null,null,null,null,null,null,null,null,null,null,null,null,null,null,null,null,null,null,null,null,null,null,null,null,null,null,null,null,null,null,null,null,null,null,null,null,null,null,null,null,null,null,null,null,null,null,null,null,null,null,null,null,null,null,null,null,null,null,null,null,null,null,null,null,null,null,null,null,null,null,null,null,null,null,null,null,null,null,null,null,null,null,null,null,null,null,null,null,null,null,null,null,null,null,null,null,null,null,null,null,null,null,null,null,null,null,null,null,null,null,null,null,null,null,null,null,null,null,null,null,null,null,null,null,null,null,null,null,null,null,null,null,null,null,null,null,"Tacrosan 0.5mg","Tab","50's",2460,2091,{"$f":"100-HD850/HC850*100","v":15},"Novartis",null,null,null,null,null,null,null,null,null,null,null,null,null,null,null,null,null,null,null,null,null,null,null,null,null,null,null,null,null,null,null,null,null,null,null,null,null,null,null,null,null,null,null,null,null,null,null,null,null,null,null,null,null,null,null,null,null,null,null,null,null,null,null,null,null,null,null,null,null,null,null,null,null,null,null,null,null,null,null,null,null,null,null,null,null,null,null,null,null,null,null,null,null,null,null,null,null,null,null,null,null,null,null,null,null,"Inograph","Tab","30's",862.15,608.25,{"$f":"100-LL850/LK850*100","v":29.449631734616943},"Platinum Pharma"]
[845,"Inj.","Immunuglobulin inj","10ml",null,null,null,null,null,null,null,null,null,null,null,null,null,null,null,null,null,null,null,null,null,null,null,null,null,null,null,null,null,null,null,null,null,null,null,null,null,null,null,null,null,null,null,null,null,null,null,null,null,null,null,null,null,null,null,null,null,null,null,null,null,null,null,null,null,null,null,null,null,null,null,null,null,null,null,null,null,null,null,null,null,null,null,null,null,null,null,null,null,null,null,null,null,null,null,null,null,null,null,null,null,null,null,null,null,null,null,null,null,null,null,null,null,null,null,null,null,null,null,null,null,null,null,null,null,null,null,null,null,null,null,null,null,null,null,null,null,null,null,null,null,null,null,null,null,null,null,null,null,null,null,null,null,null,null,null,null,null,null,null,null,null,null,null,null,null,null,null,null,null,null,null,null,null,null,null,null,null,null,null,null,null,null,null,null,null,null,null,null,null,null,null,null,null,null,null,null,null,null,null,null,null,null,null,null,null,null,null,null,null,null,null,null,null,null,null,null,null,null,null,null,null,null,null,null,null,null,null,null,null,null,null,null,null,null,null,null,null,null,null,null,null,null,null,null,null,null,null,null,null,null,null,"Thymoglobulin 25mg ","Inj","10ml",23736,20175.599999999999,15,"Sanofi Aventis"]
[856,"Inj.","Tetanus Toxoid:40IU/0.5ml","10's",null,null,null,null,null,null,null,null,null,null,null,null,null,null,null,null,null,null,null,null,null,null,null,null,null,null,null,null,null,null,null,null,null,null,null,null,null,null,null,null,null,null,null,null,null,null,null,null,null,null,null,null,null,null,null,null,null,null,null,null,null,null,null,null,null,null,null,null,null,null,null,null,null,null,null,null,null,null,null,null,null,null,null,null,null,null,null,null,null,null,null,null,null,null,null,null,null,null,null,null,null,null,null,null,null,null,null,null,null,null,null,null,null,null,null,null,null,null,null,null,null,null,null,null,null,null,null,null,null,null,null,null,null,null,null,null,null,null,null,null,null,null,null,null,null,null,null,null,null,null,null,null,null,null,null,null,null,null,null,null,null,null,null,null,null,null,null,null,null,null,null,null,null,null,null,null,null,null,null,null,null,null,null,null,null,null,null,null,null,null,null,null,null,null,null,null,null,null,null,null,null,null,null,null,null,null,null,null,null,null,null,null,null,null,null,null,null,null,null,null,null,null,null,null,null,null,null,null,null,null,null,null,null,null,null,null,null,null,null,null,null,null,null,null,null,null,null,null,null,null,null,null,null,null,null,null,null,null,null,null,null,null,null,null,null,null,null,null,null,null,null,null,null,null,null,null,null,null,null,null,null,null,null,null,null,null,null,null,null,null,null,null,null,null,null,null,null,null,null,null,null,null,null,null,null,null,null,null,null,null,null,null,null,null,null,null,null,null,null,null,null,null,null,null,null,null,null,null,null,null,null,null,null,null,null,null,null,null,null,null,null,null,null,null,null,null,null,null,null,null,null,null,null,null,null,null,null,null,null,null,null,null,null,null,null,null,null,null,null,null,null,null,null,null,null,null,null,null,null,null,null,null,null,null,null,null,null,null,null,null,null,null,"Imatet 0.5mg","Inj","10's",426.01,362.11,{"$f":"100-OK869/OJ869*100","v":14.999647895589291},"Amson Vaccines & Pharma"]
[862,"Tab","Lamivudine 100 mg ","14's",null,null,null,null,null,null,null,null,null,null,null,null,null,null,null,null,null,null,null,null,null,null,null,null,null,null,null,null,null,null,null,null,null,null,null,null,null,null,null,null,null,null,null,null,null,null,null,null,null,null,null,null,null,null,null,null,null,null,null,null,null,null,null,null,null,null,null,null,null,null,null,null,null,null,null,null,null,null,null,null,null,null,null,null,null,null,null,null,null,null,null,null,null,null,null,null,null,null,null,null,null,null,null,null,null,null,null,null,null,null,null,null,null,null,null,null,null,null,null,null,null,null,null,null,null,null,null,null,null,null,null,null,null,null,null,null,null,null,null,null,null,null,null,null,null,null,null,null,null,null,null,null,null,null,null,null,null,null,null,null,null,null,null,null,null,null,null,null,null,null,null,null,null,null,null,null,null,null,null,null,null,null,null,null,null,null,null,null,null,null,null,null,null,null,null,null,null,null,null,null,null,null,null,null,null,null,null,null,null,null,null,null,null,null,null,null,null,null,null,null,null,null,null,null,null,null,null,null,null,null,null,null,null,null,null,null,null,null,null,null,null,null,null,null,null,null,null,null,null,null,null,null,null,null,null,null,null,null,null,"Lamidin 100mg","Tab","10's",280,238,15,"Novamed "]
[864,"Tab","Ribavirin 400mg cap","100's",null,null,null,null,null,null,null,null,null,null,null,null,null,null,null,null,null,null,null,null,null,null,null,null,null,null,null,null,null,null,null,null,null,null,null,null,null,null,null,null,null,null,null,null,null,null,null,null,null,null,null,null,null,null,null,null,null,null,null,null,null,null,null,null,null,null,null,null,null,null,null,null,null,null,null,null,null,null,null,null,null,null,null,null,null,null,null,null,null,null,null,null,null,null,null,null,null,null,null,null,null,null,null,null,null,null,null,null,null,null,null,null,null,null,null,null,null,null,null,null,null,null,null,null,null,null,null,null,null,null,null,null,null,"Alcorib 400mg ( FOC)","Cap","10's",null,null,null,"Searle",null,null,null,null,null,null,null,null,null,null,null,null,null,null,null,null,null,null,null,null,null,null,null,null,null,null,null,null,null,null,null,null,null,null,null,null,null,null,null,null,null,null,null,null,null,null,null,null,null,null,null,null,null,null,null,null,null,null,null,null,null,null,null,null,null,null,null,null,null,null,null,null,null,null,null,null,null,null,null,null,null,null,null,null,null,null,null,null,null,null,null,null,null,null,null,null,null,null,null,null,null,null,null,null,null,null,null,null,null,null,null,null,null,null,null,null,null,null,null,"Riba-C 400mg ","Tab","90's",2000,495,{"$f":"100-JH877/JG877*100","v":75.25},"Novamed "]
[873,"Inj","Interferon alpha 2a 3 MIU","Vial",null,null,null,null,null,null,null,null,null,null,null,null,null,null,null,null,null,null,null,null,null,null,null,null,null,null,null,null,null,null,null,null,null,null,null,null,null,null,null,null,null,null,null,null,null,null,null,null,null,null,null,null,null,null,null,null,null,null,null,null,null,null,null,null,null,null,null,null,null,null,null,null,null,null,null,null,null,null,null,null,null,null,null,null,null,null,null,null,null,null,null,null,null,null,null,null,null,null,null,null,null,null,null,null,null,null,null,null,null,null,null,null,null,null,null,null,null,null,null,null,null,null,null,null,null,null,null,null,null,null,null,null,null,null,null,null,null,null,null,null,null,null,null,null,null,null,null,null,null,null,null,null,null,null,null,null,null,null,null,null,null,null,null,null,null,null,null,null,null,null,null,null,null,null,null,null,null,null,null,null,null,null,null,null,null,null,null,null,null,null,null,null,null,null,null,null,null,null,null,null,null,null,null,null,null,null,null,null,null,null,null,null,null,null,null,null,null,null,null,null,null,null,null,null,null,null,null,null,null,null,null,null,null,null,null,null,null,null,null,null,null,null,null,null,null,null,null,null,null,null,null,null,null,null,null,null,null,null,null,null,null,null,null,null,null,null,null,null,null,null,null,null,null,null,null,null,null,null,null,null,null,null,null,null,null,null,null,null,null,null,null,null,null,null,null,null,null,null,null,null,null,null,null,null,null,null,null,null,null,null,null,null,null,null,null,null,null,null,null,null,null,null,null,null,null,null,null,null,null,null,null,null,null,null,null,null,"Unipeg with Ribazole ","Inj","1's",4500,750.01,{"$f":"100-MG886/MF886*100","v":83.333111111111108},"Getz Pharma"]
[876,"Tab","Lamotrigine 100mg","10's","Lamnet 100mg","Tab","30's",642,235,{"$f":"100-I889/H889*100","v":63.395638629283489},"Searle Pharma"]
[884,"Susp","Fosfomycin 250mg","60ml"]
[895,"Sachets","Mebavirine +Isphaghol ","1,s"]
[897,"Tab","Polysaccharide iron complex","10,s"]
[903,"Tab","Telmisartan+Amlodipine 40/10",null,null,null,null,null,null,null,null,null,null,null,null,null,null,null,null,null,null,null,null,null,null,null,null,null,null,null,null,null,null,null,null,null,null,null,null,null,null,null,null,null,null,null,"Telsarta A 40/10","Tab","14'S",190,77,59.473684210526315,"Pharmevo",null,null,null,null,null,null,null,null,null,null,null,null,null,null,null,null,null,null,null,null,null,null,null,null,null,null,null,null,null,null,null,null,null,null,null,null,null,null,null,null,null,null,null,null,null,null,null,null,null,null,null,null,null,null,null,null,null,null,null,null,null,null,null,"Misar -AM 40/10mg","Tab","14's",265,105,60.377358490566039,"Highnoon","Telday 40/10mg ","Tab","14's",278,203.5,26.798561151079141,"Next Pharma",null,null,null,null,null,null,null,null,null,null,null,null,null,null,null,null,null,null,null,null,null,null,null,null,null,null,null,null,null,null,null,null,null,null,null,null,null,null,null,null,null,null,null,null,null,null,null,null,null,null,null,null,null,null,null,null,null,null,null,null,null,null,null,null,null,null,null,null,null,null,null,null,null,null,null,null,null,null,null,null,null,null,null,null,null,null,null,null,null,null,null,null,null,null,null,null,null,null,null,null,null,null,null,null,null,null,null,null,null,null,null,null,null,null,null,null,null,null,null,null,null,null,null,null,null,null,null,null,null,null,null,null,null,null,null,null,null,null,null,null,null,null,null,null,null,null,null,null,null,null,null,null,null,null,null,null,null,null,null,null,null,"Telmis-A 40/10","Tab","14's",308,178,42.207792207792203,"Genix Pharma",null,null,null,null,null,null,null,null,null,null,null,null,null,null,null,null,null,null,null,null,null,null,null,null,null,null,null,null,null,null,null,null,null,null,null,null,null,null,null,null,null,null,"Amtas 40/5mg","Tab","14's",322,273.7,15,"Getz Pharma"]
[908,"Inj","Verapamil injection"]
[909,"Cream","Estrogen Cream"]
[920,"Tab","Risedronate 150 mg"]
[922,"Lotion","Minoxidil Lotion 2%",null,null,null,null,null,null,null,null,null,null,null,null,null,null,null,null,null,null,null,null,null,null,null,null,null,null,null,null,null,null,null,null,null,null,null,null,null,null,null,null,null,null,null,null,null,null,null,null,null,null,null,null,null,null,null,null,null,null,null,null,null,null,null,null,null,null,null,null,null,null,null,null,null,null,null,null,null,null,null,null,null,null,null,null,null,null,null,null,null,null,null,null,null,null,null,null,null,null,null,null,null,null,null,null,null,null,null,null,null,null,null,null,null,null,null,null,null,null,null,null,null,null,null,null,null,null,null,null,null,null,null,null,null,null,null,null,null,null,null,null,null,null,null,null,null,null,null,null,null,null,null,null,null,null,null,null,null,null,null,null,null,null,null,null,null,null,null,null,null,null,null,null,null,null,null,null,null,null,null,null,null,null,null,null,null,null,null,null,null,null,null,null,null,null,null,null,null,null,null,null,null,null,null,null,null,null,null,null,null,null,null,null,null,null,null,null,null,null,null,null,null,null,null,null,null,null,null,null,null,null,null,null,null,null,null,null,null,null,null,null,null,null,null,null,null,null,null,null,null,null,null,null,null,null,null,null,null,null,null,null,null,null,null,null,null,null,null,null,null,null,null,null,null,null,null,null,null,null,null,null,null,null,null,null,null,null,null,null,null,null,null,null,null,null,null,null,null,null,null,null,null,null,null,null,null,null,null,null,null,null,null,null,null,null,null,null,null,null,null,null,null,null,null,null,null,null,null,null,null,null,null,null,null,null,null,null,null,null,null,null,null,null,null,null,null,null,null,null,null,null,null,"Hair Max Topical  ","Lotion","60ml",517.5,290,{"$f":"100-MU942/MT942*100","v":43.961352657004824},"Sante Pvt Ltd"]
["922'","Lotion","Minoxidil Lotion 5%",null,null,null,null,null,null,null,null,null,null,null,null,null,null,null,null,null,null,null,null,null,null,null,null,null,null,null,null,null,null,null,null,null,null,null,null,null,null,null,null,null,null,null,null,null,null,null,null,null,null,null,null,null,null,null,null,null,null,null,null,null,null,null,null,null,null,null,null,null,null,null,null,null,null,null,null,null,null,null,null,null,null,null,null,null,null,null,null,null,null,null,null,null,null,null,null,null,null,null,null,null,null,null,null,null,null,null,null,null,null,null,null,null,null,null,null,null,null,null,null,null,null,null,null,null,null,null,null,null,null,null,null,null,null,null,null,null,null,null,null,null,null,null,null,null,null,null,null,null,null,null,null,null,null,null,null,null,null,null,null,null,null,null,null,null,null,null,null,null,null,null,null,null,null,null,null,null,null,null,null,null,null,null,null,null,null,null,null,null,null,null,null,null,null,null,null,null,null,null,null,null,null,null,null,null,null,null,null,null,null,null,null,null,null,null,null,null,null,null,null,null,null,null,null,null,null,null,null,null,null,null,null,null,null,null,null,null,null,null,null,null,null,null,null,null,null,null,null,null,null,null,null,null,null,null,null,null,null,null,null,null,null,null,null,null,null,null,null,null,null,null,null,null,null,null,null,null,null,null,null,null,null,null,null,null,null,null,null,null,null,null,null,null,null,null,null,null,null,null,null,null,null,null,null,null,null,null,null,null,null,null,null,null,null,null,null,null,null,null,null,null,null,null,null,null,null,null,null,null,null,null,null,null,null,null,null,null,null,null,null,null,null,null,null,null,null,null,null,null,null,null,"Hair Max Plus Sol","Lotion","60ml",575,300,47.826086956521742,"Sante Pvt Ltd"]
[923,"Shampoo","Ketoconazol Shampoo",null,null,null,null,null,null,null,null,null,null,null,null,null,null,null,null,null,null,null,null,null,null,null,null,null,null,null,null,null,null,null,null,null,null,null,null,null,null,null,null,null,null,null,null,null,null,null,null,null,null,null,null,null,null,null,null,null,null,null,null,null,null,null,null,null,null,null,null,null,null,null,null,null,null,null,null,null,null,null,null,null,null,null,null,null,null,null,null,null,null,null,null,null,null,null,null,null,null,null,null,null,null,null,null,null,null,null,null,null,null,null,null,null,null,null,null,null,null,null,null,null,null,null,null,null,null,null,null,null,null,null,null,null,null,null,null,null,null,null,null,null,null,null,null,null,null,null,null,null,null,null,null,null,null,null,null,null,null,null,null,null,null,null,null,null,null,null,null,null,null,null,null,null,null,null,null,null,null,null,null,null,null,null,null,null,null,null,null,null,null,null,null,null,null,null,null,null,null,null,null,null,null,null,null,null,null,null,null,null,null,null,null,null,null,null,null,null,null,null,null,null,null,null,null,null,null,null,null,null,null,null,null,null,null,null,null,null,null,null,null,null,null,null,null,null,null,null,null,null,null,null,null,null,null,null,null,null,null,null,null,null,null,null,null,null,null,null,null,null,null,null,null,null,null,null,null,null,null,null,null,null,null,null,null,null,null,null,null,null,null,null,null,null,null,null,null,null,null,null,null,null,null,null,null,null,null,null,null,null,null,null,null,null,null,null,null,null,null,null,null,null,null,null,null,null,null,null,null,null,null,null,null,null,null,null,null,null,null,null,null,null,null,null,null,null,null,null,null,null,null,null,null,null,null,null,null,null,null,null,null,null,null,null,null,null,null,null,null,null,null,null,null,null,null,null,null,null,null,null,null,null,null,null,null,null,null,null,null,null,null,null,null,null,null,null,null,null,null,null,null,null,null,null,null,null,null,null,null,null,null,null,null,null,null,null,null,null,null,null,null,null,null,null,null,null,null,null,null,null,null,null,null,null,null,null,null,null,null,null,null,null,null,null,null,null,null,null,null,null,null,null,null,null,null,null,null,null,null,null,null,null,null,null,"Kitcon sol","Sol","60ml",184.45,147.56,{"$f":"100-RC944/RB944*100","v":20},"Derma Techno"]
[924,"Cream","Urea Cream 10%,20%"]
[925,"Lotion","Metronidazole Lotion"]
[926,"Cap","Isotretinoin 20 mg"]
[927,"Cream","Azelaic Acid"]
[928,"Inj","Phenol in Almond oil Injection 3 ml"]
[929,"cream","Glyceral Trinitrate Cream"]
[930,"Drops","Naphazoline  HCL 0.025% Eye drop"]
[931,"Tab","Amlodipine+Olmisartan 5/20",null,"Olesta-AM 5/20MG","Tab","20's",365,139.61000000000001,{"$f":"100-I952/H952*100","v":61.750684931506846},"Searle Pharma"]
[931,"Tab","Amlodipine+Olmisartan 5/40",null,"Olesta-AM 5/40MG","Tab","20's",625,218.81,{"$f":"100-I953/H953*100","v":64.990399999999994},"Searle Pharma"]
[932,"Tab","Almitrine+Raubasine 30/10 mg"]
[933,"Gel","Benzocaine Oral GEL"]
[934,"Gel","Clindamycin + Nicotinamide Gel"]
[935,"Gel","Triamcinolone oral Gel"]
[936,"Tab","Daclatasvir 60mg",null,null,null,null,null,null,null,null,null,null,null,null,null,null,null,"Declar 60mg","Tab","28's",4552,750,{"$f":"100-W958/V958*100","v":83.523725834797887},"Helix",null,null,null,null,null,null,null,null,null,null,null,null,null,null,null,null,null,null,null,null,null,"Dakvir 60mg ","Tab","28's",4452,499,{"$f":"100-AY958/AX958*100","v":88.791554357592091},"Pharmevo",null,null,null,null,null,null,null,null,null,null,null,null,null,null,null,null,null,null,null,null,null,null,null,null,null,null,null,null,null,null,null,null,null,null,null,null,null,null,null,null,null,null,null,null,null,null,null,null,null,null,null,null,null,null,null,null,null,null,null,null,null,null,null,null,null,null,null,null,null,null,null,null,null,null,null,null,null,null,null,null,null,null,null,null,"Dactovi 60mg ","Tab","28's",4552,350,{"$f":"100-EL958/EK958*100","v":92.311072056239013},"Searle",null,null,null,null,null,null,null,null,null,null,null,null,null,null,null,null,null,null,null,null,null,null,null,null,null,null,null,null,null,null,null,null,null,null,null,null,null,null,null,null,null,null,null,null,null,null,null,null,null,null,null,null,null,null,null,null,null,null,null,null,null,null,null,null,null,null,null,null,null,null,null,null,null,null,null,null,null,null,null,null,null,null,null,null,null,null,null,null,null,null,null,null,null,null,null,null,null,null,null,null,null,null,null,null,null,null,null,null,null,null,null,null,null,null,null,null,null,null,null,"Dasvir 60mg ","Tab","28's",4552,1800,{"$f":"100-JH958/JG958*100","v":60.456942003514939},"Novamed ",null,null,null,null,null,null,null,null,null,null,null,null,null,null,null,null,null,null,null,null,null,null,null,null,null,null,null,null,null,null,null,null,null,null,null,"Daklana 60mg ","Tab","28's",4552,298,{"$f":"100-KX958/KW958*100","v":93.453427065026361},"Ferozsons Labs"]
[937,"Tab","Acetyl -l- Carnitine 500mg"]
[938,"Tab","Mementine 10mg",null,null,null,null,null,null,null,null,null,null,null,null,null,null,null,null,null,null,null,null,null,null,null,null,null,null,null,null,null,null,null,null,null,null,null,null,null,null,null,null,null,null,null,null,null,null,null,null,null,null,null,null,null,null,null,null,null,null,null,null,null,null,null,null,null,null,null,null,null,null,null,null,null,null,null,null,null,null,null,null,null,null,null,null,null,null,null,null,null,null,null,null,null,null,null,null,null,null,null,null,null,null,null,null,null,null,null,null,null,null,null,null,null,null,null,null,null,null,null,null,null,null,null,null,null,null,null,null,null,null,null,null,null,null,null,null,null,null,null,null,null,null,null,null,null,null,null,null,null,null,null,null,null,null,null,null,null,null,null,null,null,null,null,null,null,null,null,null,null,null,null,null,null,null,null,null,null,null,null,null,null,null,null,null,null,null,null,null,null,null,null,null,null,null,null,null,null,null,null,null,null,null,null,null,null,null,null,null,null,null,null,null,null,null,null,null,null,null,null,null,null,null,null,null,null,null,null,null,null,null,null,null,null,null,null,null,null,null,null,null,null,null,null,null,null,null,null,null,null,null,null,null,null,null,null,null,null,null,null,null,null,null,null,null,null,null,null,null,null,null,null,null,null,null,null,null,null,null,null,null,null,null,null,null,null,null,null,null,null,null,null,null,null,null,null,"Memlip 10mg","Tab","20's",1380,938.4,{"$f":"100-KQ960/KP960*100","v":32},"Hamzala Pharma"]
[939,"Tab","Hydralazine 0.25mg"]
[940,"Tab","Citicoline 500mg"]
[941,"Tab","Cilostazole 100mg"]
[942,"Cap","Olanzapine 5mg",null,null,null,null,null,null,null,null,null,null,null,null,null,null,null,null,null,null,null,null,null,null,null,null,null,null,null,null,null,null,null,null,null,null,null,null,null,null,null,null,null,null,null,null,null,null,null,null,null,null,null,null,null,null,null,null,null,null,null,null,null,null,null,null,null,null,null,null,null,null,null,null,null,null,null,null,null,null,null,null,null,null,null,null,null,null,null,null,null,null,null,null,null,null,null,null,null,null,null,null,null,null,null,null,null,null,null,null,null,null,null,null,null,null,null,null,null,null,null,null,null,null,null,null,null,null,null,null,null,null,null,null,null,null,null,null,null,null,null,null,null,null,null,null,null,null,null,null,null,null,null,null,null,null,null,null,null,null,null,null,null,null,null,null,null,null,null,null,null,null,null,null,null,null,null,null,null,null,null,null,null,null,null,null,null,null,null,null,null,null,null,null,null,null,null,null,null,"Linzap 5mg","Tab","10's",89.22,23.88,{"$f":"100-GW964/GV964*100","v":73.234700739744454},"Hiranis Pharma",null,null,null,null,null,null,null,null,null,null,null,null,null,null,null,null,null,null,null,null,null,null,null,null,null,null,null,null,null,null,null,null,null,null,null,null,null,null,null,null,null,null,null,null,null,null,null,null,null,null,null,null,null,null,null,null,null,null,null,null,null,null,null,null,null,null,null,null,null,null,null,null,null,null,null,null,null,null,null,null,null,null,null,null,null,null,null,null,null,null,null,null,null,null,null,null,null,null,null,null,null,null,null,null,null,null,null,null,null,null,null,null,null,null,null,null,null,null,null,null,null,null,null,null,null,null,null,null,null,null,null,null,null,null,null,null,null,null,null,null,null,null,null,null,null,null,null,null,null,null,null,null,null,null,null,null,null,null,null,null,null,null,null,null,null,null,null,null,null,null,null,null,null,null,null,null,null,null,null,null,null,null,null,null,null,null,null,null,null,null,null,null,null,null,null,null,null,null,null,null,null,null,null,null,null,null,null,null,null,null,null,null,null,null,null,null,null,"Ozip 5mg","Tab","10's",150,109,{"$f":"100-PM964/PL964*100","v":27.333333333333329},"Glitz Pharma"]
["942'","Cap","Olanzapine 10mg",null,null,null,null,null,null,null,null,null,null,null,null,null,null,null,null,null,null,null,null,null,null,null,null,null,null,null,null,null,null,null,null,null,null,null,null,null,null,null,null,null,null,null,null,null,null,null,null,null,null,null,null,null,null,null,null,null,null,null,null,null,null,null,null,null,null,null,null,null,null,null,null,null,null,null,null,null,null,null,null,null,null,null,null,null,null,null,null,null,null,null,null,null,null,null,null,null,null,null,null,null,null,null,null,null,null,null,null,null,null,null,null,null,null,null,null,null,null,null,null,null,null,null,null,null,null,null,null,null,null,null,null,null,null,null,null,null,null,null,null,null,null,null,null,null,null,null,null,null,null,null,null,null,null,null,null,null,null,null,null,null,null,null,null,null,null,null,null,null,null,null,null,null,null,null,null,null,null,null,null,null,null,null,null,null,null,null,null,null,null,null,null,null,null,null,null,null,"Linzap 10mg","Tab","10's",157.46,27,82.852788009653239,"Hiranis Pharma",null,null,null,null,null,null,null,null,null,null,null,null,null,null,null,null,null,null,null,null,null,null,null,null,null,null,null,null,null,null,null,null,null,null,null,null,null,null,null,null,null,null,null,null,null,null,null,null,null,null,null,null,null,null,null,null,null,null,null,null,null,null,null,null,null,null,null,null,null,null,null,null,null,null,null,null,null,null,null,null,null,null,null,null,null,null,null,null,null,null,null,null,null,null,null,null,null,null,null,null,null,null,null,null,null,null,null,null,null,null,null,null,null,null,null,null,null,null,null,null,null,null,null,null,null,null,null,null,null,null,null,null,null,null,null,null,null,null,null,null,null,null,null,null,null,null,null,null,null,null,null,null,null,null,null,null,null,null,null,null,null,null,null,null,null,null,null,null,null,null,null,null,null,null,null,null,null,null,null,null,null,null,null,null,null,null,null,null,null,null,null,null,null,null,null,null,null,null,null,null,null,null,null,null,null,null,null,null,null,null,null,null,null,null,null,null,null,"Ozip 10mg","Tab","10's",120,78,35,"Glitz Pharma"]
[943,"Cap","Ziprasidone 30&60mg"]
[944,"Inj","Linezolide 600mg",null,null,null,null,null,null,null,null,null,null,null,null,null,null,null,null,null,null,null,null,null,null,null,null,null,null,null,null,null,null,null,null,null,null,null,null,null,null,null,null,null,null,null,null,null,null,null,null,null,null,"Ecasil 600mg/300ml ","Inj","1's",600,230,{"$f":"100-BF967/BE967*100","v":61.666666666666664},"Sami",null,null,null,null,null,null,null,null,null,null,null,null,null,null,null,null,null,null,null,null,null,null,null,null,null,null,null,null,null,null,null,null,null,null,null,null,null,null,null,null,null,null,"Zolrest 600mg","Inj","1's",510,219,{"$f":"100-DC967/DB967*100","v":57.058823529411768},"Bosch"]
[945,"Tab","Donepezil 5mg"]
[946,"Tab","Perindopril 2&4 and 8mg"]
[947,"Cap","Tiotropium 18mcg",null,null,null,null,null,null,null,null,null,null,null,null,null,null,null,null,null,null,null,null,null,null,null,null,null,null,null,null,null,null,null,null,null,null,null,null,null,null,null,null,null,null,null,null,null,null,null,null,null,null,null,null,null,null,null,null,null,null,null,null,null,null,null,null,null,null,null,null,null,null,null,null,null,null,null,null,null,null,null,null,null,null,null,null,null,null,null,null,null,null,null,null,null,null,null,null,null,null,null,null,null,null,null,null,null,null,null,null,null,null,null,null,null,"Tiovair Rota Cap","Cap","30's",529.04999999999995,425,{"$f":"100-DQ970/DP970*100","v":19.66732822984595},"Highnoon"]
[948,"Cream","Glutathion +Kojic acid cream"]
[949,"Soap","soap for eczema/dermatitis/psoriasis/emollient",null,null,null,null,null,null,null,null,null,null,null,null,null,null,null,null,null,null,null,null,null,null,null,null,null,null,null,null,null,null,null,null,null,null,null,null,null,null,null,null,null,null,null,null,null,null,null,null,null,null,null,null,null,null,null,null,null,null,null,null,null,null,null,null,null,null,null,null,null,null,null,null,null,null,null,null,null,null,null,null,null,null,null,null,null,null,null,null,null,null,null,null,null,null,null,null,null,null,null,null,null,null,null,null,null,null,null,null,null,null,null,null,null,null,null,null,null,null,null,null,null,null,null,null,null,null,null,null,null,null,null,null,null,null,null,null,null,null,null,null,null,null,null,null,null,null,null,null,null,null,null,null,null,null,null,null,null,null,null,null,null,null,null,null,null,null,null,null,null,null,null,null,null,null,null,null,null,null,null,null,null,null,null,null,null,null,null,null,null,null,null,null,null,null,null,null,null,null,null,null,null,null,null,null,null,null,null,null,null,null,null,null,null,null,null,null,null,null,null,null,null,null,null,null,null,null,null,null,null,null,null,null,null,null,null,null,null,null,null,null,null,null,null,null,null,null,null,null,null,null,null,null,null,null,null,null,null,null,null,null,null,null,null,null,null,null,null,null,null,null,null,null,null,null,null,null,null,null,null,null,null,null,null,null,null,null,null,null,null,null,null,null,null,null,null,null,null,null,null,null,null,null,null,null,null,null,null,null,null,null,null,null,null,null,null,null,null,null,null,null,null,null,null,null,null,null,null,null,null,null,null,null,null,null,null,null,null,null,null,null,null,null,null,null,null,null,null,null,null,null,null,null,null,null,null,null,null,null,null,null,null,null,null,null,null,null,null,null,null,null,null,null,null,null,null,null,null,null,null,null,null,null,null,null,null,null,null,null,null,null,null,null,null,null,null,null,null,null,null,null,null,null,null,null,null,null,null,null,null,null,null,null,null,null,null,null,null,null,null,null,null,null,null,null,null,null,null,null,null,null,null,null,null,null,null,null,null,null,null,null,null,null,null,null,null,null,null,null,null,null,null,null,null,null,null,null,null,null,null,null,null,null,null,"Meditar ","Bar","90g",123.25,98.6,{"$f":"100-RC972/RB972*100","v":20},"Derma Techno"]